Workbook

Sheet Carátula
B15: ESTADO DE RENDIMIENTO ECONÓMICO 2025
F34: Departamento Financiero - Contable
F35: Unidad Contabilidad General
F36: Contabilidad del Activo Fijo y Costos

Sheet Nota
A3: INFORME DE ESTADO DE RENDIMIENTO ECONÓMICO
A5: El Informe Estado de Rendimiento Económico consta de los siguientes informes por Sección, Región y Total Empresa a
A6: valores históricos:
A8: −ESTADO DE RENDIMIENTO ECONÓMICO
A10: −COSTOS PROPIOS
A12: −COBERTURAS Y COSTOS PROMEDIOS
A14: ESTADO DE RENDIMIENTO ECONÓMICO
A16: Refleja la gestión de la empresa exponiendo la composición del resultado neto por actividad de producción.
A18: En las columnas se obtienen los totales correspondientes a Agua Potable, Alcantarillado y Otros Ingresos. Dentro de Agua
A19: Potable se analiza el origen de la producción de agua, agrupándose los servicios en Usina (agua superficial), Perforación (agua subterránea) y Mixto (combinación de las anteriores).
A22: INGRESOS
A24: Se incluyen los recursos generados a través de las operaciones propias del Ente, así como aquellos provenientes de servicios
A25: complementarios.
A27: COSTO DE EXPLOTACIÓN
A29: Se clasifica:
A30: Operativo - incluye el costo asociado a las operaciones de producción y distribución de agua potable y prestación de servicio
A31: de alcantarillado.El costo operativo se abre en fijo y variable según el comportamiento de sus componentes ante variaciones en
A32: los volúmenes de actividad.
A33: No Operativo - gastos de comercialización, administración y fiscales.
A34: Comercialización incluye los gastos de comercialización propios de cada Sección y los gastos centrales de comercialización.
A35: La asignación de los gastos propios a las actividades de agua y alcantarillado, se realiza en base a la cantidad de conexiones
A36: de agua (Usina, Perforación y Mixto)(100%) y alcantarillado (50%).Las conexiones utilizadas son las promedio anual.Los
A37: gastos centrales se asignan en base a ingresos operativos del ejercicio.
A38: Administración incluye los gastos administrativos propios de cada Sección (Jefatura Administrativa, Contabilidad), y
A39: los gastos de Administración Central.Se asignan con el mismo criterio que los gastos de Comercialización
A40: Fiscales incluye las cargas impositivas que gravan la actividad del Organismo, con excepción del I.R.A.E. que se muestra en
A41: un item independiente.
A44: RESULTADOS DIVERSOS Y EXTRAORDINARIOS
A45: Ingresos incluye ingresos ajenos a la explotación, ingresos diversos, ingresos extraordinarios.
A46: Gastos incluye donaciones, indemnizaciones por litigios (variación anual en los montos previsionados por tal concepto), faltantes por hurto y egresos diversos.
A48: RESULTADOS FINANCIEROS
A49: Ingresos incluye los ingresos por intereses, multas a clientes por atraso en los pagos y diferencia de cotización.
A50: Gastos incluye intereses, comisiones y gastos bancarios, recargos sobres deudas fiscales, multas por atraso en los pagos y diferencia de cotización.
A53: Los Resultados Diversos y Extraordinarios, Resultados Financieros, e IRAE, se asignan en base a los Ingresos de Explotación del Ejercicio.
A55: COSTOS PROPIOS
A56: Refleja la estructura de los Costos Propios, Costo Operativo (agua y alcantarillado) y el Costo Administrativo-Comercial por concepto de gasto.
A59: COBERTURAS Y COSTOS PROMEDIOS
A61: En éste informe se incluyen los siguientes conceptos:
A63: COMPOSICIÓN DEL COSTO PROPIO POR CONEXIÓN
A65: Representa la estructura por concepto del gasto ,del costo propio por conexión ,según la actividad: Agua , Alcantarillado y Administrativo-Comercial.
A68: COBERTURAS COSTO - INGRESO
A70: VARIABLE
A71: Representa la proporción del costo variable operativo respecto al ingreso por cargo variable.
A72: FIJO
A73: Representa la proporción del costo fijo de explotación ( total costo explotación menos costo variable operativo) respecto al ingreso por cargo fijo.
A75: EXPLOTACIÓN
A76: Representa la proporción entre el costo de explotación y los ingresos de explotación.
A77: FINANCIERO
A78: Representa la proporción entre los gastos financieros y los ingresos financieros.
A79: TOTAL
A80: Representa la proporción entre el gasto total (suma de costo de explotación, gastos diversos y extraordinarios, gastos financieros,
A81: e I.R.A.E) y el ingreso total (suma de ingreso de explotación, ingresos diversos y extraordinarios, e ingresos financieros)
A83: M3 ELEVADOS
A85: Corresponde al total de metros cúbicos elevados en el ejercicio, según información proporcionada por el sistema R.A.N.C .
A86: Permite el cálculo del costo variable por metro cúbico elevado.
A88: M3 FACTURADOS
A90: Corresponde al total de metros cúbicos facturados en el ejercicio, información proporcionada por el sistema R.A.N.C.
A91: Permite el cálculo de costos e ingresos unitarios por metro cúbico facturado.
A93: CONEXIONES
A95: Incluye las conexiones de agua y alcantarillado en funcionamiento promedio anual.
A97: COSTO PROMEDIO
A99: •VARIABLE POR M3 ELEVADO
A100: Es la proporción entre el costo operativo variable y el volumen de agua elevada.
A101: •VARIABLE POR M3 FACTURADO
A102: Es la proporción entre el costo operativo variable y el volumen de agua facturada.
A103: •COSTO FIJO POR CONEXION
A104: Es la relación entre el costo fijo de explotación ( total costo explotación menos costo variable operativo) y la cantidad de conexiones en funcionamiento promedio anual.
A105: •COSTO DE EXPLOTACIÓN POR M3 FACTURADO
A106: Es la proporción entre el costo de explotación y el volumen de agua facturada.
A107: •COSTO TOTAL POR M3 FACTURADO
A108: Es la relación entre el costo total (suma de costo de explotación, gastos diversos y extraordinarios, gastos financieros, e I.R.A.E)
A109: y el volumen de agua facturada.
A111: INGRESOS PROMEDIO
A113: •VARIABLE POR M3 FACTURADO
A114: Es la proporción entre el ingreso por cargo variable y el volumen de agua facturada.
A115: •INGRESO FIJO POR CONEXION
A116: Es la proporción entre el ingreso por cargo fijo y la cantidad de conexiones en funcionamiento promedio anual
A117: •INGRESO DE EXPLOTACIÓN POR M3 FACTURADO
A118: Es la proporción entre el ingreso de explotación y el volumen de agua facturada.
A119: •INGRESO TOTAL POR M3 FACTURADO
A120: Es la relación entre el ingreso total (suma de ingreso de explotación, ingresos diversos y extraordinarios, e ingresos financieros)
A121: y el volumen de agua facturada.

Sheet INDICE
A2: ESTADO DE RENDIMIENTO ECONOMICO -2025
B4: EMPRESA
B6: MONTEVIDEO
B8: AMBITO GEOGRAFICO CENTRO
B9: CANELONES
B10: LAS PIEDRAS
B11: SISTEMA ATLANTIDA
B12: CIUDAD DE LA COSTA
B13: FLORIDA
B14: DURAZNO
B16: AMBITO GEOGRAFICO LITORAL SUR
B17: SAN JOSE
B18: COLONIA
B19: FLORES
B20: SORIANO
B22: AMBITO GEOGRAFICO LITORAL NORTE
B23: PAYSANDU
B24: RIO NEGRO
B25: SALTO
B26: ARTIGAS
B28: AMBITO GEOGRAFICO NORESTE
B29: RIVERA
B30: TACUAREMBO
B31: CERRO LARGO
B33: AMBITO GEOGRAFICO SURESTE
B34: TREINTA Y TRES
B35: ROCHA
B36: LAVALLEJA
B38: U.G.D.

Sheet A-OSE-ACT
B3: EMPRESA | C3: ESTADO DE RENDIMIENTO ECONÓMICO (a valores históricos) | H3: PERÍODO ENERO-DICIEMBRE-2025
C5: AGUA POTABLE | D5: PERFORACIÓN | E5: MIXTO | F5: SUB-TOTAL
B6: CONCEPTOS | C6: USINA | D6: PERFORACIÓN | E6: MIXTO | F6: SUB-TOTAL | G6: ALCANTARILLADO | H6: OTROS INGRESOS | I6: TOTAL
B7: INGRESOS
B8: Ingresos Variables | C8: 8937576842 | D8: 441747146.8 | E8: 1356194959 | F8: 1.073551895e+10 | I8: 1.073551895e+10
B9: Ingresos Fijos | C9: 5870932553 | D9: 413080510.2 | E9: 1237768027 | F9: 7521781090 | I9: 7521781090
B10: INGRESOS DE EXPLOTACION | C10: 1.48085094e+10 | D10: 854827657 | E10: 2593962986 | F10: 1.825730004e+10 | I10: 1.825730004e+10
B11: Ingresos Alcantarillado | G11: 3742453883 | I11: 3742453883
B12: Ingresos Upas
B13: Otros Ingresos | C13: 834592403.8 | D13: 78844424.32 | E13: 244060331.6 | F13: 1157497160 | G13: 55043682.8 | H13: 4742729.98 | I13: 1217283573
B14: TOTAL ING. DE EXPLOTACION | C14: 1.56431018e+10 | D14: 933672081.3 | E14: 2838023317 | F14: 1.94147972e+10 | G14: 3797497566 | H14: 4742729.98 | I14: 2.321703749e+10
B15: COSTOS DE EXPLOTACION
B16: OPERATIVO
B17: Costo Operativo Var | C17: 2323689364 | D17: 96970293.3 | E17: 438179991 | F17: 2858839648 | G17: 444848388 | I17: 3303688036
B18: Costo Operativo Fijo | C18: 2681160156 | D18: 306023694.9 | E18: 1112268362 | F18: 4099452213 | G18: 2010903996 | I18: 6110356209
B19: TOTAL OPERATIVO | C19: 5004849520 | D19: 402993988.2 | E19: 1550448353 | F19: 6958291861 | G19: 2455752384 | I19: 9414044245
B20: NO OPERATIVO
B21: COMERCIALIZACION
B22: Comercial Propios | C22: 2650300583 | D22: 239459846.1 | E22: 813034308.3 | F22: 3702794738 | G22: 562499110.3 | I22: 4265293848
B23: Comercial Asignados | C23: 1191797863 | D23: 80642148.82 | E23: 245122783.2 | F23: 1517562795 | G23: 266037380.5 | I23: 1783600176
B24: Comercialización Upas
B25: TOTAL COMERCIALIZACION | C25: 3842098446 | D25: 320101994.9 | E25: 1058157091 | F25: 5220357533 | G25: 828536490.8 | I25: 6048894023
B26: ADMINISTRACION
B27: Administración Propios | C27: 336414683.8 | D27: 46168140.14 | E27: 162094336.4 | F27: 544677160.3 | G27: 126152799.4 | I27: 670829959.7
B28: Administ. Asignados | C28: 1515112046 | D28: 104848377 | E28: 318700905.3 | F28: 1938661329 | G28: 332487288.1 | I28: 2271148617
B29: Gastos Fiscales | C29: 705672948 | D29: 39408533.14 | E29: 119787597.7 | F29: 864869078.8 | G29: 178008179 | I29: 1042877258
B30: TOTAL ADMINISTRACION | C30: 2557199678 | D30: 190425050.3 | E30: 600582839.4 | F30: 3348207568 | G30: 636648266.5 | I30: 3984855834
B31: TOTAL NO OPERATIVO | C31: 6399298124 | D31: 510527045.2 | E31: 1658739931 | F31: 8568565100 | G31: 1465184757 | I31: 1.003374986e+10
B32: COSTO DE EXPLOTACION | C32: 1.140414764e+10 | D32: 913521033.5 | E32: 3209188283 | F32: 1.552685696e+10 | G32: 3920937141 | I32: 1.94477941e+10
B33: RESULTADO DE EXPLOTACION | C33: 4238954154 | D33: 20151047.83 | E33: -371164966.3 | F33: 3887940236 | G33: -123439575.3 | H33: 4742729.98 | I33: 3769243390
B34: DIVERSOS Y EXTRAORDINARIOS
B35: Ingresos Div. y Extr | C35: 175249491.6 | D35: 11796951.43 | E35: 35858442.05 | F35: 222904885.1 | G35: 55970268.93 | I35: 278875154
B36: Gtos. Div. y Extraor | C36: 76947854.48 | D36: 5400159.7 | E36: 16414519.91 | F36: 98762534.09 | G36: 16701210.6 | I36: 115463744.7
B37: RESULTADOS DIV. Y EXTRAORDINARIOS | C37: 98301637.13 | D37: 6396791.73 | E37: 19443922.14 | F37: 124142351 | G37: 39269058.33 | I37: 163411409.3
B38: FINANCIEROS
B39: Ingresos Financieros | C39: 1210995007 | D39: 80909747.97 | E39: 245936186 | F39: 1537840941 | G39: 272855848.1 | I39: 1810696789
B40: Gastos Financieros | C40: 582492113.4 | D40: 40829418.22 | E40: 124106571.1 | F40: 747428102.8 | G40: 126549232.5 | I40: 873977335.2
B41: RESULTADO FINANCIERO | C41: 628502893.6 | D41: 40080329.75 | E41: 121829614.9 | F41: 790412838.3 | G41: 146306615.7 | I41: 936719454
B42: I.R.A.E. | C42: -398806619.7 | D42: -18498711.65 | E42: -56229350.7 | F42: -473534682 | G42: -109866813 | I42: -583401495
B43: RESULTADO NETO | C43: 4566952065 | D43: 48129457.66 | E43: -286120779.9 | F43: 4328960743 | G43: -47730714.31 | H43: 4742729.98 | I43: 4285972758

Sheet B-OSE-ACT
B4: E M P R E S A
D6: C O S T O S T O T A L E S
C10: C O N C E P T O | D10: C O S T O S O P E R A T I V O S
D13: AGUA | E13: ALCANTARILLADO | F13: TOTAL
C15: RETRIBUCIONES AL PERSONAL | D15: 2013506463 | E15: 382072829.1 | F15: 2395579292
C17: MATERIALES Y SUMINISTROS | D17: 1410491458 | E17: 101306733.9 | F17: 1511798192
C19: ENERGÍA Y FLUÍDOS | D19: 1339781699 | E19: 248856369.8 | F19: 1588638069
C21: SERVICIOS CONTRATADOS | D21: 1126769696 | E21: 1040186539 | F21: 2166956235
C23: GASTOS VARIOS | D23: 159752373.2 | E23: 3090717.647 | F23: 162843090.8
C25: AMORTIZACIÓN | D25: 907990171.9 | E25: 680239193.7 | F25: 1588229366
C28: TOTAL | D28: 6958291861 | E28: 2455752383 | F28: 9414044244
C33: C O N C E P T O | D33: C O S T O D E A D M I N I S T R A T I V O - C O M E R C I A L
D36: COMERCIALIZACIÓN | E36: ADMINISTRACIÓN | F36: ADM.ASIGNADOS | G36: COM.ASIGNADOS | H36: TOTAL
C38: RETRIBUCIONES AL PERSONAL | D38: 1518116036 | E38: 281669529.9 | F38: 1376412603 | G38: 352958041 | H38: 3529156210
C40: MATERIALES Y SUMINISTROS | D40: 120717497.8 | E40: 14359192.66 | F40: 27165158.52 | G40: 1506135.269 | H40: 163747984.3
C42: ENERGÍA Y FLUÍDOS | D42: 8696014.741 | E42: 107810589.4 | F42: 52150134.8 | G42: 3395940.13 | H42: 172052679
C44: SERVICIOS CONTRATADOS | D44: 2331588590 | E44: 213155365.4 | F44: 755524445.7 | G44: 846188331.5 | H44: 4146456733
C46: GASTOS VARIOS | D46: 20731443.76 | E46: 10354605.91 | F46: 22525706.55 | G46: 547013224.3 | H46: 600624980.5
C48: AMORTIZACIÓN | D48: 265444265.5 | E48: 43480676.42 | F48: 37370567.59 | G48: 32538503.43 | H48: 378834012.9
C52: TOTAL | D52: 4265293848 | E52: 670829959.7 | F52: 2271148617 | G52: 1783600176 | H52: 8990872600
C55: FISCALES | H55: 1042877258
B59: C O S T O D E E X P L O T A C I Ó N | H59: 19447794103

Sheet C-OSE-ACT
B4: COBERTURAS, COSTOS E INGRESOS PROMEDIO
B6: E M P R E S A
C10: 1. COMPOSICIÓN DEL COSTO PROPIO POR CONEXIÓN | D10: OPERATIVOS | E10: 0 | F10: ADMINISTRATIVO-COMERCIAL
D12: AGUA | E12: ALCANTARILLADO
D13: ($/conex.agua) | E13: ($/conex.desagüe) | F13: ($/conex.agua)
C15: RETRIBUCIONES AL PERSONAL | D15: 1557.788035 | E15: 944.9716541 | F15: 1392.438749
C17: MATERIALES Y SUMINISTROS | D17: 1091.253869 | E17: 250.559539 | F17: 104.5046818
C19: ENERGÍA Y FLUÍDOS | D19: 1036.547903 | E19: 615.4905492 | F19: 90.13757705
C21: SERVICIOS CONTRATADOS | D21: 871.747066 | E21: 2572.668662 | F21: 1968.790148
C23: GASTOS VARIOS | D23: 123.5954988 | E23: 7.644198553 | F23: 24.05032074
C25: AMORTIZACIÓN | D25: 702.4840755 | E25: 1682.419442 | F25: 239.0057282
C29: TOTAL | D29: 5383.416447 | E29: 6073.754045 | F29: 3818.927205
C32: 2.CONEXIONES (promedio anual) | D32: 1292542 | E32: 404322
C35: 3.COBERTURAS COSTO/INGRESO
C37: 3.1 COSTO DE EXPLOTACIÓN/ INGRESO DE EXPLOT. | D37: 0.7997434536 | E37: 1.032505505
C39: 3.2 FINANCIERO | D39: 0.4826745927
C41: 3.3 TOTAL | D41: 0.7508432203 | E41: 0.9583157006
C44: 4.M3 ELEVADOS | D44: 352814670
C46: 5.M3 FACTURADOS | D46: 175499950
C49: 6. COSTO PROMEDIO
C51: 6.1 COSTO VARIABLE/ M3 ELEVADOS | D51: 8.102950051
C53: 6.2 COSTO VARIABLE / M3 FACTURADOS | D53: 16.28968925
C55: 6.3 COSTO EXPLOTACIÓN/ M3 FACTURADOS | D55: 88.47214464
C57: 6.4 COSTO EXPLOTACIÓN/ M3 ELEVADOS | D57: 44.00853559
C59: 6.5 TOTAL/ M3 FACTURADOS | D59: 90.595541
C61: 6.6 TOTAL /M3 ELEVADO | D61: 45.06477272
C64: 7. INGRESOS PROMEDIO
C66: 7.1 VARIABLE/ M3 FACTURADOS | D66: 61.17106556
C68: 7.2 FIJO/CONEXIONES | D68: 484.9475614
C70: 7.3 INGRESO EXPLOTACIÓN/ M3 FACTURADOS | D70: 110.6256566
C72: 7.4 TOTAL/ M3 FACTURADOS | D72: 120.6583992

Sheet A-MDEO-600
B2: MONTEVIDEO | C2: ESTADO DE RENDIMIENTO ECONÓMICO (a valores históricos) | H2: PERÍODO ENERO-DICIEMBRE-2025
C4: USINA | D4: PERFORACIÓN | E4: MIXTO | F4: SUB-TOTAL
B5: CONCEPTOS | C5: USINA | D5: PERFORACIÓN | E5: MIXTO | F5: SUB-TOTAL | G5: ALCANTARILLADO | H5: OTROS INGRESOS | I5: TOTAL
B6: INGRESOS
B7: Ingresos Variables | C7: 5006816606 | F7: 5006816606 | I7: 5006816606
B8: Ingresos Fijos | C8: 2847030202 | F8: 2847030202 | I8: 2847030202
B9: INGRESOS DE EXPLOTACION | C9: 7853846807 | F9: 7853846807 | I9: 7853846807
B10: Ingresos Alcantarillado
B11: Ingresos Upas
B12: Otros Ingresos | C12: 252745295.1 | F12: 252745295.1 | H12: 4742729.98 | I12: 257488025.1
B13: TOTAL ING. DE EXPLOTACION | C13: 8106592103 | F13: 8106592103 | H13: 4742729.98 | I13: 8111334833
B14: COSTOS DE EXPLOTACION
B15: OPERATIVO
B16: Costo Operativo Var | C16: 989599897.5 | F16: 989599897.5 | I16: 989599897.5
B17: Costo Operativo Fijo | C17: 1175092490 | F17: 1175092490 | I17: 1175092490
B18: TOTAL OPERATIVO | C18: 2164692388 | F18: 2164692388 | I18: 2164692388
B19: NO OPERATIVO
B20: COMERCIALIZACION
B21: Comercial Propios | C21: 1214885076 | F21: 1214885076 | I21: 1214885076
B22: Comercial Asignados | C22: 652975743 | F22: 652975743 | I22: 652975743
B23: TOTAL COMERCIALIZACION | C23: 1867860819 | F23: 1867860819 | I23: 1867860819
B24: ADMINISTRACION
B25: Administración Propios | C25: 8048714.77 | F25: 8048714.77 | I25: 8048714.77
B26: Administ. Asignados | C26: 757486249 | F26: 757486249 | I26: 757486249
B27: Gastos Fiscales | C27: 342163923.9 | F27: 342163923.9 | I27: 342163923.9
B28: TOTAL ADMINISTRACION | C28: 1107698888 | F28: 1107698888 | I28: 1107698888
B29: TOTAL NO OPERATIVO | C29: 2975559706 | F29: 2975559706 | I29: 2975559706
B30: COSTO DE EXPLOTACION | C30: 5140252094 | F30: 5140252094 | I30: 5140252094
B31: RESULTADO DE EXPLOTACION | C31: 2966340009 | F31: 2966340009 | H31: 4742729.98 | I31: 2971082739
B32: DIVERSOS Y EXTRAORDINARIOS
B33: Ingresos Div. y Extr | C33: 102426853.6 | F33: 102426853.6 | I33: 102426853.6
B34: Gtos. Div. y Extraor | C34: 46886794.97 | F34: 46886794.97 | I34: 46886794.97
B35: RESULTADOS DIV. Y EXTRAORDINARIOS | C35: 55540058.64 | F35: 55540058.64 | I35: 55540058.64
B36: FINANCIEROS
B37: Ingresos Financieros | C37: 702497520.8 | F37: 702497520.8 | I37: 702497520.8
B38: Gastos Financieros | C38: 354500734.2 | F38: 354500734.2 | I38: 354500734.2
B39: RESULTADO FINANCIERO | C39: 347996786.7 | F39: 347996786.7 | I39: 347996786.7
B40: I.R.A.E. | C40: -160614751.7 | F40: -160614751.7 | I40: -160614751.7
B41: RESULTADO NETO | C41: 3209262102 | F41: 3209262102 | H41: 4742729.98 | I41: 3214004832

Sheet B-MDEO-600
C4: M O N T E V I D E O
D6: C O S T O S T O T A L E S
C10: C O N C E P T O | D10: C O S T O S O P E R A T I V O S
D13: AGUA | E13: ALCANTARILLADO | F13: TOTAL
C15: RETRIBUCIONES AL PERSONAL | D15: 517806093.6 | F15: 517806093.6
C17: MATERIALES Y SUMINISTROS | D17: 742947977.8 | F17: 742947977.8
C19: ENERGÍA Y FLUÍDOS | D19: 475323007 | F19: 475323007
C21: SERVICIOS CONTRATADOS | D21: 299068509.2 | F21: 299068509.2
C23: GASTOS VARIOS | D23: 44696438.9 | F23: 44696438.9
C25: AMORTIZACIÓN | D25: 84850361.14 | F25: 84850361.14
C28: TOTAL | D28: 2164692388 | F28: 2164692388 | H28: 0.6389997817
C33: C O N C E P T O | D33: C O S T O D E A D M I N I S T R A T I V O - C O M E R C I A L
D36: COMERCIALIZACIÓN | E36: ADMINISTRACIÓN | F36: TOTAL
C38: RETRIBUCIONES AL PERSONAL | D38: 356135426.6 | E38: 6092218.06 | F38: 362227644.6
C40: MATERIALES Y SUMINISTROS | D40: 30617904.9 | E40: 50897.19 | F40: 30668802.09
C42: ENERGÍA Y FLUÍDOS | D42: 3308803.97 | F42: 3308803.97
C44: SERVICIOS CONTRATADOS | D44: 678558942.8 | E44: 1814669.31 | F44: 680373612.1
C46: GASTOS VARIOS | D46: 6221968.98 | E46: 51272.49 | F46: 6273241.47
C48: AMORTIZACIÓN | D48: 140042028.4 | E48: 39657.72 | F48: 140081686.1
C52: TOTAL | D52: 1214885076 | E52: 8048714.77 | F52: 1222933790 | H52: 0.3610002183
B57: C O S T O D E E X P L O T A C I Ó N | H57: 3387626179

Sheet C-MDEO-600
B4: COBERTURAS, COSTOS E INGRESOS PROMEDIO
B6: M O N T E V I D E O
C10: 1. COMPOSICIÓN DEL COSTO PROPIO POR CONEXIÓN | D10: OPERATIVOS | F10: ADMINISTRATIVO-COMERCIAL
D12: AGUA | E12: ALCANTARILLADO
D13: ($/conex.agua) | E13: ($/conex.desagüe) | F13: ($/conex.agua)
C15: RETRIBUCIONES AL PERSONAL | D15: 1313.92186 | F15: 919.1448814
C17: MATERIALES Y SUMINISTROS | D17: 1885.214564 | F17: 77.82142771
C19: ENERGÍA Y FLUÍDOS | D19: 1206.121939 | F19: 8.396019128
C21: SERVICIOS CONTRATADOS | D21: 758.8799296 | F21: 1726.433452
C23: GASTOS VARIOS | D23: 113.4162553 | F23: 15.91821572
C25: AMORTIZACIÓN | D25: 215.305972 | F25: 355.454275
C29: TOTAL | D29: 5492.860519 | F29: 3103.168271
C32: 2.CONEXIONES (promedio anual) | D32: 394092
C35: 3.COBERTURAS COSTO/INGRESO
C37: 3.1 COSTO DE EXPLOTACIÓN/ INGRESO DE EXPLOT. | D37: 0.634082982 | F37: 0
C39: 3.3 TOTAL | D39: 0.6038281908
C42: 4.M3 ELEVADOS | D42: 162007470
C44: 5.M3 FACTURADOS | D44: 74966560
C47: 6. COSTO PROMEDIO
C49: 6.1 COSTO VARIABLE/ M3ELEVADOS | D49: 6.108359679
C51: 6.2 COSTO VARIABLE / M3FACTURADOS | D51: 13.20055099
C53: 6.3 COSTO EXPLOTACIÓN/M3FACT | D53: 68.56726644
C55: 6.4 TOTAL/M3FACT | D55: 71.77900215
C58: 7. INGRESOS PROMEDIO
C60: 7.1 VARIABLE/M3 FACT | D60: 66.78733299
C62: 7.2 FIJO/CONEXIONES | D62: 602.0231743
C64: 7.3 INGRESO EXPLOTACIÓN/M3FACT | D64: 108.136109
C66: 7.4 TOTAL/M3FACT | D66: 118.8732213

Sheet A-400-AG-CENTRO
B2: ÁMBITO GEOGRÁFICO CENTRO | C2: ESTADO DE RENDIMIENTO ECONÓMICO (a valores históricos) | H2: PERÍODO ENERO-DICIEMBRE-2025
C4: AGUA POTABLE
B5: CONCEPTOS | C5: USINA | D5: PERFORACIÓN | E5: MIXTO | F5: SUB-TOTAL | G5: ALCANTARILLADO | H5: OTROS INGRESOS | I5: TOTAL
B6: INGRESOS
B7: Ingresos Variables | C7: 1431841462 | D7: 13435262.76 | E7: 335825558.9 | F7: 1781102283 | I7: 1781102283
B8: Ingresos Fijos | C8: 1039648689 | D8: 12810908.1 | E8: 401378356.5 | F8: 1453837953 | I8: 1453837953
B9: INGRESOS DE EXPLOTACION | C9: 2471490150 | D9: 26246170.86 | E9: 737203915.4 | F9: 3234940236 | I9: 3234940236
B10: Ingresos Alcantarillado | G10: 716094909.8 | I10: 716094909.8
B11: Otros Ingresos | C11: 195110235.5 | D11: 2109606.47 | E11: 68233588.91 | F11: 265453430.8 | G11: 16822396.93 | I11: 282275827.8
B12: TOTAL ING. DE EXPLOTACION | C12: 2666600386 | D12: 28355777.33 | E12: 805437504.3 | F12: 3500393667 | G12: 732917306.8 | I12: 4233310974
B13: COSTOS DE EXPLOTACION
B14: OPERATIVO
B15: Costo Operativo Var | C15: 624870390 | D15: 1600972.36 | E15: 99339838.68 | F15: 725811201 | G15: 98861521.17 | I15: 824672722.2
B16: Costo Operativo Fijo | C16: 433637833.7 | D16: 17363777.06 | E16: 412228702.2 | F16: 863230313 | G16: 480661998.9 | I16: 1343892312
B17: TOTAL OPERATIVO | C17: 1058508224 | D17: 18964749.42 | E17: 511568540.9 | F17: 1589041514 | G17: 579523520 | I17: 2168565034
B18: NO OPERATIVO
B19: COMERCIALIZACION
B20: Comercial Propios | C20: 679168326.8 | D20: 12203186.06 | E20: 239276707.9 | F20: 930648220.7 | G20: 147315244.9 | I20: 1077963466
B21: Comercial Asignados | C21: 230316821.4 | D21: 2449115.39 | E21: 69566406.16 | F21: 302332343 | G21: 63302767.58 | I21: 365635110.6
B22: TOTAL COMERCIALIZACION | C22: 909485148.2 | D22: 14652301.45 | E22: 308843114 | F22: 1232980564 | G22: 210618012.4 | I22: 1443598576
B23: ADMINISTRACION
B24: Administración Propios | C24: 75283613.93 | D24: 1206188.72 | E24: 42095151.97 | F24: 118584954.6 | G24: 16680790.68 | I24: 135265745.3
B25: Administ. Asignados | C25: 299450661.6 | D25: 3184262.69 | E25: 90448045.55 | F25: 393082969.9 | G25: 82304260.22 | I25: 475387230.1
B26: Gastos Fiscales | C26: 112552160 | D26: 1196843.73 | E26: 33995994.04 | F26: 147744997.8 | G26: 30935053.7 | I26: 178680051.5
B27: TOTAL ADMINISTRACION | C27: 487286435.6 | D27: 5587295.14 | E27: 166539191.6 | F27: 659412922.2 | G27: 129920104.6 | I27: 789333026.9
B28: TOTAL NO OPERATIVO | C28: 1396771584 | D28: 20239596.59 | E28: 475382305.6 | F28: 1892393486 | G28: 340538117 | I28: 2232931603
B29: COSTO DE EXPLOTACION | C29: 2455279808 | D29: 39204346.01 | E29: 986950846.5 | F29: 3481435000 | G29: 920061637.1 | I29: 4401496637
B30: RESULTADO DE EXPLOTACION | C30: 211320578.2 | D30: -10848568.68 | E30: -181513342.2 | F30: 18958667.28 | G30: -187144330.3 | I30: -168185663.1
B31: DIVERSOS Y EXTRAORDINARIOS
B32: Ingresos Div. y Extr | C32: 33692513.63 | D32: 358275.35 | E32: 10176707.67 | F32: 44227496.65 | G32: 13361697.39 | I32: 57589194.04
B33: Gtos. Div. y Extraor | C33: 15423046.21 | D33: 164003.76 | E33: 4658478.21 | F33: 20245528.18 | G33: 4239037.12 | I33: 24484565.3
B34: RESULTADOS DIV. Y EXTRAORDINARIOS | C34: 18269467.42 | D34: 194271.59 | E34: 5518229.46 | F34: 23981968.47 | G34: 9122660.27 | I34: 33104628.74
B35: FINANCIEROS
B36: Ingresos Financieros | C36: 231081092.6 | D36: 2457242.55 | E36: 69797251.74 | F36: 303335586.9 | G36: 63512828.19 | I36: 366848415.1
B37: Gastos Financieros | C37: 116610257.8 | D37: 1239996.26 | E37: 35221728.51 | F37: 153071982.6 | G37: 32050425.19 | I37: 185122407.8
B38: RESULTADO FINANCIERO | C38: 114470834.8 | D38: 1217246.29 | E38: 34575523.23 | F38: 150263604.3 | G38: 31462403 | I38: 181726007.3
B39: I.R.A.E. | C39: -52832972.65 | D39: -561808.96 | E39: -15958018.26 | F39: -69352799.87 | G39: -14521185.94 | I39: -83873985.81
B40: RESULTADO NETO | C40: 291227907.7 | D40: 9998859.76 | E40: 157377607.8 | F40: 123851440.2 | G40: -161080453 | I40: -37229012.84

Sheet B-400-AG-CENTRO
C4: ÁMBITO GEOGRÁFICO CENTRO
D6: C O S T O S T O T A L E S
C10: C O N C E P T O | D10: C O S T O S O P E R A T I V O S
D13: AGUA | E13: ALCANTARILLADO | F13: TOTAL
C15: RETRIBUCIONES AL PERSONAL | D15: 415089950.5 | E15: 122188001.1 | F15: 537277951.6
C17: MATERIALES Y SUMINISTROS | D17: 197410251 | E17: 18196125.52 | F17: 215606376.6
C19: ENERGÍA Y FLUÍDOS | D19: 378672377.6 | E19: 58539770.07 | F19: 437212147.7
C21: SERVICIOS CONTRATADOS | D21: 289270097.3 | E21: 183674014.1 | F21: 472944111.4
C23: GASTOS VARIOS | D23: 41380660.52 | E23: 1216057.532 | F23: 42596718.05
C25: AMORTIZACIÓN | D25: 267218177 | E25: 195709553.7 | F25: 462927730.7
C28: TOTAL | D28: 1589041514 | E28: 579523522.1 | F28: 2168565036 | H28: 0.6412468876
C33: C O N C E P T O | D33: C O S T O D E A D M I N I S T R A T I V O - C O M E R C I A L
D36: COMERCIALIZACIÓN | E36: ADMINISTRACIÓN | F36: TOTAL
C38: RETRIBUCIONES AL PERSONAL | D38: 405968958.4 | E38: 68879324.71 | F38: 474848283.1
C40: MATERIALES Y SUMINISTROS | D40: 34781968.96 | E40: 1494488.485 | F40: 36276457.44
C42: ENERGÍA Y FLUÍDOS | D42: 2213400.765 | E42: 24869977.88 | F42: 27083378.65
C44: SERVICIOS CONTRATADOS | D44: 595879545.8 | E44: 34025289.82 | F44: 629904835.6
C46: GASTOS VARIOS | D46: 5667917.299 | E46: 1475966.49 | F46: 7143883.789
C48: AMORTIZACIÓN | D48: 33451674.37 | E48: 4520697.91 | F48: 37972372.28
C52: TOTAL | D52: 1077963466 | E52: 135265745.3 | F52: 1213229211 | H52: 0.3587531124
B57: C O S T O D E E X P L O T A C I Ó N | H57: 3381794245

Sheet C-400-AG-CENTRO
B4: COBERTURAS, COSTOS E INGRESOS PROMEDIO
B6: Á M B I T O G E O G R Á F I C O C E N T R O
C10: 1. COMPOSICIÓN DEL COSTO PROPIO POR CONEXIÓN | D10: OPERATIVOS | F10: ADMINISTRATIVO-COMERCIAL
D12: AGUA | E12: ALCANTARILLADO
D13: ($/conex.agua) | E13: ($/conex.desagüe) | F13: ($/conex.agua)
C15: RETRIBUCIONES AL PERSONAL | D15: 1459.272106 | E15: 1498.540572 | F15: 1669.355891
C17: MATERIALES Y SUMINISTROS | D17: 694.006859 | E17: 223.1612931 | F17: 127.5319298
C19: ENERGÍA Y FLUÍDOS | D19: 1331.244077 | E19: 717.9446402 | F19: 95.21314343
C21: SERVICIOS CONTRATADOS | D21: 1016.945324 | E21: 2252.618584 | F21: 2214.465936
C23: GASTOS VARIOS | D23: 145.4760433 | E23: 14.91399755 | F23: 25.11472592
C25: AMORTIZACIÓN | D25: 939.4205554 | E25: 2400.225093 | F25: 133.494014
C29: TOTAL | D29: 5586.364964 | E29: 7107.40418 | F29: 4265.17564
C32: 2.CONEXIONES (promedio anual) | D32: 284450 | E32: 81538
C35: 3.COBERTURAS COSTO/INGRESO
C37: 3.1 COSTO DE EXPLOTACIÓN/ INGRESO DE EXPLOT. | D37: 0.9945838471 | E37: 1.255341672
C39: 3.3 TOTAL | D39: 0.9317671541 | E39: 1.163051881
C42: 4.M3 ELEVADOS | D42: 62816290
C44: 5.M3 FACTURADOS | D44: 31416430
C47: 6. COSTO PROMEDIO
C49: 6.1 COSTO VARIABLE/ M3ELEVADOS | D49: 11.55450602
C51: 6.2 COSTO VARIABLE / M3FACTURADOS | D51: 23.10291784
C53: 6.3 COSTO EXPLOTACIÓN/M3FACT | D53: 110.815742
C55: 6.4 TOTAL/M3FACT | D55: 114.1249884
C58: 7. INGRESOS PROMEDIO
C60: 7.1 VARIABLE/M3 FACT | D60: 56.69333795
C62: 7.2 FIJO/CONEXIONES | D62: 425.9207691
C64: 7.3 INGRESO EXPLOTACIÓN/M3FACT | D64: 111.4192054
C66: 7.4 TOTAL/M3FACT | D66: 122.4823047

Sheet A-CAN-401
B2: CANELONES | C2: ESTADO DE RENDIMIENTO ECONÓMICO (a valores históricos) | H2: PERÍODO ENERO-DICIEMBRE-2025
C4: AGUA POTABLE
B5: CONCEPTOS | C5: USINA | D5: PERFORACIÓN | E5: MIXTO | F5: SUB-TOTAL | G5: ALCANTARILLADO | H5: OTROS INGRESOS | I5: TOTAL
B6: INGRESOS
B7: Ingresos Variables | C7: 191517361.8 | E7: 75056297.55 | F7: 266573659.3 | I7: 266573659.3
B8: Ingresos Fijos | C8: 118942435.9 | E8: 64665068.16 | F8: 183607504 | I8: 183607504
B9: INGRESOS DE EXPLOTACIÓN | C9: 310459797.6 | E9: 139721365.7 | F9: 450181163.4 | I9: 450181163.4
B10: Ingresos Alcantarillado | G10: 120014713 | I10: 120014713
B11: Otros Ingresos | C11: 25207922.33 | E11: 17893057.62 | F11: 43100979.95 | G11: 2623026.68 | I11: 45724006.63
B12: TOTAL ING. DE EXPLOTACIÓN | C12: 335667720 | E12: 157614423.3 | F12: 493282143.3 | G12: 122637739.7 | I12: 615919883
B13: COSTOS DE EXPLOTACIÓN
B14: OPERATIVO
B15: Costo Operativo Var | C15: 88838529.68 | E15: 24195784.99 | F15: 113034314.7 | G15: 28930754.37 | I15: 141965069
B16: Costo Operativo Fijo | C16: 138958412.3 | E16: 275682170.6 | F16: 414640582.8 | G16: 162047832.7 | I16: 576688415.5
B17: TOTAL OPERATIVO | C17: 227796941.9 | E17: 299877955.6 | F17: 527674897.5 | G17: 190978587 | I17: 718653484.5
B18: NO OPERATIVO
B19: COMERCIALIZACIÓN
B20: Comercial Propios | C20: 135646639 | E20: 72182069.6 | F20: 207828708.6 | G20: 38197439.78 | I20: 246026148.4
B21: Comercial Asignados | C21: 28991941.43 | E21: 13613308.2 | F21: 42605249.63 | G21: 10592338.68 | I21: 53197588.31
B22: TOTAL COMERCIALIZACIÓN | C22: 164638580.4 | E22: 85795377.8 | F22: 250433958.2 | G22: 48789778.46 | I22: 299223736.7
B23: ADMINISTRACIÓN
B24: Administración Propios | C24: 14564798.63 | E24: 7750411.77 | F24: 22315210.4 | G24: 4101377.02 | I24: 26416587.42
B25: Administ. Asignados | C25: 37694407.09 | E25: 17699593.56 | F25: 55394000.65 | G25: 13771824.24 | I25: 69165824.89
B26: Gastos Fiscales | C26: 14167899.73 | E26: 6652606.76 | F26: 20820506.49 | G26: 5176307.12 | I26: 25996813.61
B27: TOTAL ADMINISTRACIÓN | C27: 66427105.45 | E27: 32102612.09 | F27: 98529717.54 | G27: 23049508.38 | I27: 121579225.9
B28: TOTAL NO OPERATIVO | C28: 231065685.9 | E28: 117897989.9 | F28: 348963675.8 | G28: 71839286.84 | I28: 420802962.6
B29: COSTO DE EXPLOTACIÓN | C29: 458862627.8 | E29: 417775945.4 | F29: 876638573.3 | G29: 262817873.9 | I29: 1139456447
B30: RESULTADO DE EXPLOTACIÓN | C30: -123194907.9 | E30: -260161522.1 | F30: -383356430 | G30: -140180134.2 | I30: -523536564.2
B31: DIVERSOS Y EXTRAORDINARIOS
B32: Ingresos Div. y Extr | C32: 4241163.75 | E32: 1991458.68 | F32: 6232622.43 | G32: 2235788.8 | I32: 8468411.23
B33: Gtos. Div. y Extraor | C33: 1941430.24 | E33: 911608.11 | F33: 2853038.35 | G33: 709310.44 | I33: 3562348.79
B34: RESULTADOS DIV. Y EXTRAORDINARIOS | C34: 2299733.51 | E34: 1079850.57 | F34: 3379584.08 | G34: 1526478.36 | I34: 4906062.44
B35: FINANCIEROS
B36: Ingresos Financieros | C36: 29088146.8 | E36: 13658481.88 | F36: 42746628.68 | G36: 10627487.75 | I36: 53374116.43
B37: Gastos Financieros | C37: 14678727.09 | E37: 6892468.24 | F37: 21571195.33 | G37: 5362940.22 | I37: 26934135.55
B38: RESULTADO FINANCIERO | C38: 14409419.71 | E38: 6766013.64 | F38: 21175433.35 | G38: 5264547.53 | I38: 26439980.88
B39: I.R.A.E. | C39: -6650536.61 | E39: -3122792.06 | F39: -9773328.67 | G39: -2429804.03 | I39: -12203132.7
B40: RESULTADO NETO | C40: -113136291.2 | E40: -255438450 | F40: -368574741.2 | G40: -135818912.3 | I40: -504393653.5

Sheet B-CAN-401
B4: C A N E L O N E S
D6: C O S T O S T O T A L E S
C10: C O N C E P T O | D10: C O S T O S O P E R A T I V O S
D13: AGUA | E13: ALCANTARILLADO | F13: TOTAL
C15: RETRIBUCIONES AL PERSONAL | D15: 214362137 | E15: 45456813.04 | F15: 259818950
C17: MATERIALES Y SUMINISTROS | D17: 86528508.5 | E17: 4810996.466 | F17: 91339504.96
C19: ENERGÍA Y FLUÍDOS | D19: 110094139.3 | E19: 16574786.91 | F19: 126668926.2
C21: SERVICIOS CONTRATADOS | D21: 33500093.14 | E21: 44452090.75 | F21: 77952183.88
C23: GASTOS VARIOS | D23: 6772972.085 | E23: 549025.1437 | F23: 7321997.229
C25: AMORTIZACIÓN | D25: 76417047.54 | E25: 79134876.72 | F25: 155551924.3
C28: TOTAL | D28: 527674897.5 | E28: 190978589 | F28: 718653486.5 | H28: 0.7251097015
C33: C O N C E P T O | D33: C O S T O D E A D M I N I S T R A T I V O - C O M E R C I A L
D36: COMERCIALIZACIÓN | E36: ADMINISTRACIÓN | F36: TOTAL
C38: RETRIBUCIONES AL PERSONAL | D38: 87933130.59 | E38: 7985837.517 | F38: 95918968.11
C40: MATERIALES Y SUMINISTROS | D40: 8602180.428 | E40: 459206.0927 | F40: 9061386.52
C42: ENERGÍA Y FLUÍDOS | D42: 620524.8075 | E42: 9290302.419 | F42: 9910827.226
C44: SERVICIOS CONTRATADOS | D44: 146784665.6 | E44: 8166811.111 | F44: 154951476.7
C46: GASTOS VARIOS | D46: 1605916.462 | E46: 165859.8758 | F46: 1771776.338
C48: AMORTIZACIÓN | D48: 479730.5292 | E48: 348570.4049 | F48: 828300.9342
C52: TOTAL | D52: 246026148.4 | E52: 26416587.42 | F52: 272442735.8 | H52: 0.2748902985
B57: C O S T O D E E X P L O T A C I Ó N | H57: 991096220.3

Sheet C-CAN-401
B4: COBERTURAS, COSTOS E INGRESOS PROMEDIO
B6: C A N E L O N E S
C10: 1. COMPOSICIÓN DEL COSTO PROPIO POR CONEXIÓN | D10: OPERATIVOS | F10: ADMINISTRATIVO-COMERCIAL
D12: AGUA | E12: ALCANTARILLADO
D13: ($/conex.agua) | E13: ($/conex.desagüe) | F13: ($/conex.agua)
C15: RETRIBUCIONES AL PERSONAL | D15: 5017.605378 | E15: 2894.600932 | F15: 2245.189086
C17: MATERIALES Y SUMINISTROS | D17: 2025.385246 | E17: 306.3548438 | F17: 212.1011779
C19: ENERGÍA Y FLUÍDOS | D19: 2576.989356 | E19: 1055.450007 | F19: 231.9841587
C21: SERVICIOS CONTRATADOS | D21: 784.1414994 | E21: 2830.622182 | F21: 3626.971506
C23: GASTOS VARIOS | D23: 158.535932 | E23: 34.96084716 | F23: 41.47222363
C25: AMORTIZACIÓN | D25: 1788.704825 | E25: 5039.154147 | F25: 19.38815913
C29: TOTAL | D29: 12351.36224 | E29: 12161.14296 | F29: 6377.106311
C32: 2.CONEXIONES (promedio anual) | D32: 42722 | E32: 15704
C35: 3.COBERTURAS COSTO/INGRESO
C37: 3.1 COSTO DE EXPLOTACIÓN/ INGRESO DE EXPLOT. | D37: 1.777154485 | E37: 2.143042383
C39: 3.3 TOTAL | D39: 1.643652835 | E39: 1.966482082
C42: 4.M3 ELEVADOS | D42: 12187140
C44: 5.M3 FACTURADOS | D44: 4277710
C47: 6. COSTO PROMEDIO
C49: 6.1 COSTO VARIABLE/ M3ELEVADOS | D49: 9.2748844
C51: 6.2 COSTO VARIABLE / M3FACTURADOS | D51: 26.42402469
C53: 6.3 COSTO EXPLOTACIÓN/M3FACT | D53: 204.9317446
C55: 6.4 TOTAL/M3FACT | D55: 208.3566858
C58: 7. INGRESOS PROMEDIO
C60: 7.1 VARIABLE/M3 FACT | D60: 62.31690772
C62: 7.2 FIJO/CONEXIONES | D62: 358.1439384
C64: 7.3 INGRESO EXPLOTACIÓN/M3FACT | D64: 115.3145359
C66: 7.4 TOTAL/M3FACT | D66: 126.7644124

Sheet A-LP-402
B2: LAS PIEDRAS | C2: ESTADO DE RENDIMIENTO ECONÓMICO (a valores históricos) | H2: PERÍODO ENERO-DICIEMBRE-2025
C4: AGUA POTABLE
B5: CONCEPTOS | C5: USINA | D5: PERFORACIÓN | E5: MIXTO | F5: SUB-TOTAL | G5: ALCANTARILLADO | H5: OTROS INGRESOS | I5: TOTAL
B6: INGRESOS
B7: Ingresos Variables | C7: 334469090.8 | F7: 334469090.8 | I7: 334469090.8
B8: Ingresos Fijos | C8: 258678140.7 | F8: 258678140.7 | I8: 258678140.7
B9: INGRESOS DE EXPLOTACIÓN | C9: 593147231.5 | F9: 593147231.5 | I9: 593147231.5
B10: Ingresos Alcantarillado | G10: 91522623.59 | I10: 91522623.59
B11: Otros Ingresos | C11: 52626331.6 | F11: 52626331.6 | G11: 2701574.1 | I11: 55327905.7
B12: TOTAL ING. DE EXPLOTACIÓN | C12: 645773563.1 | F12: 645773563.1 | G12: 94224197.69 | I12: 739997760.8
B13: COSTOS DE EXPLOTACIÓN
B14: OPERATIVO
B15: Costo Operativo Var | C15: 73604132.33 | F15: 73604132.33 | G15: 3761699.21 | I15: 77365831.54
B16: Costo Operativo Fijo | C16: 70230591.3 | F16: 70230591.3 | G16: 33736004.02 | I16: 103966595.3
B17: TOTAL OPERATIVO | C17: 143834723.6 | F17: 143834723.6 | G17: 37497703.23 | I17: 181332426.9
B18: NO OPERATIVO
B19: COMERCIALIZACIÓN
B20: Comercial Propios | C20: 192778196.2 | F20: 192778196.2 | G20: 14448454.23 | I20: 207226650.4
B21: Comercial Asignados | C21: 55776079.3 | F21: 55776079.3 | G21: 8138233.87 | I21: 63914313.17
B22: TOTAL COMERCIALIZACIÓN | C22: 248554275.5 | F22: 248554275.5 | G22: 22586688.1 | I22: 271140963.6
B23: ADMINISTRACIÓN
B24: Administración Propios | C24: 10685211.89 | F24: 10685211.89 | G24: 800841.53 | I24: 11486053.42
B25: Administ. Asignados | C25: 72518297.8 | F25: 72518297.8 | G25: 10581074.78 | I25: 83099372.58
B26: Gastos Fiscales | C26: 27256880.99 | F26: 27256880.99 | G26: 3977025.22 | I26: 31233906.21
B27: TOTAL ADMINISTRACIÓN | C27: 110460390.7 | F27: 110460390.7 | G27: 15358941.53 | I27: 125819332.2
B28: TOTAL NO OPERATIVO | C28: 359014666.2 | F28: 359014666.2 | G28: 37945629.63 | I28: 396960295.8
B29: COSTO DE EXPLOTACIÓN | C29: 502849389.8 | F29: 502849389.8 | G29: 75443332.86 | I29: 578292722.7
B30: RESULTADO DE EXPLOTACIÓN | C30: 142924173.3 | F30: 142924173.3 | G30: 18780864.83 | I30: 161705038.1
B31: DIVERSOS Y EXTRAORDINARIOS
B32: Ingresos Div. y Extr | C32: 8159353.42 | F32: 8159353.42 | G32: 1717786.36 | I32: 9877139.78
B33: Gtos. Div. y Extraor | C33: 3735016.11 | F33: 3735016.11 | G33: 544972.61 | I33: 4279988.72
B34: RESULTADOS DIV. Y EXTRAORDINARIOS | C34: 4424337.31 | F34: 4424337.31 | G34: 1172813.75 | I34: 5597151.06
B35: FINANCIEROS
B36: Ingresos Financieros | C36: 55961163.6 | F36: 55961163.6 | G36: 8165239.45 | I36: 64126403.05
B37: Gastos Financieros | C37: 28239635.01 | F37: 28239635.01 | G37: 4120417.93 | I37: 32360052.94
B38: RESULTADO FINANCIERO | C38: 27721528.59 | F38: 27721528.59 | G38: 4044821.52 | I38: 31766350.11
B39: I.R.A.E. | C39: -12794619.38 | F39: -12794619.38 | G39: -1866850.58 | I39: -14661469.96
B40: RESULTADO NETO | C40: 162275419.8 | F40: 162275419.8 | G40: 22131649.52 | I40: 184407069.3

Sheet B-LP-402
B4: L A S P I E D R A S
D6: C O S T O S T O T A L E S
C10: C O N C E P T O | D10: C O S T O S O P E R A T I V O S
D13: AGUA | E13: ALCANTARILLADO | F13: TOTAL
C15: RETRIBUCIONES AL PERSONAL | D15: 7915745.047 | E15: 7147307.568 | F15: 15063052.62
C17: MATERIALES Y SUMINISTROS | D17: 2144619.21 | E17: 1881250.916 | F17: 4025870.126
C19: ENERGÍA Y FLUÍDOS | D19: 43941020.03 | E19: 580610.7278 | F19: 44521630.75
C21: SERVICIOS CONTRATADOS | D21: 41384171.22 | E21: 22220788.34 | F21: 63604959.56
C23: GASTOS VARIOS | D23: 15574327.98 | E23: 59506.35655 | F23: 15633834.34
C25: AMORTIZACIÓN | D25: 32874840.15 | E25: 5608239.318 | F25: 38483079.46
C28: TOTAL | D28: 143834723.6 | E28: 37497703.23 | F28: 181332426.9 | H28: 0.453279925
C33: C O N C E P T O | D33: C O S T O D E A D M I N I S T R A T I V O - C O M E R C I A L
D36: COMERCIALIZACIÓN | E36: ADMINISTRACIÓN | F36: TOTAL
C38: RETRIBUCIONES AL PERSONAL | D38: 75838862.79 | E38: 7428584.161 | F38: 83267446.95
C40: MATERIALES Y SUMINISTROS | D40: 7045802.01 | E40: 127683.7091 | F40: 7173485.719
C42: ENERGÍA Y FLUÍDOS | D42: 240229.7336 | E42: 977000.8785 | F42: 1217230.612
C44: SERVICIOS CONTRATADOS | D44: 115250241 | E44: 2094431.05 | F44: 117344672
C46: GASTOS VARIOS | D46: 1054963.141 | E46: 189507.0174 | F46: 1244470.158
C48: AMORTIZACIÓN | D48: 7796551.784 | E48: 668846.6046 | F48: 8465398.389
C52: TOTAL | D52: 207226650.5 | E52: 11486053.42 | F52: 218712703.9 | H52: 0.546720075
B57: C O S T O D E E X P L O T A C I Ó N | H57: 400045130.7

Sheet C-LP-402
B4: COBERTURAS, COSTOS E INGRESOS PROMEDIO
B6: L A S P I E D R A S
C10: 1. COMPOSICIÓN DEL COSTO PROPIO POR CONEXIÓN | D10: OPERATIVOS | F10: ADMINISTRATIVO-COMERCIAL
D12: AGUA | E12: ALCANTARILLADO
D13: ($/conex.agua) | E13: ($/conex.desagüe) | F13: ($/conex.agua)
C15: RETRIBUCIONES AL PERSONAL | D15: 142.7855451 | E15: 860.0851466 | F15: 1501.992261
C17: MATERIALES Y SUMINISTROS | D17: 38.68500326 | E17: 226.383985 | F17: 129.396546
C19: ENERGÍA Y FLUÍDOS | D19: 792.6155349 | E19: 69.86892032 | F19: 21.95661121
C21: SERVICIOS CONTRATADOS | D21: 746.4946647 | E21: 2673.98175 | F21: 2116.682998
C23: GASTOS VARIOS | D23: 280.9323565 | E23: 7.160813063 | F23: 22.44796274
C25: AMORTIZACIÓN | D25: 593.0019147 | E25: 674.8783776 | F25: 152.7002848
C29: TOTAL | D29: 2594.515019 | E29: 4512.358992 | F29: 3945.176663
C32: 2.CONEXIONES (promedio anual) | D32: 55438 | E32: 8310
C35: 3.COBERTURAS COSTO/INGRESO
C37: 3.1 COSTO DE EXPLOTACIÓN/ INGRESO DE EXPLOT. | D37: 0.7786775715 | E37: 0.8006789626
C39: 3.3 TOTAL | D39: 0.73536241 | E39: 0.7515508549
C42: 4.M3 ELEVADOS | D42: 14470630
C44: 5.M3 FACTURADOS | D44: 6163170
C47: 6. COSTO PROMEDIO
C49: 6.1 COSTO VARIABLE/ M3ELEVADOS | D49: 5.086449749
C51: 6.2 COSTO VARIABLE / M3FACTURADOS | D51: 11.94257701
C53: 6.3 COSTO EXPLOTACIÓN/M3FACT | D53: 81.5894077
C55: 6.4 TOTAL/M3FACT | D55: 84.70144772
C58: 7. INGRESOS PROMEDIO
C60: 7.1 VARIABLE/M3 FACT | D60: 54.26900293
C62: 7.2 FIJO/CONEXIONES | D62: 388.8399965
C64: 7.3 INGRESO EXPLOTACIÓN/M3FACT | D64: 104.77945
C66: 7.4 TOTAL/M3FACT | D66: 115.183271

Sheet A-SAT-403
B2: SISTEMA ATLÁNTIDA | C2: ESTADO DE RENDIMIENTO ECONÓMICO (a valores históricos) | H2: PERÍODO ENERO-DICIEMBRE-2025
C4: AGUA POTABLE
B5: CONCEPTOS | C5: USINA | D5: PERFORACIÓN | E5: MIXTO | F5: SUB-TOTAL | G5: ALCANTARILLADO | H5: OTROS INGRESOS | I5: TOTAL
B6: INGRESOS
B7: Ingresos Variables | C7: 198441155 | E7: 237061626.9 | F7: 435502781.9 | I7: 435502781.9
B8: Ingresos Fijos | C8: 127365853.6 | E8: 311924541.1 | F8: 439290394.6 | I8: 439290394.6
B9: INGRESOS DE EXPLOTACIÓN | C9: 325807008.6 | E9: 548986168 | F9: 874793176.5 | I9: 874793176.5
B10: Ingresos Alcantarillado | G10: 66223862.17 | I10: 66223862.17
B11: Otros Ingresos | C11: 28097227.29 | E11: 46584199.07 | F11: 74681426.36 | G11: 950189.21 | I11: 75631615.57
B12: TOTAL ING. DE EXPLOTACIÓN | C12: 353904235.9 | E12: 595570367 | F12: 949474602.9 | G12: 67174051.38 | I12: 1016648654
B13: COSTOS DE EXPLOTACIÓN
B14: OPERATIVO
B15: Costo Operativo Var | C15: 157282629.4 | E15: 67020424.2 | F15: 224303053.6 | G15: 3774820.47 | I15: 228077874.1
B16: Costo Operativo Fijo | C16: 19720826.69 | E16: 99772155.4 | F16: 119492982.1 | G16: 7450201.9 | I16: 126943184
B17: TOTAL OPERATIVO | C17: 177003456.1 | E17: 166792579.6 | F17: 343796035.7 | G17: 11225022.37 | I17: 355021058
B18: NO OPERATIVO
B19: COMERCIALIZACIÓN
B20: Comercial Propios | C20: 69155882.84 | E20: 142103540 | F20: 211259422.9 | G20: 9919409.46 | I20: 221178832.3
B21: Comercial Asignados | C21: 30567046.81 | E21: 51439981.1 | F21: 82007027.91 | G21: 5801886.87 | I21: 87808914.78
B22: TOTAL COMERCIALIZACIÓN | C22: 99722929.65 | E22: 193543521.1 | F22: 293266450.8 | G22: 15721296.33 | I22: 308987747.1
B23: ADMINISTRACIÓN
B24: Administración Propios | C24: 15512026.19 | E24: 31874567.16 | F24: 47386593.35 | G24: 2224975.4 | I24: 49611568.75
B25: Administ. Asignados | C25: 39742309.57 | E25: 66880640.12 | F25: 106622949.7 | G25: 7543430.38 | I25: 114166380.1
B26: Gastos Fiscales | C26: 14937628.61 | E26: 25137899.03 | F26: 40075527.64 | G26: 2835289.69 | I26: 42910817.33
B27: TOTAL ADMINISTRACIÓN | C27: 70191964.37 | E27: 123893106.3 | F27: 194085070.7 | G27: 12603695.47 | I27: 206688766.2
B28: TOTAL NO OPERATIVO | C28: 169914894 | E28: 317436627.4 | F28: 487351521.5 | G28: 28324991.8 | I28: 515676513.3
B29: COSTO DE EXPLOTACIÓN | C29: 346918350.1 | E29: 484229207.1 | F29: 831147557.1 | G29: 39550014.17 | I29: 870697571.3
B30: RESULTADO DE EXPLOTACIÓN | C30: 6985885.76 | E30: 111341160 | F30: 118327045.8 | G30: 27624037.21 | I30: 145951083
B31: DIVERSOS Y EXTRAORDINARIOS
B32: Ingresos Div. y Extr | C32: 4471582.24 | E32: 7525035.76 | F32: 11996618 | G32: 1224639.51 | I32: 13221257.51
B33: Gtos. Div. y Extraor | C33: 2046906.38 | E33: 3444651.58 | F33: 5491557.96 | G33: 388520.4 | I33: 5880078.36
B34: RESULTADOS DIV. Y EXTRAORDINARIOS | C34: 2424675.86 | E34: 4080384.18 | F34: 6505060.04 | G34: 836119.11 | I34: 7341179.15
B35: FINANCIEROS
B36: Ingresos Financieros | C36: 30668478.85 | E36: 51610676.96 | F36: 82279155.81 | G36: 5821139.6 | I36: 88100295.41
B37: Gastos Financieros | C37: 15476208.76 | E37: 26044252.56 | F37: 41520461.32 | G37: 2937516.8 | I37: 44457978.12
B38: RESULTADO FINANCIERO | C38: 15192270.09 | E38: 25566424.4 | F38: 40758694.49 | G38: 2883622.8 | I38: 43642317.29
B39: I.R.A.E. | C39: -7011854.09 | E39: -11799950.63 | F39: -18811804.72 | G39: -1330909.88 | I39: -20142714.6
B40: RESULTADO NETO | C40: 17590977.62 | E40: 129188018 | F40: 146778995.6 | G40: 30012869.24 | I40: 176791864.8

Sheet B-SAT-403
B4: S I S T E M A A T L Á N T I D A
D6: C O S T O S T O T A L E S
C10: C O N C E P T O | D10: C O S T O S O P E R A T I V O S
D13: AGUA | E13: ALCANTARILLADO | F13: TOTAL
C15: RETRIBUCIONES AL PERSONAL | D15: 58903318.69 | E15: 353739.2538 | F15: 59257057.94
C17: MATERIALES Y SUMINISTROS | D17: 35917311.15 | E17: 356856.2676 | F17: 36274167.42
C19: ENERGÍA Y FLUÍDOS | D19: 95563908.08 | E19: 3459363.919 | F19: 99023272
C21: SERVICIOS CONTRATADOS | D21: 79505555.32 | E21: 1997264.926 | F21: 81502820.24
C23: GASTOS VARIOS | D23: 12975753.9 | E23: 7161.481631 | F23: 12982915.39
C25: AMORTIZACIÓN | D25: 60930188.53 | E25: 5050636.522 | F25: 65980825.05
C28: TOTAL | D28: 343796035.7 | E28: 11225022.37 | F28: 355021058 | H28: 0.5672971513
C33: C O N C E P T O | D33: C O S T O D E A D M I N I S T R A T I V O - C O M E R C I A L
D36: COMERCIALIZACIÓN | E36: ADMINISTRACIÓN | F36: TOTAL
C38: RETRIBUCIONES AL PERSONAL | D38: 80137234.46 | E38: 36325312.24 | F38: 116462546.7
C40: MATERIALES Y SUMINISTROS | D40: 5168719.593 | E40: 329973.6404 | F40: 5498693.233
C42: ENERGÍA Y FLUÍDOS | D42: 897486.7896 | E42: 4325085.036 | F42: 5222571.826
C44: SERVICIOS CONTRATADOS | D44: 121963792.5 | E44: 7054168.724 | F44: 129017961.2
C46: GASTOS VARIOS | D46: 1050999.78 | E46: 349665.8203 | F46: 1400665.601
C48: AMORTIZACIÓN | D48: 11960599.25 | E48: 1227363.285 | F48: 13187962.53
C52: TOTAL | D52: 221178832.3 | E52: 49611568.75 | F52: 270790401.1 | H52: 0.4327028487
B57: C O S T O D E E X P L O T A C I Ó N | H57: 625811459.1

Sheet C-SAT-403
B4: COBERTURAS, COSTOS E INGRESOS PROMEDIO
B6: S I S T E M A A T L Á N T I D A
C10: 1. COMPOSICIÓN DEL COSTO PROPIO POR CONEXIÓN | D10: OPERATIVOS | F10: ADMINISTRATIVO-COMERCIAL
D12: AGUA | E12: ALCANTARILLADO
D13: ($/conex.agua) | E13: ($/conex.desagüe) | F13: ($/conex.agua)
C15: RETRIBUCIONES AL PERSONAL | D15: 743.4753138 | E15: 47.54559863 | F15: 1469.985569
C17: MATERIALES Y SUMINISTROS | D17: 453.3468534 | E17: 47.9645521 | F17: 69.40428431
C19: ENERGÍA Y FLUÍDOS | D19: 1206.203795 | E19: 464.9682686 | F19: 65.91909104
C21: SERVICIOS CONTRATADOS | D21: 1003.515914 | E21: 268.4495869 | F21: 1628.459505
C23: GASTOS VARIOS | D23: 163.7794427 | E23: 0.9625647353 | F23: 17.67914474
C25: AMORTIZACIÓN | D25: 769.0583833 | E25: 678.8489949 | F25: 166.4579314
C29: TOTAL | D29: 4339.379702 | E29: 1508.739566 | F29: 3417.905526
C32: 2.CONEXIONES (promedio anual) | D32: 79227 | E32: 7440
C35: 3.COBERTURAS COSTO/INGRESO
C37: 3.1 COSTO DE EXPLOTACIÓN/ INGRESO DE EXPLOT. | D37: 0.8753762919 | E37: 0.588769225
C39: 3.3 TOTAL | D39: 0.8233269093 | E39: 0.5597579679
C42: 4.M3 ELEVADOS | D42: 16967860
C44: 5.M3 FACTURADOS | D44: 7895520
C47: 6. COSTO PROMEDIO
C49: 6.1 COSTO VARIABLE/ M3ELEVADOS | D49: 13.2192895
C51: 6.2 COSTO VARIABLE / M3FACTURADOS | D51: 28.40890196
C53: 6.3 COSTO EXPLOTACIÓN/M3FACT | D53: 105.27
C55: 6.4 TOTAL/M3FACT | D55: 108.8399208
C58: 7. INGRESOS PROMEDIO
C60: 7.1 VARIABLE/M3 FACT | D60: 55.15821401
C62: 7.2 FIJO/CONEXIONES | D62: 462.0588043
C64: 7.3 INGRESO EXPLOTACIÓN/M3FACT | D64: 120.2548538
C66: 7.4 TOTAL/M3FACT | D66: 132.1952673

Sheet A-CC-404
B2: CIUDAD DE LA COSTA | C2: ESTADO DE RENDIMIENTO ECONÓMICO (a valores históricos) | H2: PERÍODO ENERO-DICIEMBRE-2025
C4: AGUA POTABLE
B5: CONCEPTOS | C5: USINA | F5: SUB-TOTAL | G5: ALCANTARILLADO | H5: OTROS INGRESOS | I5: TOTAL
B6: INGRESOS
B7: Ingresos Variables | C7: 458233003.1 | F7: 458233003.1 | I7: 458233003.1
B8: Ingresos Fijos | C8: 342781909.6 | F8: 342781909.6 | I8: 342781909.6
B9: INGRESOS DE EXPLOTACIÓN | C9: 801014912.7 | F9: 801014912.7 | I9: 801014912.7
B10: Ingresos Alcantarillado | G10: 182948893 | I10: 182948893
B11: Otros Ingresos | C11: 48269932.85 | F11: 48269932.85 | G11: 4935924.35 | I11: 53205857.2
B12: TOTAL ING. DE EXPLOTACIÓN | C12: 849284845.5 | F12: 849284845.5 | G12: 187884817.4 | I12: 1037169663
B13: COSTOS DE EXPLOTACIÓN
B14: OPERATIVO
B15: Costo Operativo Var | C15: 219833913.8 | F15: 219833913.8 | G15: 20765372.91 | I15: 240599286.7
B16: Costo Operativo Fijo | C16: 35125579.76 | F16: 35125579.76 | G16: 136220529.6 | I16: 171346109.3
B17: TOTAL OPERATIVO | C17: 254959493.6 | F17: 254959493.6 | G17: 156985902.5 | I17: 411945396
B18: NO OPERATIVO
B19: COMERCIALIZACIÓN
B20: Comercial Propios | C20: 104757428.1 | F20: 104757428.1 | G20: 15139495.35 | I20: 119896923.5
B21: Comercial Asignados | C21: 73353543.03 | F21: 73353543.03 | G21: 16227791.07 | I21: 89581334.1
B22: TOTAL COMERCIALIZACIÓN | C22: 178110971.1 | F22: 178110971.1 | G22: 31367286.42 | I22: 209478257.6
B23: ADMINISTRACIÓN
B24: Administración Propios | C24: 15821654.47 | F24: 15821654.47 | G24: 2286538.19 | I24: 18108192.66
B25: Administ. Asignados | C25: 95371961.49 | F25: 95371961.49 | G25: 21098861.63 | I25: 116470823.1
B26: Gastos Fiscales | C26: 35846707.45 | F26: 35846707.45 | G26: 7930262.87 | I26: 43776970.32
B27: TOTAL ADMINISTRACIÓN | C27: 147040323.4 | F27: 147040323.4 | G27: 31315662.69 | I27: 178355986.1
B28: TOTAL NO OPERATIVO | C28: 325151294.6 | F28: 325151294.6 | G28: 62682949.11 | I28: 387834243.7
B29: COSTO DE EXPLOTACIÓN | C29: 580110788.1 | F29: 580110788.1 | G29: 219668851.6 | I29: 799779639.7
B30: RESULTADO DE EXPLOTACIÓON | C30: 269174057.4 | F30: 269174057.4 | G30: -31784034.19 | I30: 237390023.2
B31: DIVERSOS Y EXTRAORDINARIOS
B32: Ingresos Div. y Extr | C32: 10730720.14 | F32: 10730720.14 | G32: 3425297.77 | I32: 14156017.91
B33: Gtos. Div. y Extraor | C33: 4912081.96 | F33: 4912081.96 | G33: 1086685.63 | I33: 5998767.59
B34: RESULTADOS DIV. Y EXTRAORDINARIOS | C34: 5818638.18 | F34: 5818638.18 | G34: 2338612.14 | I34: 8157250.32
B35: FINANCIEROS
B36: Ingresos Financieros | C36: 73596955.57 | F36: 73596955.57 | G36: 16281640.5 | I36: 89878596.07
B37: Gastos Financieros | C37: 37139169.91 | F37: 37139169.91 | G37: 8216190.59 | I37: 45355360.5
B38: RESULTADO FINANCIERO | C38: 36457785.66 | F38: 36457785.66 | G38: 8065449.91 | I38: 44523235.57
B39: I.R.A.E. | C39: -16826759.37 | F39: -16826759.37 | G39: -3722535.05 | I39: -20549294.42
B40: RESULTADO NETO | C40: 294623721.9 | F40: 294623721.9 | G40: -25102507.19 | I40: 269521214.7

Sheet B-CC-404
B4: C I U D A D D E L A C O S T A
D6: C O S T O S T O T A L E S
C10: C O N C E P T O | D10: C O S T O S O P E R A T I V O S
D13: AGUA | E13: ALCANTARILLADO | F13: TOTAL
C15: RETRIBUCIONES AL PERSONAL | D15: 24775318.73 | E15: 11994284.42 | F15: 36769603.15
C17: MATERIALES Y SUMINISTROS | D17: 17462293.32 | E17: 4501129.76 | F17: 21963423.08
C19: ENERGÍA Y FLUÍDOS | D19: 91381395.14 | E19: 10837173.08 | F19: 102218568.2
C21: SERVICIOS CONTRATADOS | D21: 72345359.67 | E21: 64279687.2 | F21: 136625046.9
C23: GASTOS VARIOS | D23: 2430020.75 | E23: 96374.72 | F23: 2526395.47
C25: AMORTIZACIÓN | D25: 46565105.95 | E25: 65277253.28 | F25: 111842359.2
C28: TOTAL | D28: 254959493.6 | E28: 156985902.5 | F28: 411945396 | H28: 0.7490590279
C33: C O N C E P T O | D33: C O S T O D E A D M I N I S T R A T I V O - C O M E R C I A L
D36: COMERCIALIZACIÓN | E36: ADMINISTRACIÓN | F36: TOTAL
C38: RETRIBUCIONES AL PERSONAL | D38: 23387894.67 | E38: 7054798.318 | F38: 30442692.98
C40: MATERIALES Y SUMINISTROS | D40: 4457774.67 | E40: 154352.612 | F40: 4612127.282
C42: ENERGÍIA Y FLUÍDOS | D42: 102770.5754 | E42: 2525816.287 | F42: 2628586.863
C44: SERVICIOS CONTRATADOS | D44: 85418625.7 | E44: 7277021.291 | F44: 92695646.99
C46: GASTOS VARIOS | D46: 406994.104 | E46: 166452.8651 | F46: 573446.9691
C48: AMORTIZACIÓN | D48: 6122863.743 | E48: 929751.2867 | F48: 7052615.029
C52: TOTAL | D52: 119896923.5 | E52: 18108192.66 | F52: 138005116.1 | H52: 0.2509409721
B57: C O S T O D E E X P L O T A C I Ó N | H57: 549950512.1

Sheet C-CC-404
B4: COBERTURAS, COSTOS E INGRESOS PROMEDIO
B5: C I U D A D D E LA C O S T A
C10: 1. COMPOSICIÓN DEL COSTO PROPIO POR CONEXIÓN | D10: OPERATIVOS | F10: ADMINISTRATIVO-COMERCIAL
D12: AGUA | E12: ALCANTARILLADO
D13: ($/conex.agua) | E13: ($/conex.desagüe) | F13: ($/conex.agua)
C15: RETRIBUCIONES AL PERSONAL | D15: =+'B-CC-404'!D15/'C-CC-404'!$D$32 -> 461.2880286 | E15: =+'B-CC-404'!E15/'C-CC-404'!$E$32 -> 772.6284733 | F15: =(+'B-CC-404'!D38+'B-CC-404'!E38)/$D$32 -> 566.8080393
C17: MATERIALES Y SUMINISTROS | D17: =+'B-CC-404'!D17/'C-CC-404'!$D$32 -> 325.1278803 | E17: =+'B-CC-404'!E17/'C-CC-404'!$E$32 -> 289.9465189 | F17: =(+'B-CC-404'!D40+'B-CC-404'!E40)/$D$32 -> 85.87252197
C19: ENERGÍA Y FLUÍDOS | D19: =+'B-CC-404'!D19/'C-CC-404'!$D$32 -> 1701.416804 | E19: =+'B-CC-404'!E19/'C-CC-404'!$E$32 -> 698.0915408 | F19: =(+'B-CC-404'!D42+'B-CC-404'!E42)/$D$32 -> 48.94127358
C21: SERVICIOS CONTRATADOS | D21: =+'B-CC-404'!D21/'C-CC-404'!$D$32 -> 1346.98765 | E21: =+'B-CC-404'!E21/'C-CC-404'!$E$32 -> 4140.665241 | F21: =(+'B-CC-404'!D44+'B-CC-404'!E44)/$D$32 -> 1725.886667
C23: GASTOS VARIOS | D23: =+'B-CC-404'!D23/'C-CC-404'!$D$32 -> 45.24420022 | E23: =+'B-CC-404'!E23/'C-CC-404'!$E$32 -> 6.208111312 | F23: =(+'B-CC-404'!D46+'B-CC-404'!E46)/$D$32 -> 10.67692508
C25: AMORTIZACIÓN | D25: =+'B-CC-404'!D25/'C-CC-404'!$D$32 -> 866.9888836 | E25: =+'B-CC-404'!E25/'C-CC-404'!$E$32 -> 4204.924844 | F25: =(+'B-CC-404'!D48+'B-CC-404'!E48)/$D$32 -> 131.3116057
C29: TOTAL | D29: =SUM(D15:D25) -> 4747.053447 | E29: =SUM(E15:E25) -> 10112.46473 | F29: 2569.497033
C32: 2.CONEXIONES (promedio anual) | D32: 53709 | E32: 15524
C35: 3.COBERTURAS COSTO/INGRESO
C37: 3.1 COSTO DE EXPLOTACIÓN/ INGRESO DE EXPLOT. | D37: =+'A-CC-404'!F29/'A-CC-404'!F12 -> 0.6830579765 | E37: =+'A-CC-404'!G29/'A-CC-404'!G12 -> 1.169167656
C39: 3.3 TOTAL | D39: =(+'A-CC-404'!F29+'A-CC-404'!F33+'A-CC-404'!F37+'A-CC-404'!F39)/('A-CC-404'!F12+'A-CC-404'!F32+'A-CC-404'!F36) -> 0.6483795652 | E39: =(+'A-CC-404'!G29+'A-CC-404'!G33+'A-CC-404'!G37+'A-CC-404'!G39)/('A-CC-404'!G12+'A-CC-404'!G32+'A-CC-404'!G36) -> 1.08505847
C42: 4.M3 ELEVADOS | D42: 10853570
C44: 5.M3 FACTURADOS | D44: 7756390
C47: 6. COSTO PROMEDIO
C49: 6.1 COSTO VARIABLE/ M3ELEVADOS | D49: =+'A-CC-404'!F15/'C-CC-404'!D42 -> 20.25452582
C51: 6.2 COSTO VARIABLE / M3FACTURADOS | D51: =+'A-CC-404'!F15/'C-CC-404'!D44 -> 28.34229762
C53: 6.3 COSTO EXPLOTACIÓN/M3FACT | D53: =+'A-CC-404'!F29/'C-CC-404'!D44 -> 74.79133825
C55: 6.4 TOTAL/M3FACT | D55: =(+'A-CC-404'!F29+'A-CC-404'!F33+'A-CC-404'!F37+'A-CC-404'!F39)/D44 -> 78.04343008
C58: 7. INGRESOS PROMEDIO
C60: 7.1 VARIABLE/M3 FACT | D60: =+'A-CC-404'!F7/'C-CC-404'!D44 -> 59.07812824
C62: 7.2 FIJO/CONEXIONES | D62: =(+'A-CC-404'!F8/12)/'C-CC-404'!D32 -> 531.8505117
C64: 7.3 INGRESO EXPLOTACIÓN/M3FACT | D64: =('A-CC-404'!F12)/D44 -> 109.4948611
C66: 7.4 TOTAL/M3FACT | D66: =('A-CC-404'!F12+'A-CC-404'!F32+'A-CC-404'!F36)/D44 -> 120.3668873

Sheet A-FDA-405
B2: FLORIDA | C2: ESTADO DE RENDIMIENTO ECONÓMICO (a valores históricos) | G2: PERÍODO ENERO-DICIEMBRE-2025
C4: AGUA POTABLE
B5: CONCEPTOS | C5: USINA | D5: PERFORACIÓN | E5: MIXTO | F5: SUB-TOTAL | G5: ALCANTARILLADO | H5: OTROS INGRESOS | I5: TOTAL
B6: INGRESOS
B7: Ingresos Variables | C7: 110298513.4 | D7: 7036863.23 | E7: 23707634.37 | F7: 141043011 | I7: 141043011
B8: Ingresos Fijos | C8: 90964488.21 | D8: 7197170.03 | E8: 24788747.3 | F8: 122950405.5 | I8: 122950405.5
B9: INGRESOS DE EXPLOTACIÓN | C9: 201263001.6 | D9: 14234033.26 | E9: 48496381.67 | F9: 263993416.5 | I9: 263993416.5
B10: Ingresos Alcantarillado | G10: 130259345.5 | I10: 130259345.5
B11: Otros Ingresos | C11: 15595450.37 | D11: 950512.92 | E11: 3756332.22 | F11: 20302295.51 | G11: 2254309.37 | I11: 22556604.88
B12: TOTAL ING. DE EXPLOTACIÓN | C12: 216858451.9 | D12: 15184546.18 | E12: 52252713.89 | F12: 284295712 | G12: 132513654.9 | I12: 416809366.9
B13: COSTOS DE EXPLOTACIÓN
B14: OPERATIVO
B15: Costo Operativo Var | C15: 39728289.75 | D15: 1510857.85 | E15: 8123629.49 | F15: 49362777.09 | G15: 29032339.01 | I15: 78395116.1
B16: Costo Operativo Fijo | C16: 96476038.8 | D16: 11600557.43 | E16: 36774376.23 | F16: 144850972.5 | G16: 112953353.5 | I16: 257804326
B17: TOTAL OPERATIVO | C17: 136204328.6 | D17: 13111415.28 | E17: 44898005.72 | F17: 194213749.6 | G17: 141985692.5 | I17: 336199442.1
B18: NO OPERATIVO
B19: COMERCIALIZACIÓN
B20: Comercial Propios | C20: 98523970.16 | D20: 12203186.06 | E20: 24991098.23 | F20: 135718254.4 | G20: 44829000.73 | I20: 180547255.2
B21: Comercial Asignados | C21: 18730271.48 | D21: 1311503.75 | E21: 4513116.86 | F21: 24554892.09 | G21: 11445330.93 | I21: 36000223.02
B22: TOTAL COMERCIALIZACIÓN | C22: 117254241.6 | D22: 13514689.81 | E22: 29504215.09 | F22: 160273146.5 | G22: 56274331.66 | I22: 216547478.2
B23: ADMINISTRACIÓN
B24: Administración Propios | C24: 9738317.7 | D24: 1206188.72 | E24: 2470173.04 | F24: 13414679.46 | G24: 4430993.29 | I24: 17845672.75
B25: Administ. Asignados | C25: 24352507.67 | D25: 1705175.96 | E25: 5867811.87 | F25: 31925495.5 | G25: 14880858.19 | I25: 46806353.69
B26: Gastos Fiscales | C26: 9153185.19 | D26: 640910.98 | E26: 2205488.25 | F26: 11999584.42 | G26: 5593150.82 | I26: 17592735.24
B27: TOTAL ADMINISTRACIÓN | C27: 43244010.56 | D27: 3552275.66 | E27: 10543473.16 | F27: 57339759.38 | G27: 24905002.3 | I27: 82244761.68
B28: TOTAL NO OPERATIVO | C28: 160498252.2 | D28: 17066965.47 | E28: 40047688.25 | F28: 217612905.9 | G28: 81179333.96 | I28: 298792239.9
B29: COSTO DE EXPLOTACIÓN | C29: 296702580.8 | D29: 30178380.75 | E29: 84945693.97 | F29: 411826655.5 | G29: 223165026.5 | I29: 634991682
B30: RESULTADO DE EXPLOTACIÓN | C30: -79844128.81 | D30: -14993834.57 | E30: -32692980.08 | F30: -127530943.5 | G30: -90651371.61 | I30: -218182315.1
B31: DIVERSOS Y EXTRAORDINARIOS
B32: Ingresos Div. y Extr | C32: 2740007.61 | D32: 191856.76 | E32: 660213.23 | F32: 3592077.6 | G32: 2415835.03 | I32: 6007912.63
B33: Gtos. Div. y Extraor | C33: 1254262.9 | D33: 87824.17 | E33: 302218.52 | F33: 1644305.59 | G33: 766430.67 | I33: 2410736.26
B34: RESULTADOS DIV. Y EXTRAORDINARIOS | C34: 1485744.71 | D34: 104032.59 | E34: 357994.71 | F34: 1947772.01 | G34: 1649404.36 | I34: 3597176.37
B35: FINANCIEROS
B36: Ingresos Financieros | C36: 18792425.1 | D36: 1315855.76 | E36: 4528092.9 | F36: 24636373.76 | G36: 11483310.49 | I36: 36119684.25
B37: Gastos Financieros | C37: 9483205.72 | D37: 664019.2 | E37: 2285007.71 | F37: 12432232.63 | G37: 5794813.34 | I37: 18227045.97
B38: RESULTADO FINANCIERO | C38: 9309219.38 | D38: 651836.56 | E38: 2243085.19 | F38: 12204141.13 | G38: 5688497.15 | I38: 17892638.28
B39: I.R.A.E. | C39: -4296585.54 | D39: -300849.24 | E39: -1035275.57 | F39: -5632710.35 | G39: -2625474.12 | I39: -8258184.47
B40: RESULTADO NETO | C40: -73345750.26 | D40: -14538814.66 | E40: -31127175.75 | F40: -119011740.7 | G40: -85938944.22 | I40: -204950684.9

Sheet B-FDA-405
B4: F LO R I D A
D6: C O S T O S T O T A L E S
C10: C O N C E P T O | D10: C O S T O S O P E R A T I V O S
D13: AGUA | E13: ALCANTARILLADO | F13: TOTAL
C15: RETRIBUCIONES AL PERSONAL | D15: 72510841.18 | E15: 46834960.15 | F15: 119345801.3
C17: MATERIALES Y SUMINISTROS | D17: 33206854.66 | E17: 5651470.363 | F17: 38858325.02
C19: ENERGÍA Y FLUÍDOS | D19: 17147473.57 | E19: 18276330.82 | F19: 35423804.4
C21: SERVICIOS CONTRATADOS | D21: 46013696.58 | E21: 45153240.98 | F21: 91166937.56
C23: GASTOS VARIOS | D23: 1510127.416 | E23: 418463.2426 | F23: 1928590.658
C25: AMORTIZACIÓN | D25: 23824756.14 | E25: 25651226.96 | F25: 49475983.1
C28: TOTAL | D28: 194213749.5 | E28: 141985692.5 | F28: 336199442.1 | H28: 0.6288893388
C33: C O N C E P T O | D33: C O S T O D E A D M I N I S T R A T I V O - C O M E R C I A L
D36: COMERCIALIZACIÓN | E36: ADMINISTRACIÓN | F36: TOTAL
C38: RETRIBUCIONES AL PERSONAL | D38: 84512990.81 | E38: 5844304.756 | F38: 90357295.56
C40: MATERIALES Y SUMINISTROS | D40: 4496558.371 | E40: 167769.7169 | F40: 4664328.088
C42: ENERGÍA Y FLUÍDOS | D42: 204897.8568 | E42: 3900944.162 | F42: 4105842.019
C44: SERVICIOS CONTRATADOS | D44: 87392469.42 | E44: 6367473.867 | F44: 93759943.29
C46: GASTOS VARIOS | D46: 773475.3123 | E46: 570791.2321 | F46: 1344266.544
C48: AMORTIZACIÓN | D48: 3166863.41 | E48: 994389.0156 | F48: 4161252.425
C52: TOTAL | D52: 180547255.2 | E52: 17845672.75 | F52: 198392927.9 | H52: 0.3711106612
B57: C O S T O D E E X P L O T A C I Ó N | H57: 534592370

Sheet C-FDA-405
B4: COBERTURAS, COSTOS E INGRESOS PROMEDIO
B6: F L O R I D A
C10: 1. COMPOSICIÓN DEL COSTO PROPIO POR CONEXIÓN | D10: OPERATIVOS | F10: ADMINISTRATIVO-COMERCIAL
D12: AGUA | E12: ALCANTARILLADO
D13: ($/conex.agua) | E13: ($/conex.desagüe) | F13: ($/conex.agua)
C15: RETRIBUCIONES AL PERSONAL | D15: 2539.873242 | E15: 2483.295872 | F15: 3164.989862
C17: MATERIALES Y SUMINISTROS | D17: 1163.152988 | E17: 299.6537838 | F17: 163.3797362
C19: ENERGÍA Y FLUÍDOS | D19: 600.6330721 | E19: 969.0525358 | F19: 143.8173673
C21: SERVICIOS CONTRATADOS | D21: 1611.7446 | E21: 2394.127306 | F21: 3284.176093
C23: GASTOS VARIOS | D23: 52.89598289 | E23: 22.18787076 | F23: 47.0862918
C25: AMORTIZACIÓN | D25: 834.5215643 | E25: 1360.086265 | F25: 145.7582551
C29: TOTAL | D29: 6802.821449 | E29: 7528.403633 | F29: 6949.207606
C32: 2.CONEXIONES (promedio anual) | D32: 28549 | E32: 18860
C35: 3.COBERTURAS COSTO/INGRESO
C37: 3.1 COSTO DE EXPLOTACIÓN/ INGRESO DE EXPLOT. | D37: 1.448585533 | E37: 1.684090796
C39: 3.3 TOTAL | D39: 1.344761566 | E39: 1.551099329
C42: 4.M3 ELEVADOS | D42: 3937340
C44: 5.M3 FACTURADOS | D44: 2734540
C47: 6. COSTO PROMEDIO
C49: 6.1 COSTO VARIABLE/ M3ELEVADOS | D49: 12.53708775
C51: 6.2 COSTO VARIABLE / M3FACTURADOS | D51: 18.05158348
C53: 6.3 COSTO EXPLOTACIÓN/M3FACT | D53: 150.6018034
C55: 6.4 TOTAL/M3FACT | D55: 153.6896455
C58: 7. INGRESOS PROMEDIO
C60: 7.1 VARIABLE/M3 FACT | D60: 51.57833162
C62: 7.2 FIJO/CONEXIONES | D62: 358.8870758
C64: 7.3 INGRESO EXPLOTACIÓN/M3FACT | D64: 103.9647297
C66: 7.4 TOTAL/M3FACT | D66: 114.2876547

Sheet A-DUR-406
B2: DURAZNO | C2: ESTADO DE RENDIMIENTO ECONÓMICO (a valores históricos) | G2: PERÍODO ENERO-DICIEMBRE-2025
C4: AGUA POTABLE
B5: CONCEPTOS | C5: USINA | D5: PERFORACIÓN | E5: MIXTO | F5: SUB-TOTAL | G5: ALCANTARILLADO | H5: OTROS INGRESOS | I5: TOTAL
B6: INGRESOS
B7: Ingresos Variables | C7: 138882337.7 | D7: 6398399.53 | F7: 145280737.2 | I7: 145280737.2
B8: Ingresos Fijos | C8: 100915860.6 | D8: 5613738.07 | F8: 106529598.7 | I8: 106529598.7
B9: INGRESOS DE EXPLOTACIÓN | C9: 239798198.2 | D9: 12012137.6 | F9: 251810335.8 | I9: 251810335.8
B10: Ingresos Alcantarillado | G10: 125125472.5 | I10: 125125472.5
B11: Otros Ingresos | C11: 25313371.02 | D11: 1159093.55 | F11: 26472464.57 | G11: 3357373.22 | I11: 29829837.79
B12: TOTAL ING. DE EXPLOTACIÓN | C12: 265111569.3 | D12: 13171231.15 | F12: 278282800.4 | G12: 128482845.8 | I12: 406765646.2
B13: COSTOS DE EXPLOTACIÓN
B14: OPERATIVO
B15: Costo Operativo Var | C15: 45582895.04 | D15: 90114.51 | F15: 45673009.55 | G15: 12596535.2 | I15: 58269544.75
B16: Costo Operativo Fijo | C16: 73126384.92 | D16: 5763219.63 | F16: 78889604.55 | G16: 28254077.25 | I16: 107143681.8
B17: TOTAL OPERATIVO | C17: 118709280 | D17: 5853334.14 | F17: 124562614.1 | G17: 40850612.45 | I17: 165413226.6
B18: NO OPERATIVO
B19: COMERCIALIZACIÓN
B20: Comercial Propios | C20: 78306210.47 | F20: 78306210.47 | G20: 24781445.31 | I20: 103087655.8
B21: Comercial Asignados | C21: 22897939.4 | D21: 1137611.64 | F21: 24035551.04 | G21: 11097186.16 | I21: 35132737.2
B22: TOTAL COMERCIALIZACIÓN | C22: 101204149.9 | D22: 1137611.64 | F22: 102341761.5 | G22: 35878631.47 | I22: 138220393
B23: ADMINISTRACIÓN
B24: Administración Propios | C24: 8961605.05 | D24: 0 | F24: 8961605.05 | G24: 2836065.25 | I24: 11797670.3
B25: Administ. Asignados | C25: 29771178 | D25: 1479086.73 | F25: 31250264.73 | G25: 14428211 | I25: 45678475.73
B26: Gastos Fiscales | C26: 11189858.03 | D26: 555932.75 | F26: 11745790.78 | G26: 5423017.98 | I26: 17168808.76
B27: TOTAL ADMINISTRACIÓN | C27: 49922641.08 | D27: 2035019.48 | F27: 51957660.56 | G27: 22687294.23 | I27: 74644954.79
B28: TOTAL NO OPERATIVO | C28: 151126790.9 | D28: 3172631.12 | F28: 154299422.1 | G28: 58565925.7 | I28: 212865347.8
B29: COSTO DE EXPLOTACIÓN | C29: 269836070.9 | D29: 9025965.26 | F29: 278862036.2 | G29: 99416538.15 | I29: 378278574.3
B30: RESULTADO DE EXPLOTACIÓN | C30: -4724501.64 | D30: 4145265.89 | F30: -579235.75 | G30: 29066307.61 | I30: 28487071.86
B31: DIVERSOS Y EXTRAORDINARIOS
B32: Ingresos Div. y Extr | C32: 3349686.47 | D32: 166418.59 | F32: 3516105.06 | G32: 2342349.92 | I32: 5858454.98
B33: Gtos. Div. y Extraor | C33: 1533348.62 | D33: 76179.59 | F33: 1609528.21 | G33: 743117.37 | I33: 2352645.58
B34: RESULTADOS DIV. Y EXTRAORDINARIOS | C34: 1816337.85 | D34: 90239 | F34: 1906576.85 | G34: 1599232.55 | I34: 3505809.4
B35: FINANCIEROS
B36: Ingresos Financieros | C36: 22973922.66 | D36: 1141386.79 | F36: 24115309.45 | G36: 11134010.4 | I36: 35249319.85
B37: Gastos Financieros | C37: 11593311.32 | D37: 575977.06 | F37: 12169288.38 | G37: 5618546.31 | I37: 17787834.69
B38: RESULTADO FINANCIERO | C38: 11380611.34 | D38: 565409.73 | F38: 11946021.07 | G38: 5515464.09 | I38: 17461485.16
B39: I.R.A.E. | C39: -5252617.66 | D39: -260959.72 | F39: -5513577.38 | G39: -2545612.28 | I39: -8059189.66
B40: RESULTADO NETO | C40: 3219829.89 | D40: 4539954.9 | F40: 7759784.79 | G40: 33635391.97 | I40: 41395176.76

Sheet B-DUR-406
B4: D U R A Z N O
D6: C O S T O S T O T A L E S
C10: C O N C E P T O | D10: C O S T O S O P E R A T I V O S
D13: AGUA | E13: ALCANTARILLADO | F13: TOTAL
C15: RETRIBUCIONES AL PERSONAL | D15: 36622589.87 | E15: 10400896.7 | F15: 47023486.58
C17: MATERIALES Y SUMINISTROS | D17: 22150664.21 | E17: 994421.7462 | F17: 23145085.96
C19: ENERGÍA Y FLUÍDOS | D19: 20544441.56 | E19: 8811504.614 | F19: 29355946.17
C21: SERVICIOS CONTRATADOS | D21: 16521221.39 | E21: 5570941.941 | F21: 22092163.33
C23: GASTOS VARIOS | D23: 2117458.384 | E23: 85526.58782 | F23: 2202984.971
C25: AMORTIZACIÓN | D25: 26606238.68 | E25: 14987320.86 | F25: 41593559.54
C28: TOTAL | D28: 124562614.1 | E28: 40850612.45 | F28: 165413226.6 | H28: 0.5901322893
C33: C O N C E P T O | D33: C O S T O D E A D M I N I S T R A T I V O - C O M E R C I A L
D36: COMERCIALIZACIÓN | E36: ADMINISTRACIÓN | F36: TOTAL
C38: RETRIBUCIONES AL PERSONAL | D38: 54158845.11 | E38: 4240487.713 | F38: 58399332.83
C40: MATERIALES Y SUMINISTROS | D40: 5010933.886 | E40: 255502.7138 | F40: 5266436.6
C42: ENERGÍA Y FLUÍDOS | D42: 147491.002 | E42: 3850829.1 | F42: 3998320.102
C44: SERVICIOS CONTRATADOS | D44: 39069751.62 | E44: 3065383.782 | F44: 42135135.4
C46: GASTOS VARIOS | D46: 775568.4994 | E46: 33689.67928 | F46: 809258.1787
C48: AMORTIZACIÓN | D48: 3925065.661 | E48: 351777.3125 | F48: 4276842.974
C52: TOTAL | D52: 103087655.8 | E52: 11797670.3 | F52: 114885326.1 | H52: 0.4098677107
B57: C O S T O D E E X P L O T A C I Ó N | H57: 280298552.6

Sheet C-DUR-406
B4: COBERTURAS, COSTOS E INGRESOS PROMEDIO
B6: D U R A Z N O
C10: 1. COMPOSICIÓN DEL COSTO PROPIO POR CONEXIÓN | D10: OPERATIVOS | F10: ADMINISTRATIVO-COMERCIAL
D12: AGUA | E12: ALCANTARILLADO
D13: ($/conex.agua) | E13: ($/conex.desagüe) | F13: ($/conex.agua)
C15: RETRIBUCIONES AL PERSONAL | D15: 1476.419668 | E15: 662.4774971 | F15: 2354.337143
C17: MATERIALES Y SUMINISTROS | D17: 892.9919054 | E17: 63.33896472 | F17: 212.3135094
C19: ENERGÍA Y FLUÍDOS | D19: 828.2379181 | E19: 561.2423321 | F19: 161.1900867
C21: SERVICIOS CONTRATADOS | D21: 666.0439986 | E21: 354.8370663 | F21: 1698.654924
C23: GASTOS VARIOS | D23: 85.36417591 | E23: 5.447553364 | F23: 32.62480059
C25: AMORTIZACIÓN | D25: 1072.615952 | E25: 954.6064241 | F25: 172.4185839
C29: TOTAL | D29: 5021.673618 | E29: 2601.949838 | F29: 4631.539048
C32: 2.CONEXIONES (promedio anual) | D32: 24805 | E32: 15700
C35: 3.COBERTURAS COSTO/INGRESO
C37: 3.1 COSTO DE EXPLOTACIÓN/ INGRESO DE EXPLOT. | D37: 1.002081464 | E37: 0.7737728532
C39: 3.3 TOTAL | D39: 0.9385875561 | E39: 0.7271989778
C42: 4.M3 ELEVADOS | D42: 4399750
C44: 5.M3 FACTURADOS | D44: 2589100
C47: 6. COSTO PROMEDIO
C49: 6.1 COSTO VARIABLE/ M3ELEVADOS | D49: 10.38081926
C51: 6.2 COSTO VARIABLE / M3FACTURADOS | D51: 17.64049652
C53: 6.3 COSTO EXPLOTACIÓN/M3FACT | D53: 107.7061667
C55: 6.4 TOTAL/M3FACT | D55: 110.898488
C58: 7. INGRESOS PROMEDIO
C60: 7.1 VARIABLE/M3 FACT | D60: 56.11244725
C62: 7.2 FIJO/CONEXIONES | D62: 357.8902058
C64: 7.3 INGRESO EXPLOTACIÓN/M3FACT | D64: 107.4824458
C66: 7.4 TOTAL/M3FACT | D66: 118.1546541

Sheet A-300-AG-LITORAL SUR
B2: ÁMBITO GEOGRÁFICO LITORAL SUR | C2: ESTADO DE RENDIMIENTO ECONÓMICO (a valores históricos) | I2: PERÍODO ENERO-DICIEMBRE-2025
C4: AGUA POTABLE
B5: CONCEPTOS | C5: USINA | D5: PERFORACIÓN | E5: MIXTO | F5: SUB-TOTAL | G5: ALCANTARILLADO | H5: OTROS INGRESOS | I5: TOTAL
B6: INGRESOS
B7: Ingresos Variables | C7: 490771220 | D7: 205878751.1 | E7: 145357863.4 | F7: 842007834.5 | I7: 842007834.5
B8: Ingresos Fijos | C8: 382235775.8 | D8: 175104507.6 | E8: 128076790.2 | F8: 685417073.6 | I8: 685417073.6
B9: INGRESOS DE EXPLOTACIÓN | C9: 873006995.8 | D9: 380983258.8 | E9: 273434653.6 | F9: 1527424908 | I9: 1527424908
B10: Ingresos Alcantarillado | G10: 549836622 | I10: 549836622
B11: Otros Ingresos | C11: 74087025.42 | D11: 39038943.87 | E11: 22644733.67 | F11: 135770703 | G11: 8253625.33 | I11: 144024328.3
B12: TOTAL ING. DE EXPLOTACIÓN | C12: 947094021.2 | D12: 420022202.6 | E12: 296079387.3 | F12: 1663195611 | G12: 558090247.3 | I12: 2221285858
B13: COSTOS DE EXPLOTACIÓN
B14: OPERATIVO
B15: Costo Operativo Var | C15: 178492786.7 | D15: 38255298.5 | E15: 54548127.34 | F15: 271296212.6 | G15: 42009402.88 | I15: 313305615.4
B16: Costo Operativo Fijo | C16: 254347622.3 | D16: 80153223.92 | E16: 101745476.2 | F16: 436246322.5 | G16: 304960395.3 | I16: 741206717.8
B17: TOTAL OPERATIVO | C17: 432840409 | D17: 118408522.4 | E17: 156293603.6 | F17: 707542535 | G17: 346969798.2 | I17: 1054512333
B18: NO OPERATIVO
B19: COMERCIALIZACIÓN
B20: Comercial Propios | C20: 209746735.3 | D20: 105786026.8 | E20: 70915475.5 | F20: 386448237.6 | G20: 90215682.53 | I20: 476663920.1
B21: Comercial Asignados | C21: 81801414.95 | D21: 36277718.58 | E21: 25572659.39 | F21: 143651792.9 | G21: 48202787.33 | I21: 191854580.2
B22: TOTAL COMERCIALIZACIÓN | C22: 291548150.3 | D22: 142063745.4 | E22: 96488134.89 | F22: 530100030.5 | G22: 138418469.9 | I22: 668518500.4
B23: ADMINISTRACIÓN
B24: Administración Propios | C24: 31545803.04 | D24: 13836328.25 | E24: 9747186.9 | F24: 55129318.19 | G24: 13810050.73 | I24: 68939368.92
B25: Administ. Asignados | C25: 106355617.4 | D25: 47167144.89 | E25: 33248764.25 | F25: 186771526.6 | G25: 62671742.93 | I25: 249443269.5
B26: Gastos Fiscales | C26: 39975047.8 | D26: 17728342.97 | E26: 12496951.06 | F26: 70200341.83 | G26: 23555934.11 | I26: 93756275.94
B27: TOTAL ADMINISTRACIÓN | C27: 177876468.3 | D27: 78731816.11 | E27: 55492902.21 | F27: 312101186.6 | G27: 100037727.8 | I27: 412138914.4
B28: TOTAL NO OPERATIVO | C28: 469424618.5 | D28: 220795561.5 | E28: 151981037.1 | F28: 842201217.1 | G28: 238456197.6 | I28: 1080657415
B29: COSTO DE EXPLOTACIÓN | C29: 902265027.6 | D29: 339204083.9 | E29: 308274640.7 | F29: 1549743752 | G29: 585425995.8 | I29: 2135169748
B30: RESULTADO DE EXPLOTACIÓN | C30: 44828993.66 | D30: 80818118.71 | E30: -12195253.37 | F30: 113451859 | G30: -27335748.49 | I30: 86116110.51
B31: DIVERSOS Y EXTRAORDINARIOS
B32: Ingresos Div. y Extr | C32: 11966537.54 | D32: 5306983.08 | E32: 3740964.27 | F32: 21014484.89 | G32: 10174453.25 | I32: 31188938.14
B33: Gtos. Div. y Extraor | C33: 5477789.24 | D33: 2429318.62 | E33: 1712459.95 | F33: 9619567.81 | G33: 3227874.64 | I33: 12847442.45
B34: RESULTADOS DIV. Y EXTRAORDINARIOS | C34: 6488748.3 | D34: 2877664.46 | E34: 2028504.32 | F34: 11394917.08 | G34: 6946578.61 | I34: 18341495.69
B35: FINANCIEROS
B36: Ingresos Financieros | C36: 82072860.39 | D36: 36398100.78 | E36: 25657518.27 | F36: 144128479.4 | G36: 48362741.19 | I36: 192491220.6
B37: Gastos Financieros | C37: 41416358.64 | D37: 18367543.05 | E37: 12947531.95 | F37: 72731433.64 | G37: 24405249.46 | I37: 97136683.1
B38: RESULTADO FINANCIERO | C38: 40656501.75 | D38: 18030557.73 | E38: 12709986.32 | F38: 71397045.8 | G38: 23957491.73 | I38: 95354537.53
B39: I.R.A.E. | C39: -18764638.59 | D39: -8321839.93 | E39: -5866178.61 | F39: -32952657.13 | G39: -11057362.38 | I39: -44010019.51
B40: RESULTADO NETO | C40: 73209605.12 | D40: 93404500.97 | E40: -3322941.34 | F40: 163291164.8 | G40: -7489040.53 | I40: 155802124.2

Sheet B-300-AG-LITORAL SUR
B4: ÁMBITO GEOGRÁFICO LITORAL SUR
D6: C O S T O S T O T A L E S
C10: C O N C E P T O | D10: C O S T O S O P E R A T I V O S
D13: AGUA | E13: ALCANTARILLADO | F13: TOTAL
C15: RETRIBUCIONES AL PERSONAL | D15: 211247633 | E15: 28837853.65 | F15: 240085486.7
C17: MATERIALES Y SUMINISTROS | D17: 125531388.4 | E17: 3214138.87 | F17: 128745527.3
C19: ENERGÍA Y FLUÍDOS | D19: 96788730.44 | E19: 26479931.53 | F19: 123268662
C21: SERVICIOS CONTRATADOS | D21: 139434550.6 | E21: 214712040.2 | F21: 354146590.7
C23: GASTOS VARIOS | D23: 11374368.44 | E23: 249163.645 | F23: 11623532.09
C25: AMORTIZACIÓN | D25: 123165864.2 | E25: 73476667.59 | F25: 196642531.8
C28: TOTAL | D28: 707542535 | E28: 346969795.4 | F28: 1054512330 | H28: 0.6590225841
C33: C O N C E P T O | D33: C O S T O D E A D M I N I S T R A T I V O - C O M E R C I A L
D36: COMERCIALIZACIÓN | E36: ADMINISTRACIÓN | F36: TOTAL
C38: RETRIBUCIONES AL PERSONAL | D38: 181501206.6 | E38: 30056331.27 | F38: 211557537.9
C40: MATERIALES Y SUMINISTROS | D40: 11459505.2 | E40: 1306800.997 | F40: 12766306.2
C42: ENERGÍA Y FLUÍDOS | D42: 806532.2704 | E42: 16376013.56 | F42: 17182545.83
C44: SERVICIOS CONTRATADOS | D44: 255254609.3 | E44: 18535391.18 | F44: 273790000.5
C46: GASTOS VARIOS | D46: 2231584.62 | E46: 388579.1596 | F46: 2620163.779
C48: AMORTIZACIÓN | D48: 25410482.14 | E48: 2276252.751 | F48: 27686734.9
C52: TOTAL | D52: 476663920.2 | E52: 68939368.92 | F52: 545603289.1 | H52: 0.3409774159
B57: C O S T O D E E X P L O T A C I Ó N | H57: 1600115620

Sheet C-300-AG-LITORAL SUR
B4: COBERTURAS, COSTOS E INGRESOS PROMEDIO
B5: Á M B I T O G E O G R Á F I C O L I T O R A L S U R
C10: 1. COMPOSICIÓN DEL COSTO PROPIO POR CONEXIÓN | D10: OPERATIVOS | F10: ADMINISTRATIVO-COMERCIAL
D12: AGUA | E12: ALCANTARILLADO
D13: ($/conex.agua) | E13: ($/conex.desagüe) | F13: ($/conex.agua)
C15: RETRIBUCIONES AL PERSONAL | D15: =+'B-300-AG-LITORAL SUR'!D15/'C-300-AG-LITORAL SUR'!$D$32 -> 1376.385412 | E15: =+'B-300-AG-LITORAL SUR'!E15/'C-300-AG-LITORAL SUR'!$E$32 -> 415.6987495 | F15: =+('B-300-AG-LITORAL SUR'!D38+'B-300-AG-LITORAL SUR'!E38)/'C-300-AG-LITORAL SUR'!$D$32 -> 1378.404599
C17: MATERIALES Y SUMINISTROS | D17: =+'B-300-AG-LITORAL SUR'!D17/'C-300-AG-LITORAL SUR'!$D$32 -> 817.9006281 | E17: =+'B-300-AG-LITORAL SUR'!E17/'C-300-AG-LITORAL SUR'!$E$32 -> 46.33193321 | F17: =+('B-300-AG-LITORAL SUR'!D40+'B-300-AG-LITORAL SUR'!E40)/'C-300-AG-LITORAL SUR'!$D$32 -> 83.17895619
C19: ENERGÍA Y FLUÍDOS | D19: =+'B-300-AG-LITORAL SUR'!D19/'C-300-AG-LITORAL SUR'!$D$32 -> 630.6276416 | E19: =+'B-300-AG-LITORAL SUR'!E19/'C-300-AG-LITORAL SUR'!$E$32 -> 381.7092131 | F19: =+('B-300-AG-LITORAL SUR'!D42+'B-300-AG-LITORAL SUR'!E42)/'C-300-AG-LITORAL SUR'!$D$32 -> 111.9529961
C21: SERVICIOS CONTRATADOS | D21: =+'B-300-AG-LITORAL SUR'!D21/'C-300-AG-LITORAL SUR'!$D$32 -> 908.4867772 | E21: =+'B-300-AG-LITORAL SUR'!E21/'C-300-AG-LITORAL SUR'!$E$32 -> 3095.082168 | F21: =+('B-300-AG-LITORAL SUR'!D44+'B-300-AG-LITORAL SUR'!E44)/'C-300-AG-LITORAL SUR'!$D$32 -> 1783.880639
C23: GASTOS VARIOS | D23: =+'B-300-AG-LITORAL SUR'!D23/'C-300-AG-LITORAL SUR'!$D$32 -> 74.10977614 | E23: =+'B-300-AG-LITORAL SUR'!E23/'C-300-AG-LITORAL SUR'!$E$32 -> 3.591703353 | F23: =+('B-300-AG-LITORAL SUR'!D46+'B-300-AG-LITORAL SUR'!E46)/'C-300-AG-LITORAL SUR'!$D$32 -> 17.0716952
C25: AMORTIZACIÓN | D25: =+'B-300-AG-LITORAL SUR'!D25/'C-300-AG-LITORAL SUR'!$D$32 -> 802.4880386 | E25: =+'B-300-AG-LITORAL SUR'!E25/'C-300-AG-LITORAL SUR'!$E$32 -> 1059.168938 | F25: =+('B-300-AG-LITORAL SUR'!D48+'B-300-AG-LITORAL SUR'!E48)/'C-300-AG-LITORAL SUR'!$D$32 -> 180.3931124
C29: TOTAL | D29: =SUM(D15:D25) -> 4609.998274 | E29: =SUM(E15:E25) -> 5001.582705 | F29: 3554.881998
C32: 2.CONEXIONES (promedio anual) | D32: =+'C-SJ-301'!D32+'C-COL-302'!D32+'C-FLO-303'!D32+'C-SOR-304'!D32 -> 153480 | E32: =+'C-SJ-301'!E32+'C-COL-302'!E32+'C-FLO-303'!E32+'C-SOR-304'!E32 -> 69372
C35: 3.COBERTURAS COSTO/INGRESO
C37: 3.1 COSTO DE EXPLOTACIÓN/ INGRESO DE EXPLOT. | D37: =+'A-300-AG-LITORAL SUR'!F29/'A-300-AG-LITORAL SUR'!F12 -> 0.9317868216 | E37: =+'A-300-AG-LITORAL SUR'!G29/'A-300-AG-LITORAL SUR'!G12 -> 1.048980875
C39: 3.3 TOTAL | D39: =(+'A-300-AG-LITORAL SUR'!F29+'A-300-AG-LITORAL SUR'!F33+'A-300-AG-LITORAL SUR'!F37+'A-300-AG-LITORAL SUR'!F39)/('A-300-AG-LITORAL SUR'!F12+'A-300-AG-LITORAL SUR'!F32+'A-300-AG-LITORAL SUR'!F36) -> 0.8746422123 | E39: =(+'A-300-AG-LITORAL SUR'!G29+'A-300-AG-LITORAL SUR'!G33+'A-300-AG-LITORAL SUR'!G37+'A-300-AG-LITORAL SUR'!G39)/('A-300-AG-LITORAL SUR'!G12+'A-300-AG-LITORAL SUR'!G32+'A-300-AG-LITORAL SUR'!G36) -> 0.9762811655
C42: 4.M3 ELEVADOS | D42: 26178190
C44: 5.M3 FACTURADOS | D44: 15194300
C47: 6. COSTO PROMEDIO
C49: 6.1 COSTO VARIABLE/ M3ELEVADOS | D49: =+'A-300-AG-LITORAL SUR'!F15/'C-300-AG-LITORAL SUR'!D42 -> 10.36344425
C51: 6.2 COSTO VARIABLE / M3FACTURADOS | D51: =+'A-300-AG-LITORAL SUR'!F15/'C-300-AG-LITORAL SUR'!D44 -> 17.85513071
C53: 6.3 COSTO EXPLOTACIÓN/M3FACT | D53: =+'A-300-AG-LITORAL SUR'!F29/'C-300-AG-LITORAL SUR'!D44 -> 101.995074
C55: 6.4 TOTAL/M3FACT | D55: =(+'A-300-AG-LITORAL SUR'!F29+'A-300-AG-LITORAL SUR'!F33+'A-300-AG-LITORAL SUR'!F37+'A-300-AG-LITORAL SUR'!F39)/'C-300-AG-LITORAL SUR'!D44 -> 105.2461842
C58: 7. INGRESOS PROMEDIO
C60: 7.1 VARIABLE/M3 FACT | D60: =+'A-300-AG-LITORAL SUR'!F7/'C-300-AG-LITORAL SUR'!D44 -> 55.41603328
C62: 7.2 FIJO/CONEXIONES | D62: =(+'A-300-AG-LITORAL SUR'!F8/12)/'C-300-AG-LITORAL SUR'!D32 -> 372.1533064
C64: 7.3 INGRESO EXPLOTACIÓN/M3FACT | D64: =+'A-300-AG-LITORAL SUR'!F12/'C-300-AG-LITORAL SUR'!D44 -> 109.4618121
C66: 7.4 TOTAL/M3FACT | D66: =(+'A-300-AG-LITORAL SUR'!F12+'A-300-AG-LITORAL SUR'!F32+'A-300-AG-LITORAL SUR'!F36)/D44 -> 120.3305566

Sheet A-SJ-301
B2: SAN JOSÉ | C2: ESTADO DE RENDIMIENTO ECONÓMICO (a valores históricos) | I2: PERÍODO ENERO-DICIEMBRE-2025
C4: AGUA POTABLE
B5: CONCEPTOS | C5: USINA | D5: PERFORACIÓN | E5: MIXTO | F5: SUB-TOTAL | G5: ALCANTARILLADO | H5: OTROS INGRESOS | I5: TOTAL
B6: INGRESOS
B7: Ingresos Variables | C7: 100603378.3 | D7: 127021246 | E7: 7582899.35 | F7: 235207523.6 | I7: 235207523.6
B8: Ingresos Fijos | C8: 83950722.17 | D8: 100738920.7 | E8: 7407124.32 | F8: 192096767.2 | I8: 192096767.2
B9: INGRESOS DE EXPLOTACIÓN | C9: 184554100.5 | D9: 227760166.7 | E9: 14990023.67 | F9: 427304290.8 | I9: 427304290.8
B10: Ingresos Alcantarillado | G10: 154093715.4 | I10: 154093715.4
B11: Otros Ingresos | C11: 14921527.13 | D11: 24896150.17 | E11: 1461676.61 | F11: 41279353.91 | G11: 3439843.77 | I11: 44719197.68
B12: TOTAL ING. DE EXPLOTACIÓN | C12: 199475627.6 | D12: 252656316.8 | E12: 16451700.28 | F12: 468583644.7 | G12: 157533559.2 | I12: 626117203.9
B13: COSTOS DE EXPLOTACIÓN
B14: OPERATIVO
B15: Costo Operativo Var | C15: 40089917.6 | D15: 21466253.92 | E15: 4367987.19 | F15: 65924158.71 | G15: 11834332.16 | I15: 77758490.87
B16: Costo Operativo Fijo | C16: 52191824.55 | D16: 57172993.3 | E16: 11299779.87 | F16: 120664597.7 | G16: 184627904.1 | I16: 305292501.9
B17: TOTAL OPERATIVO | C17: 92281742.15 | D17: 78639247.22 | E17: 15667767.06 | F17: 186588756.4 | G17: 196462236.3 | I17: 383050992.7
B18: NO OPERATIVO
B19: COMERCIALIZACIÓN
B20: Comercial Propios | C20: 46882623.65 | D20: 65248024.04 | E20: 4472872.27 | F20: 116603520 | G20: 28876650.27 | I20: 145480170.2
B21: Comercial Asignados | C21: 17228900.45 | D21: 21822167.37 | E21: 1420949.03 | F21: 40472016.85 | G21: 13606323.83 | I21: 54078340.68
B22: TOTAL COMERCIALIZACIÓN | C22: 64111524.1 | D22: 87070191.41 | E22: 5893821.3 | F22: 157075536.8 | G22: 42482974.1 | I22: 199558510.9
B23: ADMINISTRACIÓN
B24: Administración Propios | C24: 5998733.27 | D24: 8348626.06 | E24: 572313.67 | F24: 14919673 | G24: 3694830.04 | I24: 18614503.04
B25: Administ. Asignados | C25: 22400472.45 | D25: 28372493.17 | E25: 1847472.97 | F25: 52620438.59 | G25: 17690512.83 | I25: 70310951.42
B26: Gastos Fiscales | C26: 8419489.07 | D26: 10664145.41 | E26: 694395.15 | F26: 19778029.63 | G26: 6649193.67 | I26: 26427223.3
B27: TOTAL ADMINISTRACIÓN | C27: 36818694.79 | D27: 47385264.64 | E27: 3114181.79 | F27: 87318141.22 | G27: 28034536.54 | I27: 115352677.8
B28: TOTAL NO OPERATIVO | C28: 100930218.9 | D28: 134455456.1 | E28: 9008003.09 | F28: 244393678 | G28: 70517510.64 | I28: 314911188.7
B29: COSTO DE EXPLOTACIÓN | C29: 193211961 | D29: 213094703.3 | E29: 24675770.15 | F29: 430982434.5 | G29: 266979746.9 | I29: 697962181.4
B30: RESULTADO DE EXPLOTACIÓN | C30: 6263666.57 | D30: 39561613.58 | E30: -8224069.87 | F30: 37601210.28 | G30: -109446187.8 | I30: -71844977.48
B31: DIVERSOS Y EXTRAORDINARIOS
B32: Ingresos Div. y Extr | C32: 2520375.36 | D32: 3192314.12 | E32: 207867.23 | F32: 5920556.71 | G32: 2871968.87 | I32: 8792525.58
B33: Gtos. Div. y Extraor | C33: 1153724.35 | D33: 1461310.12 | E33: 95153.13 | F33: 2710187.6 | G33: 911140.44 | I33: 3621328.04
B34: RESULTADOS DIV. Y EXTRAORDINARIOS | C34: 1366651.01 | D34: 1731004 | E34: 112714.1 | F34: 3210369.11 | G34: 1960828.43 | I34: 5171197.54
B35: FINANCIEROS
B36: Ingresos Financieros | C36: 17286071.92 | D36: 21894580.85 | E36: 1425664.22 | F36: 40606316.99 | G36: 13651474.42 | I36: 54257791.41
B37: Gastos Financieros | C37: 8723055.95 | D37: 11048643.95 | E37: 719431.75 | F37: 20491131.65 | G37: 6888932.05 | I37: 27380063.7
B38: RESULTADO FINANCIERO | C38: 8563015.97 | D38: 10845936.9 | E38: 706232.47 | F38: 20115185.34 | G38: 6762542.37 | I38: 26877727.71
B39: I.R.A.E. | C39: -3952182.13 | D39: -5005843.53 | E39: -325955.18 | F39: -9283980.84 | G39: -3121189.91 | I39: -12405170.75
B40: RESULTADO NETO | C40: 12241151.42 | D40: 47132710.95 | E40: -7731078.48 | F40: 51642783.89 | G40: -103844006.9 | I40: -52201222.98

Sheet B-SJ-301
B4: S AN J O S É
D6: C O S T O S T O T A L E S
C10: C O N C E P T O | D10: C O S T O S O P E R A T I V O S
D13: AGUA | E13: ALCANTARILLADO | F13: TOTAL
C15: RETRIBUCIONES AL PERSONAL | D15: 48387592.33 | E15: 9862131.46 | F15: 58249723.79
C17: MATERIALES Y SUMINISTROS | D17: 24758186.28 | E17: 541740.8555 | F17: 25299927.14
C19: ENERGÍA Y FLUÍDOS | D19: 36386450.5 | E19: 10907243.81 | F19: 47293694.32
C21: SERVICIOS CONTRATADOS | D21: 38460631.26 | E21: 148337632.5 | F21: 186798263.8
C23: GASTOS VARIOS | D23: 6278682.754 | E23: 85540.74418 | F23: 6364223.498
C25: AMORTIZACIÓN | D25: 32317213.3 | E25: 26727946.93 | F25: 59045160.23
C28: TOTAL | D28: 186588756.4 | E28: 196462236.3 | F28: 383050992.7 | H28: 0.7000896042
C33: C O N C E P T O | D33: C O S T O D E A D M I N I S T R A T I V O - C O M E R C I A L
D36: COMERCIALIZACIÓN | E36: ADMINISTRACIÓN | F36: TOTAL
C38: RETRIBUCIONES AL PERSONAL | D38: 62724452.21 | E38: 10226669.13 | F38: 72951121.34
C40: MATERIALES Y SUMINISTROS | D40: 4293504.648 | E40: 498693.4251 | F40: 4792198.073
C42: ENERGÍA Y FLUÍDOS | D42: 249959.971 | E42: 3918425.674 | F42: 4168385.645
C44: SERVICIOS CONTRATADOS | D44: 67154162.45 | E44: 3219379.392 | F44: 70373541.84
C46: GASTOS VARIOS | D46: 668768.1433 | E46: 83052.42964 | F46: 751820.5729
C48: AMORTIZACIÓN | D48: 10389322.81 | E48: 668282.9909 | F48: 11057605.8
C52: TOTAL | D52: 145480170.2 | E52: 18614503.04 | F52: 164094673.3 | H52: 0.2999103958
B57: C O S T O D E E X P L O T A C I Ó N | H57: 547145666

Sheet C-SJ-301
B4: COBERTURAS, COSTOS E INGRESOS PROMEDIO
B6: S A N J O S É
C10: 1. COMPOSICIÓN DEL COSTO PROPIO POR CONEXIÓN | D10: OPERATIVOS | F10: ADMINISTRATIVO-COMERCIAL
D12: AGUA | E12: ALCANTARILLADO
D13: ($/conex.agua) | E13: ($/conex.desagüe) | F13: ($/conex.agua)
C15: RETRIBUCIONES AL PERSONAL | D15: 1104.84045 | E15: 454.6437147 | F15: 1665.702834
C17: MATERIALES Y SUMINISTROS | D17: 565.3070207 | E17: 24.97422347 | F17: 109.4209077
C19: ENERGÍA Y FLUÍDOS | D19: 830.8167528 | E19: 502.8233364 | F19: 95.17731402
C21: SERVICIOS CONTRATADOS | D21: 878.176803 | E21: 6838.356652 | F21: 1606.848613
C23: GASTOS VARIOS | D23: 143.3620137 | E23: 3.943423575 | F23: 17.16642097
C25: AMORTIZACIÓN | D25: 737.9033085 | E25: 1232.156875 | F25: 252.479811
C29: TOTAL | D29: 4260.406348 | E29: 9056.898225 | F29: 3746.795901
C32: 2.CONEXIONES (promedio anual) | D32: 43796 | E32: 21692
C35: 3.COBERTURAS COSTO/INGRESO
C37: 3.1 COSTO DE EXPLOTACIÓN/ INGRESO DE EXPLOT. | D37: 0.9197556067 | E37: 1.694748397
C39: 3.3 TOTAL | D39: 0.8636977055 | E39: 1.560745191
C42: 4.M3 ELEVADOS | D42: 7919940
C44: 5.M3 FACTURADOS | D44: 4396600
C47: 6. COSTO PROMEDIO
C49: 6.1 COSTO VARIABLE/ M3ELEVADOS | D49: 8.323820472
C51: 6.2 COSTO VARIABLE / M3FACTURADOS | D51: 14.99434989
C53: 6.3 COSTO EXPLOTACIÓN/M3FACT | D53: 98.02630088
C55: 6.4 TOTAL/M3FACT | D55: 101.1917784
C58: 7. INGRESOS PROMEDIO
C60: 7.1 VARIABLE/M3 FACT | D60: 53.49759442
C62: 7.2 FIJO/CONEXIONES | D62: 365.514292
C64: 7.3 INGRESO EXPLOTACIÓN/M3FACT | D64: 106.5786391
C66: 7.4 TOTAL/M3FACT | D66: 117.161106

Sheet A-COL-302
B2: COLONIA | C2: ESTADO DE RENDIMIENTO ECONÓMICO (a valores históricos) | H2: PERÍODO ENERO-DICIEMBRE-2025
C4: AGUA POTABLE
B5: CONCEPTOS | C5: USINA | D5: PERFORACIÓN | E5: MIXTO | F5: SUB-TOTAL | G5: ALCANTARILLADO | H5: OTROS INGRESOS | I5: TOTAL
B6: INGRESOS
B7: Ingresos Variables | C7: 217095060.8 | D7: 45337755.32 | E7: 85653596.79 | F7: 348086412.9 | I7: 348086412.9
B8: Ingresos Fijos | C8: 162066324 | D8: 43485976.5 | E8: 75112501.97 | F8: 280664802.5 | I8: 280664802.5
B9: INGRESOS DE EXPLOTACIÓN | C9: 379161384.8 | D9: 88823731.82 | E9: 160766098.8 | F9: 628751215.4 | I9: 628751215.4
B10: Ingresos Alcantarillado | G10: 162397841.7 | I10: 162397841.7
B11: Otros Ingresos | C11: 34025242.6 | D11: 8431919.17 | E11: 12226724.3 | F11: 54683886.07 | G11: 1869414.01 | I11: 56553300.08
B12: TOTAL ING. DE EXPLOTACIÓN | C12: 413186627.4 | D12: 97255650.99 | E12: 172992823.1 | F12: 683435101.5 | G12: 164267255.7 | I12: 847702357.1
B13: COSTOS DE EXPLOTACIÓN
B14: OPERATIVO
B15: Costo Operativo Var | C15: 62548214.66 | D15: 6211278.89 | E15: 36704880.13 | F15: 105464373.7 | G15: 11619035.89 | I15: 117083409.6
B16: Costo Operativo Fijo | C16: 118792915.3 | D16: 8941806.3 | E16: 56414910.66 | F16: 184149632.3 | G16: 63872689.11 | I16: 248022321.4
B17: TOTAL OPERATIVO | C17: 181341130 | D17: 15153085.19 | E17: 93119790.79 | F17: 289614006 | G17: 75491725 | I17: 365105731
B18: NO OPERATIVO
B19: COMERCIALIZACIÓN
B20: Comercial Propios | C20: 81286289.01 | D20: 23342863.36 | E20: 40668640.68 | F20: 145297793.1 | G20: 19560165.15 | I20: 164857958.2
B21: Comercial Asignados | C21: 35687323.57 | D21: 8400063.38 | E21: 14941555.3 | F21: 59028942.25 | G21: 14187919.78 | I21: 73216862.03
B22: TOTAL COMERCIALIZACIÓN | C22: 116973612.6 | D22: 31742926.74 | E22: 55610195.98 | F22: 204326735.3 | G22: 33748084.93 | I22: 238074820.2
B23: ADMINISTRACIÓN
B24: Administración Propios | C24: 10442311.28 | D24: 2998703.13 | E24: 5224430.98 | F24: 18665445.39 | G24: 2512764.9 | I24: 21178210.29
B25: Administ. Asignados | C25: 46399531.48 | D25: 10921497.4 | E25: 19426538.6 | F25: 76747567.48 | G25: 18446685.35 | I25: 95194252.83
B26: Gastos Fiscales | C26: 17439826.24 | D26: 4104977.12 | E26: 7301699.93 | F26: 28846503.29 | G26: 6933410.26 | I26: 35779913.55
B27: TOTAL ADMINISTRACIÓN | C27: 74281669 | D27: 18025177.65 | E27: 31952669.51 | F27: 124259516.2 | G27: 27892860.51 | I27: 152152376.7
B28: TOTAL NO OPERATIVO | C28: 191255281.6 | D28: 49768104.39 | E28: 87562865.49 | F28: 328586251.5 | G28: 61640945.44 | I28: 390227196.9
B29: COSTO DE EXPLOTACIÓN | C29: 372596411.6 | D29: 64921189.58 | E29: 180682656.3 | F29: 618200257.4 | G29: 137132670.4 | I29: 755332927.9
B30: RESULTADO DE EXPLOTACIÓN | C30: 40590215.82 | D30: 32334461.41 | E30: -7689833.22 | F30: 65234844.01 | G30: 27134585.25 | I30: 92369429.26
B31: DIVERSOS Y EXTRAORDINARIOS
B32: Ingresos Div. y Extr | C32: 5220615.59 | D32: 1228825.75 | E32: 2185765.04 | F32: 8635206.38 | G32: 2994730.1 | I32: 11629936.48
B33: Gtos. Div. y Extraor | C33: 2389783.1 | D33: 562505.87 | E33: 1000553.54 | F33: 3952842.51 | G33: 950086.68 | I33: 4902929.19
B34: RESULTADOS DIV. Y EXTRAORDINARIOS | C34: 2830832.49 | D34: 666319.88 | E34: 1185211.5 | F34: 4682363.87 | G34: 2044643.42 | I34: 6727007.29
B35: FINANCIEROS
B36: Ingresos Financieros | C36: 35805746.43 | D36: 8427937.78 | E36: 14991136.56 | F36: 59224820.77 | G36: 14235000.21 | I36: 73459820.98
B37: Gastos Financieros | C37: 18068623.75 | D37: 4252983.16 | E37: 7564964.68 | F37: 29886571.59 | G37: 7183396.2 | I37: 37069967.79
B38: RESULTADO FINANCIERO | C38: 17737122.68 | D38: 4174954.62 | E38: 7426171.88 | F38: 29338249.18 | G38: 7051604.01 | I38: 36389853.19
B39: I.R.A.E. | C39: -8186407.64 | D39: -1926912.32 | E39: -3427482.09 | F39: -13540802.05 | G39: -3254603.68 | I39: -16795405.73
B40: RESULTADO NETO | C40: 52971763.35 | D40: 35248823.59 | E40: -2505931.93 | F40: 85714655.01 | G40: 32976229 | I40: 118690884

Sheet B-COL-302
B4: C O L O N I A
D6: C O S T O S T O T A L E S
C10: C O N C E P T O | D10: C O S T O S O P E R A T I V O S
D13: AGUA | E13: ALCANTARILLADO | F13: TOTAL
C15: RETRIBUCIONES AL PERSONAL | D15: 97378233.75 | E15: 2639492.608 | F15: 100017726.4
C17: MATERIALES Y SUMINISTROS | D17: 49621986.15 | E17: 859938.6909 | F17: 50481924.84
C19: ENERGÍA Y FLUÍDOS | D19: 32418817.67 | E19: 4980024.939 | F19: 37398842.61
C21: SERVICIOS CONTRATADOS | D21: 54475995.25 | E21: 43798182.73 | F21: 98274177.98
C23: GASTOS VARIOS | D23: 3412839.55 | E23: 22225.00063 | F23: 3435064.551
C25: AMORTIZACIÓN | D25: 52306133.61 | E25: 23191861.01 | F25: 75497994.63
C28: TOTAL | D28: 289614006 | E28: 75491724.98 | F28: 365105731 | H28: 0.6624532291
C33: C O N C E P T O | D33: C O S T O D E A D M I N I S T R A T I V O - C O M E R C I A L
D36: COMERCIALIZACIÓN | E36: ADMINISTRACIÓN | F36: TOTAL
C38: RETRIBUCIONES AL PERSONAL | D38: 45299791.73 | E38: 6738221.255 | F38: 52038012.99
C40: MATERIALES Y SUMINISTROS | D40: 3263972.103 | E40: 332965.9388 | F40: 3596938.042
C42: ENERGÍA Y FLUÍDOS | D42: 209743.9375 | E42: 5868705.788 | F42: 6078449.725
C44: SERVICIOS CONTRATADOS | D44: 107336846.1 | E44: 7451204.258 | F44: 114788050.4
C46: GASTOS VARIOS | D46: 616999.6589 | E46: 199440.7497 | F46: 816440.4086
C48: AMORTIZACIÓN | D48: 8130604.676 | E48: 587672.3006 | F48: 8718276.976
C52: TOTAL | D52: 164857958.2 | E52: 21178210.29 | F52: 186036168.5 | H52: 0.3375467709
B57: C O S T O D E E X P L O T A C I Ó N | H57: 551141899.5

Sheet C-COL-302
B4: COBERTURAS, COSTOS E INGRESOS PROMEDIO
B6: C O L O N I A
C10: 1. COMPOSICIÓN DEL COSTO PROPIO POR CONEXIÓN | D10: OPERATIVOS | F10: ADMINISTRATIVO-COMERCIAL
D12: AGUA | E12: ALCANTARILLADO
D13: ($/conex.agua) | E13: ($/conex.desagüe) | F13: ($/conex.agua)
C15: RETRIBUCIONES AL PERSONAL | D15: 1553.403955 | E15: 156.3865747 | F15: 830.1244754
C17: MATERIALES Y SUMINISTROS | D17: 791.583361 | E17: 50.95027201 | F17: 57.37932972
C19: ENERGÍA Y FLUÍDOS | D19: 517.1537587 | E19: 295.0601338 | F19: 96.96507609
C21: SERVICIOS CONTRATADOS | D21: 869.0158286 | E21: 2594.986534 | F21: 1831.130064
C23: GASTOS VARIOS | D23: 54.44254072 | E23: 1.316802976 | F23: 13.02407849
C25: AMORTIZACIÓN | D25: 834.4016082 | E25: 1374.088222 | F25: 139.0763153
C29: TOTAL | D29: 4620.001053 | E29: 4472.78854 | F29: 2967.699339
C32: 2.CONEXIONES (promedio anual) | D32: 62687 | E32: 16878
C35: 3.COBERTURAS COSTO/INGRESO
C37: 3.1 COSTO DE EXPLOTACIÓN/ INGRESO DE EXPLOT. | D37: 0.9045485901 | E37: 0.8348143996
C39: 3.3 TOTAL | D39: 0.849864248 | E39: 0.7824457737
C42: 4.M3 ELEVADOS | D42: 9626250
C44: 5.M3 FACTURADOS | D44: 5967110
C47: 6. COSTO PROMEDIO
C49: 6.1 COSTO VARIABLE/ M3ELEVADOS | D49: 10.95591468
C51: 6.2 COSTO VARIABLE / M3FACTURADOS | D51: 17.67428013
C53: 6.3 COSTO EXPLOTACIÓN/M3FACT | D53: 103.6012839
C55: 6.4 TOTAL/M3FACT | D55: 107.0030332
C58: 7. INGRESOS PROMEDIO
C60: 7.1 VARIABLE/M3 FACT | D60: 58.33417063
C62: 7.2 FIJO/CONEXIONES | D62: 373.1034112
C64: 7.3 INGRESO EXPLOTACIÓN/M3FACT | D64: 114.5336857
C66: 7.4 TOTAL/M3FACT | D66: 125.9060297

Sheet A-FLO-303
B2: FLORES | C2: ESTADO DE RENDIMIENTO ECONÓMICO (a valores históricos) | H2: PERÍODO ENERO-DICIEMBRE-2025
C4: AGUA POTABLE
B5: CONCEPTOS | C5: USINA | D5: PERFORACIÓN | E5: MIXTO | F5: SUB-TOTAL | G5: ALCANTARILLADO | H5: OTROS INGRESOS | I5: TOTAL
B6: INGRESOS
B7: Ingresos Variables | C7: 58957828.69 | E7: 3208182.48 | F7: 62166011.17 | I7: 62166011.17
B8: Ingresos Fijos | C8: 48648885.09 | E8: 3112714.8 | F8: 51761599.89 | I8: 51761599.89
B9: INGRESOS DE EXPLOTACIÓN | C9: 107606713.8 | E9: 6320897.28 | F9: 113927611.1 | I9: 113927611.1
B10: Ingresos Alcantarillado | G10: 72824552.95 | I10: 72824552.95
B11: Otros Ingresos | C11: 8908266.13 | E11: 344947.33 | F11: 9253213.46 | G11: 1303434.9 | I11: 10556648.36
B12: TOTAL ING. DE EXPLOTACIÓN | C12: 116514979.9 | E12: 6665844.61 | F12: 123180824.5 | G12: 74127987.85 | I12: 197308812.4
B13: COSTOS DE EXPLOTACIÓN
B14: OPERATIVO
B15: Costo Operativo Var | C15: 22166055.71 | E15: 620331.07 | F15: 22786386.78 | G15: 14013603.83 | I15: 36799990.61
B16: Costo Operativo Fijo | C16: 31901334.15 | E16: 7556447.58 | F16: 39457781.73 | G16: 24916920.1 | I16: 64374701.83
B17: TOTAL OPERATIVO | C17: 54067389.86 | E17: 8176778.65 | F17: 62244168.51 | G17: 38930523.93 | I17: 101174692.4
B18: NO OPERATIVO
B19: COMERCIALIZACIÓN
B20: Comercial Propios | C20: 35112153.05 | E20: 2339747.64 | F20: 37451900.69 | G20: 16563118.24 | I20: 54015018.93
B21: Comercial Asignados | C21: 10063510.04 | E21: 575735.47 | F21: 10639245.51 | G21: 6402504.96 | I21: 17041750.47
B22: TOTAL COMERCIALIZACIÓN | C22: 45175663.09 | E22: 2915483.11 | F22: 48091146.2 | G22: 22965623.2 | I22: 71056769.4
B23: ADMINISTRACIÓN
B24: Administración Propios | C24: 8378845.81 | E24: 558336.18 | F24: 8937181.99 | G24: 3952472.38 | I24: 12889654.37
B25: Administ. Asignados | C25: 13084258.15 | E25: 748552.89 | F25: 13832811.04 | G25: 8324335.02 | I25: 22157146.06
B26: Gastos Fiscales | C26: 4917877.01 | E26: 281352.72 | F26: 5199229.73 | G26: 3128802.21 | I26: 8328031.94
B27: TOTAL ADMINISTRACIÓN | C27: 26380980.97 | E27: 1588241.79 | F27: 27969222.76 | G27: 15405609.61 | I27: 43374832.37
B28: TOTAL NO OPERATIVO | C28: 71556644.06 | E28: 4503724.9 | F28: 76060368.96 | G28: 38371232.81 | I28: 114431601.8
B29: COSTO DE EXPLOTACIÓN | C29: 125624033.9 | E29: 12680503.55 | F29: 138304537.5 | G29: 77301756.74 | I29: 215606294.2
B30: RESULTADO DE EXPLOTACIÓN | C30: -9109054.01 | E30: -6014658.94 | F30: -15123712.95 | G30: -3173768.89 | I30: -18297481.84
B31: DIVERSOS Y EXTRAORDINARIOS
B32: Ingresos Div. y Extr | C32: 1472167.03 | E32: 84222.96 | F32: 1556389.99 | G32: 1351415.18 | I32: 2907805.17
B33: Gtos. Div. y Extraor | C33: 673897.7 | E33: 38553.84 | F33: 712451.54 | G33: 428740.39 | I33: 1141191.93
B34: RESULTADOS DIV. Y EXTRAORDINARIOS | C34: 798269.33 | E34: 45669.12 | F34: 843938.45 | G34: 922674.79 | I34: 1766613.24
B35: FINANCIEROS
B36: Ingresos Financieros | C36: 10096904.3 | E36: 577645.88 | F36: 10674550.18 | G36: 6423750.83 | I36: 17098301.01
B37: Gastos Financieros | C37: 5095192.36 | E37: 291496.97 | F37: 5386689.33 | G37: 3241612.01 | I37: 8628301.34
B38: RESULTADO FINANCIERO | C38: 5001711.94 | E38: 286148.91 | F38: 5287860.85 | G38: 3182138.82 | I38: 8469999.67
B39: I.R.A.E. | C39: -2308494.66 | E39: -132069.44 | F39: -2440564.1 | G39: -1468687.24 | I39: -3909251.34
B40: RESULTADO NETO | C40: -5617567.4 | E40: -5814910.35 | F40: -11432477.75 | G40: -537642.52 | I40: -11970120.27

Sheet B-FLO-303
B4: F L O R E S
D6: C O S T O S T O T A L E S
C10: C O N C E P T O | D10: C O S T O S O P E R A T I V O S
D13: AGUA | E13: ALCANTARILLADO | F13: TOTAL
C15: RETRIBUCIONES AL PERSONAL | D15: 22669785.33 | E15: 11710871.44 | F15: 34380656.77
C17: MATERIALES Y SUMINISTROS | D17: 10627719.18 | E17: 1156603.475 | F17: 11784322.66
C19: ENERGÍA Y FLUÍDOS | D19: 7888745.483 | E19: 8125300.709 | F19: 16014046.19
C21: SERVICIOS CONTRATADOS | D21: 11418600.21 | E21: 8452076.263 | F21: 19870676.47
C23: GASTOS VARIOS | D23: 665330.7053 | E23: 95611.19128 | F23: 760941.8965
C25: AMORTIZACIÓN | D25: 8973987.612 | E25: 9390058.125 | F25: 18364045.74
C28: TOTAL | D28: 62244168.51 | E28: 38930521.21 | F28: 101174689.7 | H28: 0.6019459373
C33: C O N C E P T O | D33: C O S T O D E A D M I N I S T R A T I V O - C O M E R C I A L
D36: COMERCIALIZACIÓN | E36: ADMINISTRACIÓN | F36: TOTAL
C38: RETRIBUCIONES AL PERSONAL | D38: 24797516.79 | E38: 6225805.469 | F38: 31023322.26
C40: MATERIALES Y SUMINISTROS | D40: 1297465.953 | E40: 204998.1675 | F40: 1502464.12
C42: ENERGÍA Y FLUÍDOS | D42: 27104.21839 | E42: 2600702.41 | F42: 2627806.628
C44: SERVICIOS CONTRATADOS | D44: 25936497.12 | E44: 3158541.392 | F44: 29095038.51
C46: GASTOS VARIOS | D46: 320809.3258 | E46: 49839.61146 | F46: 370648.9372
C48: AMORTIZACIÓN | D48: 1635625.526 | E48: 649767.3206 | F48: 2285392.847
C52: TOTAL | D52: 54015018.93 | E52: 12889654.37 | F52: 66904673.3 | H52: 0.3980540627
B57: C O S T O D E E X P L O T A C I Ó N | H57: 168079363

Sheet C-FLO-303
B4: COBERTURAS, COSTOS E INGRESOS PROMEDIO
B6: F L O R E S
C10: 1. COMPOSICIÓN DEL COSTO PROPIO POR CONEXIÓN | D10: OPERATIVOS | F10: ADMINISTRATIVO-COMERCIAL
D12: AGUA | E12: ALCANTARILLADO
D13: ($/conex.agua) | E13: ($/conex.desagüe) | F13: ($/conex.agua)
C15: RETRIBUCIONES AL PERSONAL | D15: 1929.507645 | E15: 1126.912187 | F15: 2640.507469
C17: MATERIALES Y SUMINISTROS | D17: 904.5637231 | E17: 111.2974861 | F17: 127.8801703
C19: ENERGÍA Y FLUÍDOS | D19: 671.4397381 | E19: 781.8803608 | F19: 223.6621524
C21: SERVICIOS CONTRATADOS | D21: 971.8784752 | E21: 813.3252755 | F21: 2476.384246
C23: GASTOS VARIOS | D23: 56.62870927 | E23: 9.200461055 | F23: 31.54727528
C25: AMORTIZACIÓN | D25: 763.8086315 | E25: 903.5852699 | F25: 194.5180736
C29: TOTAL | D29: 5297.826923 | E29: 3746.20104 | F29: 5694.499387
C32: 2.CONEXIONES (promedio anual) | D32: 11749 | E32: 10392
C35: 3.COBERTURAS COSTO/INGRESO
C37: 3.1 COSTO DE EXPLOTACIÓN/ INGRESO DE EXPLOT. | D37: 1.12277652 | E37: 1.042814718
C39: 3.3 TOTAL | D39: 1.048380948 | E39: 0.9707003718
C42: 4.M3 ELEVADOS | D42: 1930880
C44: 5.M3 FACTURADOS | D44: 1148630
C47: 6. COSTO PROMEDIO
C49: 6.1 COSTO VARIABLE/ M3ELEVADOS | D49: 11.80103724
C51: 6.2 COSTO VARIABLE / M3FACTURADOS | D51: 19.83788233
C53: 6.3 COSTO EXPLOTACIÓN/M3FACT | D53: 120.4082581
C55: 6.4 TOTAL/M3FACT | D55: 123.5934237
C58: 7. INGRESOS PROMEDIO
C60: 7.1 VARIABLE/M3 FACT | D60: 54.12187664
C62: 7.2 FIJO/CONEXIONES | D62: 367.1347908
C64: 7.3 INGRESO EXPLOTACIÓN/M3FACT | D64: 107.2415177
C66: 7.4 TOTAL/M3FACT | D66: 117.8898032

Sheet A-SOR-304
B2: SORIANO | C2: ESTADO DE RENDIMIENTO ECONÓMICO (a valores históricos) | H2: PERÍODO ENERO-DICIEMBRE-2025
C4: AGUA POTABLE
B5: CONCEPTOS | C5: USINA | D5: PERFORACIÓN | E5: MIXTO | F5: SUB-TOTAL | G5: ALCANTARILLADO | H5: OTROS INGRESOS | I5: TOTAL
B6: INGRESOS
B7: Ingresos Variables | C7: 114114952.2 | D7: 33519749.83 | E7: 48913184.82 | F7: 196547886.8 | I7: 196547886.8
B8: Ingresos Fijos | C8: 87569844.55 | D8: 30879610.42 | E8: 42444449.09 | F8: 160893904.1 | I8: 160893904.1
B9: INGRESOS DE EXPLOTACIÓN | C9: 201684796.8 | D9: 64399360.25 | E9: 91357633.91 | F9: 357441790.9 | I9: 357441790.9
B10: Ingresos Alcantarillado | G10: 160520511.9 | I10: 160520511.9
B11: Otros Ingresos | C11: 16231989.56 | D11: 5710874.53 | E11: 8611385.43 | F11: 30554249.52 | G11: 1640932.65 | I11: 32195182.17
B12: TOTAL ING. DE EXPLOTACIÓN | C12: 217916786.3 | D12: 70110234.78 | E12: 99969019.34 | F12: 387996040.4 | G12: 162161444.6 | I12: 550157485
B13: COSTOS DE EXPLOTACIÓN
B14: OPERATIVO
B15: Costo Operativo Var | C15: 53688598.74 | D15: 10577765.69 | E15: 12854928.95 | F15: 77121293.38 | G15: 4542431 | I15: 81663724.38
B16: Costo Operativo Fijo | C16: 51461548.28 | D16: 14038424.32 | E16: 26474338.11 | F16: 91974310.71 | G16: 31542881.95 | I16: 123517192.7
B17: TOTAL OPERATIVO | C17: 105150147 | D17: 24616190.01 | E17: 39329267.06 | F17: 169095604.1 | G17: 36085312.95 | I17: 205180917
B18: NO OPERATIVO
B19: COMERCIALIZACIÓN
B20: Comercial Propios | C20: 46465669.61 | D20: 17195139.4 | E20: 23434214.91 | F20: 87095023.92 | G20: 25215748.87 | I20: 112310772.8
B21: Comercial Asignados | C21: 18821680.89 | D21: 6055487.83 | E21: 8634419.59 | F21: 33511588.31 | G21: 14006038.76 | I21: 47517627.07
B22: TOTAL COMERCIALIZACIÓN | C22: 65287350.5 | D22: 23250627.23 | E22: 32068634.5 | F22: 120606612.2 | G22: 39221787.63 | I22: 159828399.9
B23: ADMINISTRACIÓN
B24: Administración Propios | C24: 6725912.68 | D24: 2488999.06 | E24: 3392106.07 | F24: 12607017.81 | G24: 3649983.41 | I24: 16257001.22
B25: Administ. Asignados | C25: 24471355.35 | D25: 7873154.32 | E25: 11226199.79 | F25: 43570709.46 | G25: 18210209.73 | I25: 61780919.19
B26: Gastos Fiscales | C26: 9197855.48 | D26: 2959220.44 | E26: 4219503.26 | F26: 16376579.18 | G26: 6844527.97 | I26: 23221107.15
B27: TOTAL ADMINISTRACIÓN | C27: 40395123.51 | D27: 13321373.82 | E27: 18837809.12 | F27: 72554306.45 | G27: 28704721.11 | I27: 101259027.6
B28: TOTAL NO OPERATIVO | C28: 105682474 | D28: 36572001.05 | E28: 50906443.62 | F28: 193160918.7 | G28: 67926508.74 | I28: 261087427.4
B29: COSTO DE EXPLOTACIÓN | C29: 210832621 | D29: 61188191.06 | E29: 90235710.68 | F29: 362256522.8 | G29: 104011821.7 | I29: 466268344.5
B30: RESULTADO DE EXPLOTACIÓN | C30: 7084165.28 | D30: 8922043.72 | E30: 9733308.66 | F30: 25739517.66 | G30: 58149622.91 | I30: 83889140.57
B31: DIVERSOS Y EXTRAORDINARIOS
B32: Ingresos Div. y Extr | C32: 2753379.56 | D32: 885843.21 | E32: 1263109.04 | F32: 4902331.81 | G32: 2956339.1 | I32: 7858670.91
B33: Gtos. Div. y Extraor | C33: 1260384.09 | D33: 405502.63 | E33: 578199.44 | F33: 2244086.16 | G33: 937907.13 | I33: 3181993.29
B34: RESULTADOS DIV. Y EXTRAORDINARIOS | C34: 1492995.47 | D34: 480340.58 | E34: 684909.6 | F34: 2658245.65 | G34: 2018431.97 | I34: 4676677.62
B35: FINANCIEROS
B36: Ingresos Financieros | C36: 18884137.74 | D36: 6075582.15 | E36: 8663071.61 | F36: 33622791.5 | G36: 14052515.73 | I36: 47675307.23
B37: Gastos Financieros | C37: 9529486.58 | D37: 3065915.94 | E37: 4371638.55 | F37: 16967041.07 | G37: 7091309.2 | I37: 24058350.27
B38: RESULTADO FINANCIERO | C38: 9354651.16 | D38: 3009666.21 | E38: 4291433.06 | F38: 16655750.43 | G38: 6961206.53 | I38: 23616956.96
B39: I.R.A.E. | C39: -4317554.16 | D39: -1389084.08 | E39: -1980671.9 | F39: -7687310.14 | G39: -3212881.55 | I39: -10900191.69
B40: RESULTADO NETO | C40: 13614257.75 | D40: 11022966.43 | E40: 12728979.42 | F40: 37366203.6 | G40: 63916379.86 | I40: 101282583.5

Sheet B-SOR-304
B4: S O R I A N O
D6: C O S T O S T O T A L E S
C10: C O N C E P T O | D10: C O S T O S O P E R A T I V O S
D13: AGUA | E13: ALCANTARILLADO | F13: TOTAL
C15: RETRIBUCIONES AL PERSONAL | D15: 42812021.61 | E15: 4625358.139 | F15: 47437379.75
C17: MATERIALES Y SUMINISTROS | D17: 40523496.78 | E17: 655855.8487 | F17: 41179352.63
C19: ENERGÍA Y FLUÍDOS | D19: 20094716.78 | E19: 2467362.069 | F19: 22562078.85
C21: SERVICIOS CONTRATADOS | D21: 35079323.84 | E21: 14124148.66 | F21: 49203472.51
C23: GASTOS VARIOS | D23: 1017515.432 | E23: 45786.7089 | F23: 1063302.141
C25: AMORTIZACIÓN | D25: 29568529.64 | E25: 14166801.52 | F25: 43735331.16
C28: TOTAL | D28: 169095604.1 | E28: 36085312.95 | F28: 205180917 | H28: 0.6147766944
C33: C O N C E P T O | D33: C O S T O D E A D M I N I S T R A T I V O - C O M E R C I A L
D36: COMERCIALIZACIÓN | E36: ADMINISTRACIÓN | F36: TOTAL
C38: RETRIBUCIONES AL PERSONAL | D38: 48679445.88 | E38: 6865635.421 | F38: 55545081.3
C40: MATERIALES Y SUMINISTROS | D40: 2604562.495 | E40: 270143.4653 | F40: 2874705.961
C42: ENERGÍA Y FLUÍDOS | D42: 319724.1436 | E42: 3988179.692 | F42: 4307903.836
C44: SERVICIOS CONTRATADOS | D44: 54827103.65 | E44: 4706266.134 | F44: 59533369.79
C46: GASTOS VARIOS | D46: 625007.4916 | E46: 56246.36878 | F46: 681253.8604
C48: AMORTIZACIÓN | D48: 5254929.13 | E48: 370530.1384 | F48: 5625459.268
C52: TOTAL | D52: 112310772.8 | E52: 16257001.22 | F52: 128567774 | H52: 0.3852233056
B57: C O S T O D E E X P L O T A C I Ó N | H57: 333748691.1

Sheet C-SOR-304
B4: COBERTURAS, COSTOS E INGRESOS PROMEDIO
B6: S O R I A N O
C10: 1. COMPOSICIÓN DEL COSTO PROPIO POR CONEXIÓN | D10: OPERATIVOS | F10: ADMINISTRATIVO-COMERCIAL
D12: AGUA | E12: ALCANTARILLADO
D13: ($/conex.agua) | E13: ($/conex.desagüe) | F13: ($/conex.agua)
C15: RETRIBUCIONES AL PERSONAL | D15: 1214.594349 | E15: 226.6221528 | F15: 1575.836396
C17: MATERIALES Y SUMINISTROS | D17: 1149.667975 | E17: 32.13404452 | F17: 81.55656947
C19: ENERGÍA Y FLUÍDOS | D19: 570.0952332 | E19: 120.8898613 | F19: 122.2169722
C21: SERVICIOS CONTRATADOS | D21: 995.2145893 | E21: 692.0210026 | F21: 1688.985752
C23: GASTOS VARIOS | D23: 28.86732389 | E23: 2.243346835 | F23: 19.32744724
C25: AMORTIZACIÓN | D25: 838.8711314 | E25: 694.1108046 | F25: 159.5965521
C29: TOTAL | D29: 4797.310602 | E29: 1768.021213 | F29: 3647.519689
C32: 2.CONEXIONES (promedio anual) | D32: 35248 | E32: 20410
C35: 3.COBERTURAS COSTO/INGRESO
C37: 3.1 COSTO DE EXPLOTACIÓN/ INGRESO DE EXPLOT. | D37: 0.93366036 | E37: 0.641409072
C39: 3.3 TOTAL | D39: 0.8763465254 | E39: 0.6074006508
C42: 4.M3 ELEVADOS | D42: 6701120
C44: 5.M3 FACTURADOS | D44: 3681960
C47: 6. COSTO PROMEDIO
C49: 6.1 COSTO VARIABLE/ M3ELEVADOS | D49: 11.50871696
C51: 6.2 COSTO VARIABLE / M3FACTURADOS | D51: 20.94571733
C53: 6.3 COSTO EXPLOTACIÓN/M3FACT | D53: 98.38687079
C55: 6.4 TOTAL/M3FACT | D55: 101.5166759
C58: 7. INGRESOS PROMEDIO
C60: 7.1 VARIABLE/M3 FACT | D60: 53.38132051
C62: 7.2 FIJO/CONEXIONES | D62: 380.3854215
C64: 7.3 INGRESO EXPLOTACIÓN/M3FACT | D64: 105.3775816
C66: 7.4 TOTAL/M3FACT | D66: 115.8407923

Sheet A-100-AG-LITORAL NORTE
B2: AMBITO GEOGRÁFICO LITORAL NORTE | C2: ESTADO DE RENDIMIENTO ECONÓMICO (a valores históricos) | H2: PERÍODO ENERO-DICIEMBRE-2025
C4: AGUA POTABLE
B5: CONCEPTOS | C5: USINA | D5: PERFORACIÓN | E5: MIXTO | F5: SUB-TOTAL | G5: ALCANTARILLADO | H5: OTROS INGRESOS | I5: TOTAL
B6: INGRESOS
B7: Ingresos Variables | C7: 290250135.1 | D7: 89071651.77 | E7: 385176992.5 | F7: 764498779.3 | I7: 764498779.3
B8: Ingresos Fijos | C8: 228223238 | D8: 71306422.38 | E8: 307739602 | F8: 607269262.4 | I8: 607269262.4
B9: INGRESOS DE EXPLOTACIÓN | C9: 518473373 | D9: 160378074.2 | E9: 692916594.5 | F9: 1371768042 | I9: 1371768042
B10: Ingresos Alcantarillado | G10: 809084064.8 | I10: 809084064.8
B11: Otros Ingresos | C11: 47334408.27 | D11: 14723894.84 | E11: 67837017.73 | F11: 129895320.8 | G11: 9203908.05 | I11: 139099228.9
B12: TOTAL ING. DE EXPLOTACIÓN | C12: 565807781.3 | D12: 175101969 | E12: 760753612.2 | F12: 1501663363 | G12: 818287972.9 | I12: 2319951335
B13: COSTOS DE EXPLOTACIÓN
B14: OPERATIVO
B15: Costo Operativo Var | C15: 98657358.13 | D15: 18037077.38 | E15: 111635307.7 | F15: 228329743.2 | G15: 39365454.78 | I15: 267695198
B16: Costo Operativo Fijo | C16: 121889137.3 | D16: 100963231.3 | E16: 185820397.8 | F16: 408672766.4 | G16: 374928550.4 | I16: 783601316.8
B17: TOTAL OPERATIVO | C17: 220546495.5 | D17: 119000308.7 | E17: 297455705.5 | F17: 637002509.7 | G17: 414294005.1 | I17: 1051296515
B18: NO OPERATIVO
B19: COMERCIALIZACIÓN
B20: Comercial Propios | C20: 138354597.6 | D20: 53619693.25 | E20: 222534499.2 | F20: 414508790.1 | G20: 141084365.8 | I20: 555593155.9
B21: Comercial Asignados | C21: 48869358.44 | D21: 15123724.2 | E21: 65707015.89 | F21: 129700098.5 | G21: 70676313.33 | I21: 200376411.9
B22: TOTAL COMERCIALIZACIÓN | C22: 187223956.1 | D22: 68743417.45 | E22: 288241515.1 | F22: 544208888.6 | G22: 211760679.1 | I22: 755969567.8
B23: ADMINISTRACIÓN
B24: Administración Propios | C24: 23558515.59 | D24: 9321920.99 | E24: 36902446.26 | F24: 69782882.84 | G24: 23242877.04 | I24: 93025759.88
B25: Administ. Asignados | C25: 63538397.6 | D25: 19663388.95 | E25: 85430188.11 | F25: 168631974.7 | G25: 91891111.48 | I25: 260523086.1
B26: Gastos Fiscales | C26: 23881676.56 | D26: 7390723.08 | E26: 32109971.43 | F26: 63382371.07 | G26: 34538388.04 | I26: 97920759.11
B27: TOTAL ADMINISTRACIÓN | C27: 110978589.8 | D27: 36376033.02 | E27: 154442605.8 | F27: 301797228.6 | G27: 149672376.6 | I27: 451469605.1
B28: TOTAL NO OPERATIVO | C28: 298202545.8 | D28: 105119450.5 | E28: 442684120.9 | F28: 846006117.2 | G28: 361433055.7 | I28: 1207439173
B29: COSTO DE EXPLOTACIÓN | C29: 518749041.3 | D29: 224119759.2 | E29: 740139826.4 | F29: 1483008627 | G29: 775727060.8 | I29: 2258735688
B30: RESULTADO DE EXPLOTACIÓN | C30: 47058740.03 | D30: -49017790.17 | E30: 20613785.79 | F30: 18654735.65 | G30: 42560912.03 | I30: 61215647.68
B31: DIVERSOS Y EXTRAORDINARIOS
B32: Ingresos Div. y Extr | C32: 7148990.12 | D32: 2212413.89 | E32: 9612127.17 | F32: 18973531.18 | G32: 14918077.81 | I32: 33891608.99
B33: Gtos. Div. y Extraor | C33: 3272511.19 | D33: 1012752.37 | E33: 4400036.11 | F33: 8685299.67 | G33: 4732802.64 | I33: 13418102.31
B34: RESULTADOS DIV. Y EXTRAORDINARIOS | C34: 3876478.93 | D34: 1199661.52 | E34: 5212091.06 | F34: 10288231.51 | G34: 10185275.17 | I34: 20473506.68
B35: FINANCIEROS
B36: Ingresos Financieros | C36: 49031523.76 | D36: 15173910.12 | E36: 65925054.52 | F36: 130130488.4 | G36: 70910842.07 | I36: 201041330.5
B37: Gastos Financieros | C37: 24742736.69 | D37: 7657197.53 | E37: 33267704.96 | F37: 65667639.18 | G37: 35783678.72 | I37: 101451317.9
B38: RESULTADO FINANCIERO | C38: 24288787.07 | D38: 7516712.59 | E38: 32657349.56 | F38: 64462849.22 | G38: 35127163.35 | I38: 99590012.57
B39: I.R.A.E. | C39: -11210268.77 | D39: -3469270.33 | E39: -15072702.68 | F39: -29752241.78 | G39: -16212622.76 | I39: -45964864.54
B40: RESULTADO NETO | C40: 64013737.26 | D40: -43770686.39 | E40: 43410523.73 | F40: 63653574.6 | G40: 71660727.79 | I40: 135314302.4

Sheet B-100-AG-LITORAL NORTE
B4: AMBITO GEOGRÁFICO LITORAL NORTE
D6: C O S T O S T O T A L E S
C10: C O N C E P T O | D10: C O S T O S O P E R A T I V O S
D13: AGUA | E13: ALCANTARILLADO | F13: TOTAL
C15: RETRIBUCIONES AL PERSONAL | D15: 201714425 | E15: 29261026.3 | F15: 230975451.3
C17: MATERIALES Y SUMINISTROS | D17: 100872872.3 | E17: 3482745.074 | F17: 104355617.4
C19: ENERGIA Y FLUÍDOS | D19: 109776229.4 | E19: 33052773.22 | F19: 142829002.6
C21: SERVICIOS CONTRATADOS | D21: 93200455 | E21: 249113195.4 | F21: 342313650.4
C23: GASTOS VARIOS | D23: 25474305.06 | E23: 249129.3165 | F23: 25723434.38
C25: AMORTIZACIÓN | D25: 105964222.8 | E25: 99135135.83 | F25: 205099358.7
C28: TOTAL | D28: 637002509.7 | E28: 414294005.1 | F28: 1051296515 | H28: 0.6184404799
C33: C O N C E P T O | D33: C O S T O D E A D M I N I S T R A T I V O - C O M E R C I A L
D36: COMERCIALIZACIÓN | E36: ADMINISTRACIÓN | F36: TOTAL
C38: RETRIBUCIONES AL PERSONAL | D38: 158093963.5 | E38: 28109491.79 | F38: 186203455.3
C40: MATERIALES Y SUMINISTROS | D40: 15921431.37 | E40: 3197978.042 | F40: 19119409.41
C42: ENERGIA Y FLUÍDOS | D42: 969704.0199 | E42: 17657979.93 | F42: 18627683.95
C44: SERVICIOS CONTRATADOS | D44: 358923187.8 | E44: 40709904.76 | F44: 399633092.5
C46: GASTOS VARIOS | D46: 2118877.845 | E46: 729205.8597 | F46: 2848083.704
C48: AMORTIZACIÓN | D48: 19565991.38 | E48: 2621199.503 | F48: 22187190.88
C52: TOTAL | D52: 555593155.9 | E52: 93025759.88 | F52: 648618915.8 | H52: 0.3815595201
B57: C O S T O D E E X P L O T A C I Ó N | H57: 1699915430

Sheet C-100-AG-LITORAL NORTE
D4: COBERTURAS, COSTOS E INGRESOS PROMEDIO
D6: A M B I T O G E O G R Á F I C O L I T O R A L N O R T E
C10: 1. COMPOSICIÓN DEL COSTO PROPIO POR CONEXIÓN | D10: OPERATIVOS | F10: ADMINISTRATIVO-COMERCIAL
D12: AGUA | E12: ALCANTARILLADO
D13: ($/conex.agua) | E13: ($/conex.desagüe) | F13: ($/conex.agua)
C15: RETRIBUCIONES AL PERSONAL | D15: 1441.527789 | E15: 305.9432707 | F15: 1330.680516
C17: MATERIALES Y SUMINISTROS | D17: 720.8758055 | E17: 36.41438985 | F17: 136.6345514
C19: ENERGIA Y FLUÍDOS | D19: 784.5025721 | E19: 345.5884781 | F19: 133.1204947
C21: SERVICIOS CONTRATADOS | D21: 666.0458012 | E21: 2604.642263 | F21: 2855.929655
C23: GASTOS VARIOS | D23: 182.049046 | E23: 2.60481082 | F23: 20.35348639
C25: AMORTIZACIÓN | D25: 757.2605272 | E25: 1036.523032 | F25: 158.5580813
C29: TOTAL | D29: 4552.261541 | E29: 4331.716245 | F29: 4635.276785
C32: 2.CONEXIONES (promedio anual) | D32: 139931 | E32: 95642
C35: 3.COBERTURAS COSTO/INGRESO
C37: 3.1 COSTO DE EXPLOTACIÓN/ INGRESO DE EXPLOT. | D37: 0.9875772852 | E37: 0.9479878558
C39: 3.3 TOTAL | D39: 0.9253934506 | E39: 0.8848755353
C42: 4.M3 ELEVADOS | D42: 35618610
C44: 5.M3 FACTURADOS | D44: 16659140
C47: 6. COSTO PROMEDIO
C49: 6.1 COSTO VARIABLE/ M3ELEVADOS | D49: 6.410405775
C51: 6.2 COSTO VARIABLE / M3FACTURADOS | D51: 13.70597421
C53: 6.3 COSTO EXPLOTACIÓN/M3FACT | D53: 89.02071937
C55: 6.4 TOTAL/M3FACT | D55: 91.69797024
C58: 7. INGRESOS PROMEDIO
C60: 7.1 VARIABLE/M3 FACT | D60: 45.89065098
C62: 7.2 FIJO/CONEXIONES | D62: 361.6480398
C64: 7.3 INGRESO EXPLOTACIÓN/M3FACT | D64: 90.14050921
C66: 7.4 TOTAL/M3FACT | D66: 99.09079233

Sheet A-PAY-101
B2: PAYSANDÚ | C2: ESTADO DE RENDIMIENTO ECONÓMICO (a valores históricos) | H2: PERÍODO ENERO-DICIEMBRE-2025
C4: AGUA POTABLE
B5: CONCEPTOS | C5: USINA | D5: PERFORACIÓN | E5: MIXTO | F5: SUB-TOTAL | G5: ALCANTARILLADO | H5: OTROS INGRESOS | I5: TOTAL
B6: INGRESOS
B7: Ingresos Variables | C7: 226722423.1 | D7: 26125535.54 | F7: 252847958.6 | I7: 252847958.6
B8: Ingresos Fijos | C8: 178158963.4 | D8: 22615229.18 | F8: 200774192.6 | I8: 200774192.6
B9: INGRESOS DE EXPLOTACIÓN | C9: 404881386.5 | D9: 48740764.72 | F9: 453622151.2 | I9: 453622151.2
B10: Ingresos Alcantarillado | G10: 252191429.9 | I10: 252191429.9
B11: Otros Ingresos | C11: 37212359.76 | D11: 5085446.86 | F11: 42297806.62 | G11: 1679628.87 | I11: 43977435.49
B12: TOTAL ING. DE EXPLOTACIÓN | C12: 442093746.3 | D12: 53826211.58 | F12: 495919957.9 | G12: 253871058.8 | I12: 749791016.6
B13: COSTOS DE EXPLOTACIÓN
B14: OPERATIVO
B15: Costo Operativo Var | C15: 73416476.99 | D15: 7355932.99 | F15: 80772409.98 | G15: 2479998.14 | I15: 83252408.12
B16: Costo Operativo Fijo | C16: 73422532.39 | D16: 31578504.14 | F16: 105001036.5 | G16: 38211263.9 | I16: 143212300.4
B17: TOTAL OPERATIVO | C17: 146839009.4 | D17: 38934437.13 | F17: 185773446.5 | G17: 40691262.04 | I17: 226464708.6
B18: NO OPERATIVO
B19: COMERCIALIZACIÓN
B20: Comercial Propios | C20: 100275296.2 | D20: 15843568.37 | F20: 116118864.6 | G20: 37933576.72 | I20: 154052441.3
B21: Comercial Asignados | C21: 38184059.16 | D21: 4649021.28 | F21: 42833080.44 | G21: 21927085.77 | I21: 64760166.21
B22: TOTAL COMERCIALIZACIÓN | C22: 138459355.4 | D22: 20492589.65 | F22: 158951945 | G22: 59860662.49 | I22: 218812607.5
B23: ADMINISTRACIÓN
B24: Administración Propios | C24: 17180248.43 | D24: 2714491.49 | F24: 19894739.92 | G24: 6499190.77 | I24: 26393930.69
B25: Administ. Asignados | C25: 49645708.69 | D25: 6044510.78 | F25: 55690219.47 | G25: 28508904.7 | I25: 84199124.17
B26: Gastos Fiscales | C26: 18659941.08 | D26: 2271902.65 | F26: 20931843.73 | G26: 10715417.37 | I26: 31647261.1
B27: TOTAL ADMINISTRACIÓN | C27: 85485898.2 | D27: 11030904.92 | F27: 96516803.12 | G27: 45723512.84 | I27: 142240316
B28: TOTAL NO OPERATIVO | C28: 223945253.6 | D28: 31523494.57 | F28: 255468748.1 | G28: 105584175.3 | I28: 361052923.5
B29: COSTO DE EXPLOTACIÓN | C29: 370784262.9 | D29: 70457931.7 | F29: 441242194.6 | G29: 146275437.4 | I29: 587517632
B30: RESULTADO DE EXPLOTACIÓN | C30: 71309483.33 | D30: -16631720.12 | F30: 54677763.21 | G30: 107595621.4 | I30: 162273384.6
B31: DIVERSOS Y EXTRAORDINARIOS
B32: Ingresos Div. y Extr | C32: 5585863.15 | D32: 680094.32 | F32: 6265957.47 | G32: 4628283.03 | I32: 10894240.5
B33: Gtos. Div. y Extraor | C33: 2556975.68 | D33: 311319.31 | F33: 2868294.99 | G33: 1468335.93 | I33: 4336630.92
B34: RESULTADOS DIV. Y EXTRAORDINARIOS | C34: 3028887.47 | D34: 368775.01 | F34: 3397662.48 | G34: 3159947.1 | I34: 6557609.58
B35: FINANCIEROS
B36: Ingresos Financieros | C36: 38310766.92 | D36: 4664448.4 | F36: 42975215.32 | G36: 21999847.45 | I36: 64975062.77
B37: Gastos Financieros | C37: 19332730.14 | D37: 2353816.69 | F37: 21686546.83 | G37: 11101764.55 | I37: 32788311.38
B38: RESULTADO FINANCIERO | C38: 18978036.78 | D38: 2310631.71 | F38: 21288668.49 | G38: 10898082.9 | I38: 32186751.39
B39: I.R.A.E. | C39: -8759140.26 | D39: -1066451.05 | F39: -9825591.31 | G39: -5029911.04 | I39: -14855502.35
B40: RESULTADO NETO | C40: 84557267.32 | D40: -15018764.45 | F40: 69538502.87 | G40: 116623740.3 | I40: 186162243.2

Sheet B-PAY-101
B4: PAYSANDÚ
D6: C O S T O S T O T A L E S
C10: C O N C E P T O | D10: C O S T O S O P E R A T I V O S
D13: AGUA | E13: ALCANTARILLADO | F13: TOTAL
C15: RETRIBUCIONES AL PERSONAL | D15: 51429217.63 | E15: 4919035.278 | F15: 56348252.91
C17: MATERIALES Y SUMINISTROS | D17: 40865843.74 | E17: 714109.7022 | F17: 41579953.44
C19: ENERGIA Y FLUÍDOS | D19: 33397063.44 | E19: 1451006.18 | F19: 34848069.62
C21: SERVICIOS CONTRATADOS | D21: 24343222.6 | E21: 9740439.493 | F21: 34083662.09
C23: GASTOS VARIOS | D23: 5894738.146 | E23: 45706.47578 | F23: 5940444.622
C25: AMORTIZACIÓN | D25: 29843360.96 | E25: 23820964.91 | F25: 53664325.87
C28: TOTAL | D28: 185773446.5 | E28: 40691262.04 | F28: 226464708.6 | H28: 0.5565459369
C33: C O N C E P T O | D33: C O S T O D E A D M I N I S T R A T I V O - C O M E R C I A L
D36: COMERCIALIZACIÓN | E36: ADMINISTRACIÓN | F36: TOTAL
C38: RETRIBUCIONES AL PERSONAL | D38: 50528435.64 | E38: 8295227.923 | F38: 58823663.56
C40: MATERIALES Y SUMINISTROS | D40: 5130271.7 | E40: 743304.3702 | F40: 5873576.07
C42: ENERGIA Y FLUÍDOS | D42: 205138.8408 | E42: 5109066.9 | F42: 5314205.741
C44: SERVICIOS CONTRATADOS | D44: 95868941.58 | E44: 10765357.66 | F44: 106634299.2
C46: GASTOS VARIOS | D46: 601160.0423 | E46: 286655.2436 | F46: 887815.2859
C48: AMORTIZACIÓN | D48: 1718493.486 | E48: 1194318.589 | F48: 2912812.075
C52: TOTAL | D52: 154052441.3 | E52: 26393930.69 | F52: 180446372 | H52: 0.4434540631
B57: C O S T O D E E X P L O T A C I Ó N | H57: 406911080.5

Sheet C-PAY-101
D4: COBERTURAS, COSTOS E INGRESOS PROMEDIO
D6: P A Y S A N D Ú
C10: 1. COMPOSICIÓN DEL COSTO PROPIO POR CONEXIÓN | D10: OPERATIVOS | F10: ADMINISTRATIVO-COMERCIAL
D12: AGUA | E12: ALCANTARILLADO
D13: ($/conex.agua) | E13: ($/conex.desagüe) | F13: ($/conex.agua)
C15: RETRIBUCIONES AL PERSONAL | D15: 1131.979346 | E15: 165.7133566 | F15: 1294.734302
C17: MATERIALES Y SUMINISTROS | D17: 899.4749133 | E17: 24.05705775 | F17: 129.2799522
C19: ENERGIA Y FLUÍDOS | D19: 735.0838253 | E19: 48.88176053 | F19: 116.9679691
C21: SERVICIOS CONTRATADOS | D21: 535.8048686 | E21: 328.1377002 | F21: 2347.067093
C23: GASTOS VARIOS | D23: 129.7457387 | E23: 1.539768083 | F23: 19.54119882
C25: AMORTIZACIÓN | D25: 656.8652953 | E25: 802.4850057 | F25: 64.11225486
C29: TOTAL | D29: 4088.953987 | E29: 1370.814649 | F29: 3971.702771
C32: 2.CONEXIONES (promedio anual) | D32: 45433 | E32: 29684
C35: 3.COBERTURAS COSTO/INGRESO
C37: 3.1 COSTO DE EXPLOTACIÓN/ INGRESO DE EXPLOT. | D37: 0.8897447817 | E37: 0.5761800423
C39: 3.3 TOTAL | D39: 0.8363975704 | E39: 0.5483638909
C42: 4.M3 ELEVADOS | D42: 11547530
C44: 5.M3 FACTURADOS | D44: 5451910
C47: 6. COSTO PROMEDIO
C49: 6.1 COSTO VARIABLE/ M3ELEVADOS | D49: 6.994778102
C51: 6.2 COSTO VARIABLE / M3FACTURADOS | D51: 14.81543349
C53: 6.3 COSTO EXPLOTACIÓN/M3FACT | D53: 80.93350672
C55: 6.4 TOTAL/M3FACT | D55: 83.63517467
C58: 7. INGRESOS PROMEDIO
C60: 7.1 VARIABLE/M3 FACT | D60: 46.37786732
C62: 7.2 FIJO/CONEXIONES | D62: 368.2605753
C64: 7.3 INGRESO EXPLOTACIÓN/M3FACT | D64: 90.96260904
C66: 7.4 TOTAL/M3FACT | D66: 99.9945213

Sheet A-RN-102
B2: RÍO NEGRO | C2: ESTADO DE RENDIMIENTO ECONÓMICO (a valores históricos) | I2: PERÍODO ENERO-DICIEMBRE-2025
C4: AGUA POTABLE
B5: CONCEPTOS | C5: USINA | D5: PERFORACIÓN | E5: MIXTO | F5: SUB-TOTAL | G5: ALCANTARILLADO | H5: OTROS INGRESOS | I5: TOTAL
B6: INGRESOS
B7: Ingresos Variables | C7: 63527712 | D7: 50580071.73 | E7: 5190217.3 | F7: 119298001 | I7: 119298001
B8: Ingresos Fijos | C8: 50064274.53 | D8: 39233837.46 | E8: 5185316.5 | F8: 94483428.49 | I8: 94483428.49
B9: INGRESOS DE EXPLOTACIÓN | C9: 113591986.5 | D9: 89813909.19 | E9: 10375533.8 | F9: 213781429.5 | I9: 213781429.5
B10: Ingresos Alcantarillado | G10: 113762606.5 | I10: 113762606.5
B11: Otros Ingresos | C11: 10122048.51 | D11: 8148848.38 | E11: 719365.25 | F11: 18990262.14 | G11: 1823095.66 | I11: 20813357.8
B12: TOTAL ING. DE EXPLOTACIÓN | C12: 123714035 | D12: 97962757.57 | E12: 11094899.05 | F12: 232771691.7 | G12: 115585702.2 | I12: 348357393.9
B13: COSTOS DE EXPLOTACIÓN
B14: OPERATIVO
B15: Costo Operativo Var | C15: 25240881.14 | D15: 8232819.93 | E15: 372152.77 | F15: 33845853.84 | G15: 7967203.02 | I15: 41813056.86
B16: Costo Operativo Fijo | C16: 48466604.96 | D16: 45515006.56 | E16: 1413087.59 | F16: 95394699.11 | G16: 28840923.84 | I16: 124235623
B17: TOTAL OPERATIVO | C17: 73707486.1 | D17: 53747826.49 | E17: 1785240.36 | F17: 129240553 | G17: 36808126.86 | I17: 166048679.8
B18: NO OPERATIVO
B19: COMERCIALIZACIÓN
B20: Comercial Propios | C20: 38079301.41 | D20: 29925609.18 | E20: 4032082.05 | F20: 72036992.64 | G20: 23383423.37 | I20: 95420416.01
B21: Comercial Asignados | C21: 10685299.28 | D21: 8461136.86 | E21: 958276.97 | F21: 20104713.11 | G21: 9983247.3 | I21: 30087960.41
B22: TOTAL COMERCIALIZACIÓN | C22: 48764600.69 | D22: 38386746.04 | E22: 4990359.02 | F22: 92141705.75 | G22: 33366670.67 | I22: 125508376.4
B23: ADMINISTRACIÓN
B24: Administración Propios | C24: 6378267.16 | D24: 5012527.09 | E24: 675372 | F24: 12066166.25 | G24: 3916713.75 | I24: 15982880
B25: Administ. Asignados | C25: 13892688.91 | D25: 11000903.1 | E25: 1245921.45 | F25: 26139513.46 | G25: 12979903.18 | I25: 39119416.64
B26: Gastos Fiscales | C26: 5221735.48 | D26: 4134822.78 | E26: 468294.7 | F26: 9824852.96 | G26: 4878653.93 | I26: 14703506.89
B27: TOTAL ADMINISTRACIÓN | C27: 25492691.55 | D27: 20148252.97 | E27: 2389588.15 | F27: 48030532.67 | G27: 21775270.86 | I27: 69805803.53
B28: TOTAL NO OPERATIVO | C28: 74257292.24 | D28: 58534999.01 | E28: 7379947.17 | F28: 140172238.4 | G28: 55141941.53 | I28: 195314179.9
B29: COSTO DE EXPLOTACIÓN | C29: 147964778.3 | D29: 112282825.5 | E29: 9165187.53 | F29: 269412791.4 | G29: 91950068.39 | I29: 361362859.8
B30: RESULTADO DE EXPLOTACIÓN | C30: -24250743.3 | D30: -14320067.93 | E30: 1929711.52 | F30: -36641099.71 | G30: 23635633.82 | I30: -13005465.89
B31: DIVERSOS Y EXTRAORDINARIOS
B32: Ingresos Div. y Extr | C32: 1563126.97 | D32: 1237759.86 | E32: 140184.37 | F32: 2941071.2 | G32: 2107224.25 | I32: 5048295.45
B33: Gtos. Div. y Extraor | C33: 715535.51 | D33: 566595.66 | E33: 64170.5 | F33: 1346301.67 | G33: 668522.95 | I33: 2014824.62
B34: RESULTADOS DIV. Y EXTRAORDINARIOS | C34: 847591.46 | D34: 671164.2 | E34: 76013.87 | F34: 1594769.53 | G34: 1438701.3 | I34: 3033470.83
B35: FINANCIEROS
B36: Ingresos Financieros | C36: 10720756.84 | D36: 8489213.95 | E36: 961456.92 | F36: 20171427.71 | G36: 10016375.31 | I36: 30187803.02
B37: Gastos Financieros | C37: 5410006.55 | D37: 4283904.9 | E37: 485179.22 | F37: 10179090.67 | G37: 5054555.06 | I37: 15233645.73
B38: RESULTADO FINANCIERO | C38: 5310750.29 | D38: 4205309.05 | E38: 476277.7 | F38: 9992337.04 | G38: 4961820.25 | I38: 14954157.29
B39: I.R.A.E. | C39: -2451128.51 | D39: -1940922.14 | E39: -219821.65 | F39: -4611872.3 | G39: -2290083.01 | I39: -6901955.31
B40: RESULTADO NETO | C40: -20543530.06 | D40: -11384516.82 | E40: 2262181.44 | F40: -29665865.44 | G40: 27746072.36 | I40: -1919793.08

Sheet B-RN-102
B4: RÍO NEGRO
D6: C O S T O S T O T A L E S
C10: C O N C E P T O | E10: C O S T O S O P E R A T I V O S
D13: AGUA | E13: ALCANTARILLADO | F13: TOTAL
C15: RETRIBUCIONES AL PERSONAL | D15: 48473791.37 | E15: 9693813.114 | F15: 58167604.48
C17: MATERIALES Y SUMINISTROS | D17: 14846089.05 | E17: 1293146.017 | F17: 16139235.07
C19: ENERGIA Y FLUÍDOS | D19: 15837639.73 | E19: 3337002.04 | F19: 19174641.77
C21: SERVICIOS CONTRATADOS | D21: 12075283.53 | E21: 8940513.873 | F21: 21015797.4
C23: GASTOS VARIOS | D23: 6078845.547 | E23: 78013.75809 | F23: 6156859.305
C25: AMORTIZACIÓN | D25: 31928903.73 | E25: 13465638.02 | F25: 45394541.76
C28: TOTAL | D28: 129240553 | E28: 36808126.83 | F28: 166048679.8 | H28: 0.5984771934
C33: C O N C E P T O | E33: C O S T O D E A D M I N I S T R A T I V O - C O M E R C I A L
D36: COMERCIALIZACIÓN | E36: ADMINISTRACIÓN | F36: TOTAL
C38: RETRIBUCIONES AL PERSONAL | D38: 33020619.03 | E38: 6813258.384 | F38: 39833877.42
C40: MATERIALES Y SUMINISTROS | D40: 2337086.567 | E40: 317749.8127 | F40: 2654836.38
C42: ENERGIA Y FLUÍDOS | D42: 142860.4273 | E42: 2919180.747 | F42: 3062041.174
C44: SERVICIOS CONTRATADOS | D44: 55702321.68 | E44: 5631907.718 | F44: 61334229.4
C46: GASTOS VARIOS | D46: 463481.8468 | E46: 106853.1111 | F46: 570334.9579
C48: AMORTIZACIÓN | D48: 3754046.457 | E48: 193930.227 | F48: 3947976.684
C52: TOTAL | D52: 95420416.01 | E52: 15982880 | F52: 111403296 | H52: 0.4015228066
B57: C O S T O D E E X P L O T A C I Ó N | H57: 277451975.8

Sheet C-RN-102
D4: COBERTURAS, COSTOS E INGRESOS PROMEDIO
D6: R Í O N E G R O
C10: 1. COMPOSICIÓN DEL COSTO PROPIO POR CONEXIÓN | D10: OPERATIVOS | F10: ADMINISTRATIVO-COMERCIAL
D12: AGUA | E12: ALCANTARILLADO
D13: ($/conex.agua) | E13: ($/conex.desagüe) | F13: ($/conex.agua)
C15: RETRIBUCIONES AL PERSONAL | D15: 2231.244712 | E15: 687.3094948 | F15: 1833.550169
C17: MATERIALES Y SUMINISTROS | D17: 683.364283 | E17: 91.6864731 | F17: 122.2019047
C19: ENERGIA Y FLUÍDOS | D19: 729.005281 | E19: 236.5996908 | F19: 140.9455086
C21: SERVICIOS CONTRATADOS | D21: 555.8243282 | E21: 633.8991686 | F21: 2823.209638
C23: GASTOS VARIOS | D23: 279.8087709 | E23: 5.531321475 | F23: 26.25247217
C25: AMORTIZACIÓN | D25: 1469.684867 | E25: 954.7389411 | F25: 181.7250487
C29: TOTAL | D29: 5948.932242 | E29: 2609.76509 | F29: 5127.884742
C32: 2.CONEXIONES (promedio anual) | D32: 21725 | E32: 14104
C35: 3.COBERTURAS COSTO/INGRESO
C37: 3.1 COSTO DE EXPLOTACIÓN/ INGRESO DE EXPLOT. | D37: 1.157412181 | E37: 0.7955142083
C39: 3.3 TOTAL | D39: 1.079888174 | E39: 0.7468763987
C42: 4.M3 ELEVADOS | D42: 4066810
C44: 5.M3 FACTURADOS | D44: 2424740
C47: 6. COSTO PROMEDIO
C49: 6.1 COSTO VARIABLE/ M3ELEVADOS | D49: 8.322457612
C51: 6.2 COSTO VARIABLE / M3FACTURADOS | D51: 13.95854972
C53: 6.3 COSTO EXPLOTACIÓN/M3FACT | D53: 111.1099711
C55: 6.4 TOTAL/M3FACT | D55: 113.9612129
C58: 7. INGRESOS PROMEDIO
C60: 7.1 VARIABLE/M3 FACT | D60: 49.20032706
C62: 7.2 FIJO/CONEXIONES | D62: 362.4220502
C64: 7.3 INGRESO EXPLOTACIÓN/M3FACT | D64: 95.99861909
C66: 7.4 TOTAL/M3FACT | D66: 105.5305685

Sheet A-SAL-103
B2: SALTO | C2: ESTADO DE RENDIMIENTO ECONÓMICO (a valores históricos) | I2: PERÍODO ENERO-DICIEMBRE-2025
C4: AGUA POTABLE
B5: CONCEPTOS | C5: USINA | D5: PERFORACIÓN | E5: MIXTO | F5: SUB-TOTAL | G5: ALCANTARILLADO | H5: OTROS INGRESOS | I5: TOTAL
B6: INGRESOS
B7: Ingresos Variables | E7: 233741216.9 | F7: 233741216.9 | I7: 233741216.9
B8: Ingresos Fijos | E8: 191741075.2 | F8: 191741075.2 | I8: 191741075.2
B9: INGRESOS DE EXPLOTACIÓN | E9: 425482292.2 | F9: 425482292.2 | I9: 425482292.2
B10: Ingresos Alcantarillado | G10: 308086296.8 | I10: 308086296.8
B11: Otros Ingresos | E11: 42927185.58 | F11: 42927185.58 | G11: 4230631.34 | I11: 47157816.92
B12: TOTAL ING. DE EXPLOTACIÓN | E12: 468409477.8 | F12: 468409477.8 | G12: 312316928.1 | I12: 780726405.9
B13: COSTOS DE EXPLOTACIÓN
B14: OPERATIVO
B15: Costo Operativo Var | E15: 69006921.83 | F15: 69006921.83 | G15: 9805532.21 | I15: 78812454.04
B16: Costo Operativo Fijo | E16: 97959104.11 | F16: 97959104.11 | G16: 136927430.4 | I16: 234886534.5
B17: TOTAL OPERATIVO | E17: 166966025.9 | F17: 166966025.9 | G17: 146732962.6 | I17: 313698988.5
B18: NO OPERATIVO
B19: COMERCIALIZACIÓN
B20: Comercial Propios | E20: 129076247.3 | F20: 129076247.3 | G20: 53417516.6 | I20: 182493763.9
B21: Comercial Asignados | E21: 40456973.84 | F21: 40456973.84 | G21: 26975111.22 | I21: 67432085.06
B22: TOTAL COMERCIALIZACIÓN | E22: 169533221.1 | F22: 169533221.1 | G22: 80392627.82 | I22: 249925848.9
B23: ADMINISTRACIÓN
B24: Administración Propios | E24: 18059348.64 | F24: 18059348.64 | G24: 7473765.14 | I24: 25533113.78
B25: Administ. Asignados | E25: 52600880.49 | F25: 52600880.49 | G25: 35072187.93 | I25: 87673068.42
B26: Gastos Fiscales | E26: 19770678.34 | F26: 19770678.34 | G26: 13182306.97 | I26: 32952985.31
B27: TOTAL ADMINISTRACIÓN | E27: 90430907.47 | F27: 90430907.47 | G27: 55728260.04 | I27: 146159167.5
B28: TOTAL NO OPERATIVO | E28: 259964128.6 | F28: 259964128.6 | G28: 136120887.9 | I28: 396085016.4
B29: COSTO DE EXPLOTACIÓN | E29: 426930154.5 | F29: 426930154.5 | G29: 282853850.4 | I29: 709784005
B30: RESULTADO DE EXPLOTACIÓN | E30: 41479323.22 | F30: 41479323.22 | G30: 29463077.68 | I30: 70942400.9
B31: DIVERSOS Y EXTRAORDINARIOS
B32: Ingresos Div. y Extr | E32: 5918356.85 | F32: 5918356.85 | G32: 5693800.81 | I32: 11612157.66
B33: Gtos. Div. y Extraor | E33: 2709180.24 | F33: 2709180.24 | G33: 1806374.32 | I33: 4515554.56
B34: RESULTADOS DIV. Y EXTRAORDINARIOS | E34: 3209176.61 | F34: 3209176.61 | G34: 3887426.49 | I34: 7096603.1
B35: FINANCIEROS
B36: Ingresos Financieros | E36: 40591224.14 | F36: 40591224.14 | G36: 27064624.06 | I36: 67655848.2
B37: Gastos Financieros | E37: 20483515.36 | F37: 20483515.36 | G37: 13657598.53 | I37: 34141113.89
B38: RESULTADO FINANCIERO | E38: 20107708.78 | F38: 20107708.78 | G38: 13407025.53 | I38: 33514734.31
B39: I.R.A.E. | E39: -9280530.1 | F39: -9280530.1 | G39: -6187890.69 | I39: -15468420.79
B40: RESULTADO NETO | E40: 55515678.51 | F40: 55515678.51 | G40: 40569639.01 | I40: 96085317.52

Sheet B-SAL-103
B4: SALTO
E6: C O S T O S T O T A L E S
C10: C O N C E P T O | E10: C O S T O S O P E R A T I V O S
D13: AGUA | E13: ALCANTARILLADO | F13: TOTAL
C15: RETRIBUCIONES AL PERSONAL | D15: 42130771.39 | E15: 7550022.871 | F15: 49680794.26
C17: MATERIALES Y SUMINISTROS | D17: 29322891.03 | E17: 952995.2962 | F17: 30275886.33
C19: ENERGIA Y FLUÍDOS | D19: 34697203.94 | E19: 9530508.072 | F19: 44227712.01
C21: SERVICIOS CONTRATADOS | D21: 26475842.3 | E21: 86215038.19 | F21: 112690880.5
C23: GASTOS VARIOS | D23: 10678451.2 | E23: 67370.79943 | F23: 10745822
C25: AMORTIZACIÓN | D25: 23660866.09 | E25: 42417027.35 | F25: 66077893.44
C28: TOTAL | D28: 166966025.9 | E28: 146732962.6 | F28: 313698988.5 | H28: 0.6012716809
C33: C O N C E P T O | E33: C O S T O D E A D M I N I S T R A T I V O - C O M E R C I A L
D36: COMERCIALIZACIÓN | E36: ADMINISTRACIÓN | F36: TOTAL
C38: RETRIBUCIONES AL PERSONAL | D38: 40750878.54 | E38: 7008133.764 | F38: 47759012.3
C40: MATERIALES Y SUMINISTROS | D40: 5808879.733 | E40: 1442490.259 | F40: 7251369.992
C42: ENERGIA Y FLUÍDOS | D42: 131082.2692 | E42: 4122721.887 | F42: 4253804.156
C44: SERVICIOS CONTRATADOS | D44: 124873926.9 | E44: 11866936.39 | F44: 136740863.3
C46: GASTOS VARIOS | D46: 550345.6917 | E46: 239334.7795 | F46: 789680.4712
C48: AMORTIZACIÓN | D48: 10378650.71 | E48: 853496.7026 | F48: 11232147.42
C52: TOTAL | D52: 182493763.9 | E52: 25533113.78 | F52: 208026877.7 | H52: 0.3987283191
B57: C O S T O D E E X P L O T A C I Ó N | H57: 521725866.2

Sheet C-SAL-103
D4: COBERTURAS, COSTOS E INGRESOS PROMEDIO
D6: SALTO
C10: 1. COMPOSICIÓN DEL COSTO PROPIO POR CONEXIÓN | D10: OPERATIVOS | F10: ADMINISTRATIVO-COMERCIAL
D12: AGUA | E12: ALCANTARILLADO
D13: ($/conex.agua) | E13: ($/conex.desagüe) | F13: ($/conex.agua)
C15: RETRIBUCIONES AL PERSONAL | D15: 969.2364817 | E15: 209.8510999 | F15: 1098.71658
C17: MATERIALES Y SUMINISTROS | D17: 674.5856959 | E17: 26.48827884 | F17: 166.8208795
C19: ENERGIA Y FLUÍDOS | D19: 798.2240715 | E19: 264.8982176 | F19: 97.86059069
C21: SERVICIOS CONTRATADOS | D21: 609.0881177 | E21: 2396.326594 | F21: 3145.782261
C23: GASTOS VARIOS | D23: 245.6623539 | E23: 1.872555435 | F23: 18.16693823
C25: AMORTIZACIÓN | D25: 544.3283815 | E25: 1178.971242 | F25: 258.400373
C29: TOTAL | D29: 3841.125102 | E29: 4078.407988 | F29: 4785.747623
C32: 2.CONEXIONES (promedio anual) | D32: 43468 | E32: 35978
C35: 3.COBERTURAS COSTO/INGRESO
C37: 3.1 COSTO DE EXPLOTACIÓN/ INGRESO DE EXPLOT. | D37: 0.9114464476 | E37: 0.9056628859
C39: 3.3 TOTAL | D39: 0.8561390621 | E39: 0.846568525
C42: 4.M3 ELEVADOS | D42: 10958980
C44: 5.M3 FACTURADOS | D44: 5251260
C47: 6. COSTO PROMEDIO
C49: 6.1 COSTO VARIABLE/ M3ELEVADOS | D49: 6.296838011
C51: 6.2 COSTO VARIABLE / M3FACTURADOS | D51: 13.14102174
C53: 6.3 COSTO EXPLOTACIÓN/M3FACT | D53: 81.30051731
C55: 6.4 TOTAL/M3FACT | D55: 83.94981776
C58: 7. INGRESOS PROMEDIO
C60: 7.1 VARIABLE/M3 FACT | D60: 44.51145381
C62: 7.2 FIJO/CONEXIONES | D62: 367.5904789
C64: 7.3 INGRESO EXPLOTACIÓN/M3FACT | D64: 89.19944504
C66: 7.4 TOTAL/M3FACT | D66: 98.0562872

Sheet A-ART-104
B2: ARTIGAS | C2: ESTADO DE RENDIMIENTO ECONÓMICO (a valores históricos) | I2: PERÍODO ENERO-DICIEMBRE-2025
C4: AGUA POTABLE
B5: CONCEPTOS | C5: USINA | D5: PERFORACIÓN | E5: MIXTO | F5: SUB-TOTAL | G5: ALCANTARILLADO | H5: OTROS INGRESOS | I5: TOTAL
B6: INGRESOS
B7: Ingresos Variables | D7: 12366044.5 | E7: 146245558.3 | F7: 158611602.8 | I7: 158611602.8
B8: Ingresos Fijos | D8: 9457355.74 | E8: 110813210.3 | F8: 120270566 | I8: 120270566
B9: INGRESOS DE EXPLOTACIÓN | D9: 21823400.24 | E9: 257058768.5 | F9: 278882168.8 | I9: 278882168.8
B10: Ingresos Alcantarillado | G10: 135043731.6 | I10: 135043731.6
B11: Otros Ingresos | D11: 1489599.6 | E11: 24190466.9 | F11: 25680066.5 | G11: 1470552.18 | I11: 27150618.68
B12: TOTAL ING. DE EXPLOTACIÓN | D12: 23312999.84 | E12: 281249235.4 | F12: 304562235.3 | G12: 136514283.8 | I12: 441076519
B13: COSTOS DE EXPLOTACIÓN
B14: OPERATIVO
B15: Costo Operativo Var | D15: 2448324.46 | E15: 42256233.13 | F15: 44704557.59 | G15: 19112721.41 | I15: 63817279
B16: Costo Operativo Fijo | D16: 23869720.61 | E16: 86448206.07 | F16: 110317926.7 | G16: 170948932.2 | I16: 281266858.9
B17: TOTAL OPERATIVO | D17: 26318045.07 | E17: 128704439.2 | F17: 155022484.3 | G17: 190061653.7 | I17: 345084137.9
B18: NO OPERATIVO
B19: COMERCIALIZACIÓN
B20: Comercial Propios | D20: 7850515.7 | E20: 89426169.92 | F20: 97276685.62 | G20: 26349849.1 | I20: 123626534.7
B21: Comercial Asignados | D21: 2013566.06 | E21: 24291765.08 | F21: 26305331.14 | G21: 11790869.04 | I21: 38096200.18
B22: TOTAL COMERCIALIZACIÓN | D22: 9864081.76 | E22: 113717935 | F22: 123582016.8 | G22: 38140718.14 | I22: 161722734.9
B23: ADMINISTRACIÓN
B24: Administración Propios | D24: 1594902.41 | E24: 18167725.62 | F24: 19762628.03 | G24: 5353207.38 | I24: 25115835.41
B25: Administ. Asignados | D25: 2617975.07 | E25: 31583386.17 | F25: 34201361.24 | G25: 15330115.67 | I25: 49531476.91
B26: Gastos Fiscales | D26: 983997.65 | E26: 11870998.39 | F26: 12854996.04 | G26: 5762009.77 | I26: 18617005.81
B27: TOTAL ADMINISTRACIÓN | D27: 5196875.13 | E27: 61622110.18 | F27: 66818985.31 | G27: 26445332.82 | I27: 93264318.13
B28: TOTAL NO OPERATIVO | D28: 15060956.89 | E28: 175340045.2 | F28: 190401002.1 | G28: 64586050.96 | I28: 254987053
B29: COSTO DE EXPLOTACIÓN | D29: 41379001.96 | E29: 304044484.4 | F29: 345423486.3 | G29: 254647704.6 | I29: 600071191
B30: RESULTADO DE EXPLOTACIÓN | D30: -18066002.12 | E30: -22795248.95 | F30: -40861251.07 | G30: -118133420.9 | I30: -158994671.9
B31: DIVERSOS Y EXTRAORDINARIOS
B32: Ingresos Div. y Extr | D32: 294559.71 | E32: 3553585.95 | F32: 3848145.66 | G32: 2488769.72 | I32: 6336915.38
B33: Gtos. Div. y Extraor | D33: 134837.4 | E33: 1626685.37 | F33: 1761522.77 | G33: 789569.44 | I33: 2551092.21
B34: RESULTADOS DIV. Y EXTRAORDINARIOS | D34: 159722.31 | E34: 1926900.58 | F34: 2086622.89 | G34: 1699200.28 | I34: 3785823.17
B35: FINANCIEROS
B36: Ingresos Financieros | D36: 2020247.77 | E36: 24372373.46 | F36: 26392621.23 | G36: 11829995.25 | I36: 38222616.48
B37: Gastos Financieros | D37: 1019475.94 | E37: 12299010.38 | F37: 13318486.32 | G37: 5969760.58 | I37: 19288246.9
B38: RESULTADO FINANCIERO | D38: 1000771.83 | E38: 12073363.08 | F38: 13074134.91 | G38: 5860234.67 | I38: 18934369.58
B39: I.R.A.E. | D39: -461897.14 | E39: -5572350.93 | F39: -6034248.07 | G39: -2704738.02 | I39: -8738986.09
B40: RESULTADO NETO | D40: -17367405.12 | E40: -14367336.22 | F40: -31734741.34 | G40: -113278723.9 | I40: -145013465.3

Sheet B-ART-104
B4: ARTIGAS
D6: COSTOS TOTALES
C10: C O N C E P T O | E10: C O S T O S O P E R A T I V O S
D13: AGUA | E13: ALCANTARILLADO | F13: TOTAL
C15: RETRIBUCIONES AL PERSONAL | D15: 59680644.64 | E15: 7098155.036 | F15: 66778799.67
C17: MATERIALES Y SUMINISTROS | D17: 15838048.53 | E17: 522494.0593 | F17: 16360542.58
C19: ENERGIA Y FLUÍDOS | D19: 25844322.31 | E19: 18734256.93 | F19: 44578579.24
C21: SERVICIOS CONTRATADOS | D21: 30306106.58 | E21: 144217203.8 | F21: 174523310.4
C23: GASTOS VARIOS | D23: 2822270.17 | E23: 58038.28316 | F23: 2880308.453
C25: AMORTIZACIÓN | D25: 20531092.05 | E25: 19431505.54 | F25: 39962597.6
C28: TOTAL | D28: 155022484.3 | E28: 190061653.7 | F28: 345084137.9 | H28: 0.6987963025
C33: C O N C E P T O | E33: C O S T O D E A D M I N I S T R A T I V O - C O M E R C I A L
D36: COMERCIALIZACIÓN | E36: ADMINISTRACIÓN | F36: TOTAL
C38: RETRIBUCIONES AL PERSONAL | D38: 33794030.31 | E38: 5992871.714 | F38: 39786902.03
C40: MATERIALES Y SUMINISTROS | D40: 2645193.371 | E40: 694433.6005 | F40: 3339626.972
C42: ENERGIA Y FLUÍDOS | D42: 490622.4826 | E42: 5507010.397 | F42: 5997632.879
C44: SERVICIOS CONTRATADOS | D44: 82477997.57 | E44: 12445702.99 | F44: 94923700.55
C46: GASTOS VARIOS | D46: 503890.2639 | E46: 96362.72553 | F46: 600252.9894
C48: AMORTIZACIÓN | D48: 3714800.723 | E48: 379453.9843 | F48: 4094254.707
C52: TOTAL | D52: 123626534.7 | E52: 25115835.41 | F52: 148742370.1 | H52: 0.3012036975
B57: C O S T O D E E X P L O T A C I Ó N | H57: 493826508.1

Sheet C-ART-104
D4: COBERTURAS, COSTOS E INGRESOS PROMEDIO
D6: A R T I G A S
C10: 1. COMPOSICIÓN DEL COSTO PROPIO POR CONEXIÓN | D10: OPERATIVOS | F10: ADMINISTRATIVO-COMERCIAL
D12: AGUA | E12: ALCANTARILLADO
D13: ($/conex.agua) | E13: ($/conex.desagüe) | F13: ($/conex.agua)
C15: RETRIBUCIONES AL PERSONAL | D15: 2036.534538 | E15: 447.0997125 | F15: 1357.683058
C17: MATERIALES Y SUMINISTROS | D17: 540.4555033 | E17: 32.91093848 | F17: 113.9609954
C19: ENERGIA Y FLUÍDOS | D19: 881.9082856 | E19: 1180.03634 | F19: 204.6624426
C21: SERVICIOS CONTRATADOS | D21: 1034.16163 | E21: 9083.976052 | F21: 3239.163984
C23: GASTOS VARIOS | D23: 96.30677939 | E23: 3.655724563 | F23: 20.48295477
C25: AMORTIZACIÓN | D25: 700.6003089 | E25: 1223.954746 | F25: 139.7118139
C29: TOTAL | D29: 5289.967046 | E29: 11971.63351 | F29: 5075.665249
C32: 2.CONEXIONES (promedio anual) | D32: 29305 | E32: 15876
C35: 3.COBERTURAS COSTO/INGRESO
C37: 3.1 COSTO DE EXPLOTACIÓN/ INGRESO DE EXPLOT. | D37: 1.13416388 | E37: 1.865355753
C39: 3.3 TOTAL | D39: 1.058739752 | E39: 1.715156584
C42: 4.M3 ELEVADOS | D42: 9045290
C44: 5.M3 FACTURADOS | D44: 3531230
C47: 6. COSTO PROMEDIO
C49: 6.1 COSTO VARIABLE/ M3ELEVADOS | D49: 4.942302302
C51: 6.2 COSTO VARIABLE / M3FACTURADOS | D51: 12.65976943
C53: 6.3 COSTO EXPLOTACIÓN/M3FACT | D53: 97.8195944
C55: 6.4 TOTAL/M3FACT | D55: 100.3812403
C58: 7. INGRESOS PROMEDIO
C60: 7.1 VARIABLE/M3 FACT | D60: 44.91681447
C62: 7.2 FIJO/CONEXIONES | D62: 342.008093
C64: 7.3 INGRESO EXPLOTACIÓN/M3FACT | D64: 86.24820113
C66: 7.4 TOTAL/M3FACT | D66: 94.81200663

Sheet A-200-AG-NORESTE
B2: AMBITO GEOGRÁFICO NORESTE | C2: ESTADO DE RENDIMIENTO ECONÓMICO (a valores históricos) | I2: PERÍODO ENERO-DICIEMBRE-2025
C4: AGUA POTABLE
B5: CONCEPTOS | C5: USINA | D5: PERFORACIÓN | E5: MIXTO | F5: SUB-TOTAL | G5: ALCANTARILLADO | H5: OTROS INGRESOS | I5: TOTAL
B6: INGRESOS
B7: Ingresos Variables | C7: 151466633.5 | D7: 23247078.4 | E7: 443486302 | F7: 618200013.9 | I7: 618200013.9
B8: Ingresos Fijos | C8: 137846406.4 | D8: 21895178.5 | E8: 347950156.1 | F8: 507691741 | I8: 507691741
B9: INGRESOS DE EXPLOTACIÓN | C9: 289313039.9 | D9: 45142256.9 | E9: 791436458 | F9: 1125891755 | I9: 1125891755
B10: Ingresos Alcantarillado | G10: 471542067.4 | I10: 471542067.4
B11: Otros Ingresos | C11: 28712341.47 | D11: 3863118.39 | E11: 77882059.85 | F11: 110457519.7 | G11: 5188678.74 | I11: 115646198.5
B12: TOTAL ING. DE EXPLOTACIÓN | C12: 318025381.4 | D12: 49005375.29 | E12: 869318517.9 | F12: 1236349275 | G12: 476730746.2 | I12: 1713080021
B13: COSTOS DE EXPLOTACIÓN
B14: OPERATIVO
B15: Costo Operativo Var | C15: 59913975.1 | D15: 7482944.26 | E15: 150626388.4 | F15: 218023307.8 | G15: 61383017.03 | I15: 279406324.8
B16: Costo Operativo Fijo | C16: 125279394 | D16: 44736021.3 | E16: 337120108.1 | F16: 507135523.5 | G16: 271880250.7 | I16: 779015774.2
B17: TOTAL OPERATIVO | C17: 185193369.1 | D17: 52218965.56 | E17: 487746496.5 | F17: 725158831.2 | G17: 333263267.8 | I17: 1058422099
B18: NO OPERATIVO
B19: COMERCIALIZACIÓN
B20: Comercial Propios | C20: 116317056.2 | D20: 19163150.98 | E20: 248275118.6 | F20: 383755325.8 | G20: 99468670.28 | I20: 483223996
B21: Comercial Asignados | C21: 27468155.91 | D21: 4232641.05 | E21: 75083870.27 | F21: 106784667.2 | G21: 41175689.78 | I21: 147960357
B22: TOTAL COMERCIALIZACIÓN | C22: 143785212.1 | D22: 23395792.03 | E22: 323358988.9 | F22: 490539993 | G22: 140644360.1 | I22: 631184353
B23: ADMINISTRACIÓN
B24: Administración Propios | C24: 31450826.88 | D24: 3977857.45 | E24: 61485893.72 | F24: 96914578.05 | G24: 25076625.69 | I24: 121991203.7
B25: Administ. Asignados | C25: 35713229.12 | D25: 5503146.44 | E25: 97621677.96 | F25: 138838053.5 | G25: 53535332.01 | I25: 192373385.5
B26: Gastos Fiscales | C26: 13423250.02 | D26: 2068424.23 | E26: 36692290.84 | F26: 52183965.09 | G26: 20121903.38 | I26: 72305868.47
B27: TOTAL ADMINISTRACIÓN | C27: 80587306.02 | D27: 11549428.12 | E27: 195799862.5 | F27: 287936596.7 | G27: 98733861.08 | I27: 386670457.7
B28: TOTAL NO OPERATIVO | C28: 224372518.1 | D28: 34945220.15 | E28: 519158851.4 | F28: 778476589.6 | G28: 239378221.1 | I28: 1017854811
B29: COSTO DE EXPLOTACIÓN | C29: 409565887.2 | D29: 87164185.71 | E29: 1006905348 | F29: 1503635421 | G29: 572641488.9 | I29: 2076276910
B30: RESULTADO DE EXPLOTACIÓN | C30: -91540505.86 | D30: -38158810.42 | E30: -137586830 | F30: -267286146.3 | G30: -95910742.74 | I30: -363196889
B31: DIVERSOS Y EXTRAORDINARIOS
B32: Ingresos Div. y Extr | C32: 4018252.71 | D32: 619182.72 | E32: 10983845.2 | F32: 15621280.63 | G32: 8691201.56 | I32: 24312482.19
B33: Gtos. Div. y Extraor | C33: 1839390.81 | D33: 283436.65 | E33: 5027952.43 | F33: 7150779.89 | G33: 2757308.72 | I33: 9908088.61
B34: RESULTADOS DIV. Y EXTRAORDINARIOS | C34: 2178861.9 | D34: 335746.07 | E34: 5955892.77 | F34: 8470500.74 | G34: 5933892.84 | I34: 14404393.58
B35: FINANCIEROS
B36: Ingresos Financieros | C36: 27559304.78 | D36: 4246686.5 | E36: 75333024.77 | F36: 107139016 | G36: 41312325.03 | I36: 148451341.1
B37: Gastos Financieros | C37: 13907228.85 | D37: 2143001.85 | E37: 38015241.03 | F37: 54065471.73 | G37: 20847403.94 | I37: 74912875.67
B38: RESULTADO FINANCIERO | C38: 13652075.93 | D38: 2103684.65 | E38: 37317783.74 | F38: 53073544.32 | G38: 20464921.09 | I38: 73538465.41
B39: I.R.A.E. | C39: -6300991.48 | D39: -970936.51 | E39: -17223683.66 | F39: -24495611.65 | G39: -9445398.2 | I39: -33941009.85
B40: RESULTADO NETO | C40: -82010559.51 | D40: -36690316.21 | E40: -111536837.2 | F40: -230237712.9 | G40: -78957327.01 | I40: -309195039.9

Sheet B-200-AG-NORESTE
B4: AMBITO GEOGRÁFICO NORESTE
D6: C O S T O S T O T A L E S
C10: C O N C E P T O | D10: C O S T O S O P E R A T I V O S
D13: AGUA | E13: ALCANTARILLADO | F13: TOTAL
C15: RETRIBUCIONES AL PERSONAL | D15: 276609851.6 | E15: 84588585.06 | F15: 361198436.7
C17: MATERIALES Y SUMINISTROS | D17: 77827825.67 | E17: 13766176.17 | F17: 91594001.85
C19: ENERGIA Y FLUÍDOS | D19: 117023950.9 | E19: 32979473.72 | F19: 150003424.6
C21: SERVICIOS CONTRATADOS | D21: 130550616.7 | E21: 117934166.6 | F21: 248484783.3
C23: GASTOS VARIOS | D23: 13264839.75 | E23: 671509.6128 | F23: 13936349.37
C25: AMORTIZACIÓN | D25: 109881746.6 | E25: 83323356.57 | F25: 193205103.2
C28: TOTAL | D28: 725158831.2 | E28: 333263267.7 | F28: 1058422099 | H28: 0.6362096472
C33: C O N C E P T O | D33: C O S T O D E A D M I N I S T R A T I V O - C O M E R C I A L
D36: COMERCIALIZACIÓN | E36: ADMINISTRACIÓN | F36: TOTAL
C38: RETRIBUCIONES AL PERSONAL | D38: 209987180.6 | E38: 55908727.57 | F38: 265895908.2
C40: MATERIALES Y SUMINISTROS | D40: 15410034.45 | E40: 4691021.119 | F40: 20101055.57
C42: ENERGIA Y FLUÍDOS | D42: 454283.5552 | E42: 19682557.16 | F42: 20136840.71
C44: SERVICIOS CONTRATADOS | D44: 232492100.3 | E44: 34583945.85 | F44: 267076046.1
C46: GASTOS VARIOS | D46: 2559240.672 | E46: 2503776.492 | F46: 5063017.164
C48: AMORTIZACIÓN | D48: 22321156.46 | E48: 4621175.555 | F48: 26942332.01
C52: TOTAL | D52: 483223996 | E52: 121991203.7 | F52: 605215199.8 | H52: 0.3637903528
B57: C O S T O D E E X P L O T A C I Ó N | H57: 1663637299

Sheet C-200-AG-NORESTE
D4: COBERTURAS, COSTOS E INGRESOS PROMEDIO
D6: A M B I T O G E O G R A F I C O N O R E S T E
C10: 1. COMPOSICIÓN DEL COSTO PROPIO POR CONEXIÓN | D10: OPERATIVOS | F10: ADMINISTRATIVO-COMERCIAL
D12: AGUA | E12: ALCANTARILLADO
D13: ($/conex.agua) | E13: ($/conex.desagüe) | F13: ($/conex.agua)
C15: RETRIBUCIONES AL PERSONAL | D15: 2336.784473 | E15: 1380.632387 | F15: 2246.273681
C17: MATERIALES Y SUMINISTROS | D17: 657.4850951 | E17: 224.687866 | F17: 169.8125871
C19: ENERGIA Y FLUÍDOS | D19: 988.611757 | E19: 538.2821982 | F19: 170.1148981
C21: SERVICIOS CONTRATADOS | D21: 1102.884269 | E21: 1924.890099 | F21: 2256.24342
C23: GASTOS VARIOS | D23: 112.0606204 | E23: 10.96020129 | F23: 42.77208431
C25: AMORTIZACIÓN | D25: 928.2748166 | E25: 1359.981664 | F25: 227.6073059
C29: TOTAL | D29: 6126.101031 | E29: 5439.434415 | F29: 5112.823977
C32: 2.CONEXIONES (promedio anual) | D32: 118372 | E32: 61268
C35: 3.COBERTURAS COSTO/INGRESO
C37: 3.1 COSTO DE EXPLOTACION/ INGRESO DE EXPLOT. | D37: 1.216189836 | E37: 1.201184303
C39: 3.3 TOTAL | D39: 1.13335679 | E39: 1.114035736
C42: 4.M3 ELEVADOS | D42: 27059070
C44: 5.M3 FACTURADOS | D44: 12523970
C47: 6. COSTO PROMEDIO
C49: 6.1 COSTO VARIABLE/ M3ELEVADOS | D49: 8.057309721
C51: 6.2 COSTO VARIABLE / M3FACTURADOS | D51: 17.40848211
C53: 6.3 COSTO EXPLOTACION/M3FACT | D53: 120.0606055
C55: 6.4 TOTAL/M3FACT | D55: 122.9926342
C58: 7. INGRESOS PROMEDIO
C60: 7.1 VARIABLE/M3 FACT | D60: 49.36134579
C62: 7.2 FIJO/CONEXIONES | D62: 357.4126067
C64: 7.3 INGRESO EXPLOTACION/M3FACT | D64: 98.7186391
C66: 7.4 TOTAL/M3FACT | D66: 108.5206665

Sheet A-RIV-201
B2: RIVERA | C2: ESTADO DE RENDIMIENTO ECONÓMICO (a valores históricos) | I2: PERÍODO ENERO-DICIEMBRE-2025
C4: AGUA POTABLE
B5: CONCEPTOS | C5: USINA | D5: PERFORACIÓN | E5: MIXTO | F5: SUB-TOTAL | G5: ALCANTARILLADO | H5: OTROS INGRESOS | I5: TOTAL
B6: INGRESOS
B7: Ingresos Variables | D7: 12640734.26 | E7: 190658560.8 | F7: 203299295.1 | I7: 203299295.1
B8: Ingresos Fijos | D8: 13087043.49 | E8: 151196612.2 | F8: 164283655.7 | I8: 164283655.7
B9: INGRESOS DE EXPLOTACION | D9: 25727777.75 | E9: 341855173 | F9: 367582950.8 | I9: 367582950.8
B10: Ingresos Alcantarillado | G10: 162306551.7 | I10: 162306551.7
B11: Otros Ingresos | D11: 2425020.89 | E11: 37511630.85 | F11: 39936651.74 | G11: 1539615.06 | I11: 41476266.8
B12: TOTAL ING. DE EXPLOTACION | D12: 28152798.64 | E12: 379366803.9 | F12: 407519602.5 | G12: 163846166.8 | I12: 571365769.2
B13: COSTOS DE EXPLOTACION
B14: OPERATIVO
B15: Costo Operativo Var | D15: 3975950.68 | E15: 72317682.98 | F15: 76293633.66 | G15: 16857754.75 | I15: 93151388.41
B16: Costo Operativo Fijo | D16: 17734842.97 | E16: 189651260.7 | F16: 207386103.6 | G16: 98252049.9 | I16: 305638153.5
B17: TOTAL OPERATIVO | D17: 21710793.65 | E17: 261968943.6 | F17: 283679737.3 | G17: 115109804.7 | I17: 398789541.9
B18: NO OPERATIVO
B19: COMERCIALIZACIÓN
B20: Comercial Propios | D20: 10872802.43 | E20: 117316085 | F20: 128188887.5 | G20: 33307885.67 | I20: 161496773.1
B21: Comercial Asignados | D21: 2431584.06 | E21: 32766273 | F21: 35197857.06 | G21: 14151549.87 | I21: 49349406.93
B22: TOTAL COMERCIALIZACIÓN | D22: 13304386.49 | E22: 150082358 | F22: 163386744.5 | G22: 47459435.54 | I22: 210846180.1
B23: ADMINISTRACIÓN
B24: Administración Propios | D24: 1758585.89 | E24: 18974906.16 | F24: 20733492.05 | G24: 5387274.97 | I24: 26120767.02
B25: Administ. Asignados | D25: 3161469.04 | E25: 42601673.9 | F25: 45763142.94 | G25: 18399398.45 | I25: 64162541.39
B26: Gastos Fiscales | D26: 1188276.41 | E26: 16012355.45 | F26: 17200631.86 | G26: 6915636.89 | I26: 24116268.75
B27: TOTAL ADMINISTRACIÓN | D27: 6108331.34 | E27: 77588935.51 | F27: 83697266.85 | G27: 30702310.31 | I27: 114399577.2
B28: TOTAL NO OPERATIVO | D28: 19412717.83 | E28: 227671293.6 | F28: 247084011.4 | G28: 78161745.85 | I28: 325245757.2
B29: COSTO DE EXPLOTACION | D29: 41123511.48 | E29: 489640237.2 | F29: 530763748.7 | G29: 193271550.5 | I29: 724035299.2
B30: RESULTADO DE EXPLOTACION | D30: -12970712.84 | E30: -110273433.3 | F30: -123244146.2 | G30: -29425383.74 | I30: -152669529.9
B31: DIVERSOS Y EXTRAORDINARIOS
B32: Ingresos Div. y Extr | D32: 355710.52 | E32: 4793302.09 | F32: 5149012.61 | G32: 2987053.17 | I32: 8136065.78
B33: Gtos. Div. y Extraor | D33: 162829.8 | E33: 2194176.49 | F33: 2357006.29 | G33: 947651.2 | I33: 3304657.49
B34: RESULTADOS DIV. Y EXTRAORDINARI | D34: 192880.72 | E34: 2599125.6 | F34: 2792006.32 | G34: 2039401.97 | I34: 4831408.29
B35: FINANCIEROS
B36: Ingresos Financieros | D36: 2439652.97 | E36: 32875002.95 | F36: 35314655.92 | G36: 14198509.62 | I36: 49513165.54
B37: Gastos Financieros | D37: 1231120.04 | E37: 16589685.12 | F37: 17820805.16 | G37: 7164981.99 | I37: 24985787.15
B38: RESULTADO FINANCIERO | D38: 1208532.93 | E38: 16285317.83 | F38: 17493850.76 | G38: 7033527.63 | I38: 24527378.39
B39: I.R.A.E. | D39: -557787.38 | E39: -7516340.32 | F39: -8074127.7 | G39: -3246260.71 | I39: -11320388.41
B40: RESULTADO NETO | D40: -12127086.57 | E40: -98905330.23 | F40: -111032416.8 | G40: -23598714.85 | I40: -134631131.7

Sheet B-RIV-201
B4: R I V E R A
D6: C O S T O S T O T A L E S
C10: C O N C E P T O | D10: C O S T O S O P E R A T I V O S
D13: AGUA | E13: ALCANTARILLADO | F13: TOTAL
C15: RETRIBUCIONES AL PERSONAL | D15: 88409048.1 | E15: 23254728.35 | F15: 111663776.5
C17: MATERIALES Y SUMINISTROS | D17: 12785122.11 | E17: 1235553.185 | F17: 14020675.3
C19: ENERGIA Y FLUÍDOS | D19: 56076611.29 | E19: 13143202.47 | F19: 69219813.76
C21: SERVICIOS CONTRATADOS | D21: 79408572.66 | E21: 51538410.36 | F21: 130946983
C23: GASTOS VARIOS | D23: 6547023.024 | E23: 187093.7367 | F23: 6734116.761
C25: AMORTIZACIÓN | D25: 40453360.09 | E25: 25750816.52 | F25: 66204176.62
C28: TOTAL | D28: 283679737.3 | E28: 115109804.6 | F28: 398789541.9 | H28: 0.6800558078
C33: C O N C E P T O | D33: C O S T O D E A D M I N I S T R A T I V O - C O M E R C I A L
D36: COMERCIALIZACIÓN | E36: ADMINISTRACIÓN | F36: TOTAL
C38: RETRIBUCIONES AL PERSONAL | D38: 61866212.56 | E38: 7498262.107 | F38: 69364474.67
C40: MATERIALES Y SUMINISTROS | D40: 5447657.494 | E40: 541849.8904 | F40: 5989507.385
C42: ENERGIA Y FLUÍDOS | D42: 111105.6754 | E42: 5345898.135 | F42: 5457003.811
C44: SERVICIOS CONTRATADOS | D44: 85231125.45 | E44: 10862494.57 | F44: 96093620.03
C46: GASTOS VARIOS | D46: 725136.8849 | E46: 647853.438 | F46: 1372990.323
C48: AMORTIZACIÓN | D48: 8115535.069 | E48: 1224408.874 | F48: 9339943.944
C52: TOTAL | D52: 161496773.1 | E52: 26120767.02 | F52: 187617540.2 | H52: 0.3199441922
B57: C O S T O D E E X P L O T A C I Ó N | H57: 586407082.1

Sheet C-RIV-201
D4: COBERTURAS, COSTOS E INGRESOS PROMEDIO
D6: R I V E R A
C10: 1. COMPOSICION DEL COSTO PROPIO POR CONEXIÓN | D10: OPERATIVOS | F10: ADMINISTRATIVO-COMERCIAL
D12: AGUA | E12: ALCANTARILLADO
D13: ($/conex.agua) | E13: ($/conex.desagüe) | F13: ($/conex.agua)
C15: RETRIBUCIONES AL PERSONAL | D15: 2330.970473 | E15: 1179.844158 | F15: 1828.846094
C17: MATERIALES Y SUMINISTROS | D17: 337.0892774 | E17: 62.68661519 | F17: 157.9178281
C19: ENERGIA Y FLUÍDOS | D19: 1478.501669 | E19: 666.8291462 | F19: 143.8779743
C21: SERVICIOS CONTRATADOS | D21: 2093.666227 | E21: 2614.835635 | F21: 2533.579942
C23: GASTOS VARIOS | D23: 172.6171436 | E23: 9.492325558 | F23: 36.1999136
C25: AMORTIZACIÓN | D25: 1066.583002 | E25: 1306.484857 | F25: 246.2545862
C29: TOTAL | D29: 7479.427792 | E29: 5840.172736 | F29: 4946.676338
C32: 2.CONEXIONES (promedio anual) | D32: 37928 | E32: 19710
C35: 3.COBERTURAS COSTO/INGRESO
C37: 3.1 COSTO DE EXPLOTACION/ INGRESO DE EXPLOT. | D37: 1.302425075 | E37: 1.17959153
C39: 3.3 TOTAL | D39: 1.211802912 | E39: 1.094492791
C42: 4.M3 ELEVADOS | D42: 10386130
C44: 5.M3 FACTURADOS | D44: 4178970
C47: 6. COSTO PROMEDIO
C49: 6.1 COSTO VARIABLE/ M3ELEVADOS | D49: 7.345722965
C51: 6.2 COSTO VARIABLE / M3FACTURADOS | D51: 18.2565641
C53: 6.3 COSTO EXPLOTACION/M3FACT | D53: 127.0082697
C55: 6.4 TOTAL/M3FACT | D55: 129.9046015
C58: 7. INGRESOS PROMEDIO
C60: 7.1 VARIABLE/M3 FACT | D60: 48.64818246
C62: 7.2 FIJO/CONEXIONES | D62: 360.9550897
C64: 7.3 INGRESO EXPLOTACION/M3FACT | D64: 97.51675712
C66: 7.4 TOTAL/M3FACT | D66: 107.1994465

Sheet A-TAC-202
B2: TACUAREMBÓ | C2: ESTADO DE RENDIMIENTO ECONÓMICO (a valores históricos) | I2: PERÍODO ENERO-DICIEMBRE-2025
C4: AGUA POTABLE
B5: CONCEPTOS | C5: USINA | D5: PERFORACIÓN | E5: MIXTO | F5: SUB-TOTAL | G5: ALCANTARILLADO | H5: OTROS INGRESOS | I5: TOTAL
B6: INGRESOS
B7: Ingresos Variables | C7: 6737943.32 | E7: 217801555.6 | F7: 224539498.9 | I7: 224539498.9
B8: Ingresos Fijos | C8: 5466555.34 | E8: 165238664.6 | F8: 170705219.9 | I8: 170705219.9
B9: INGRESOS DE EXPLOTACION | C9: 12204498.66 | E9: 383040220.1 | F9: 395244718.8 | I9: 395244718.8
B10: Ingresos Alcantarillado | G10: 156073371.7 | I10: 156073371.7
B11: Otros Ingresos | C11: 867395 | E11: 35201292.9 | F11: 36068687.9 | G11: 2180217.77 | I11: 38248905.67
B12: TOTAL ING. DE EXPLOTACION | C12: 13071893.66 | E12: 418241513.1 | F12: 431313406.7 | G12: 158253589.5 | I12: 589566996.2
B13: COSTOS DE EXPLOTACION
B14: OPERATIVO
B15: Costo Operativo Var | C15: 2675372.66 | E15: 65715210.52 | F15: 68390583.18 | G15: 21056414.9 | I15: 89446998.08
B16: Costo Operativo Fijo | C16: 31828639.41 | E16: 108707814.4 | F16: 140536453.8 | G16: 81419750.1 | I16: 221956203.9
B17: TOTAL OPERATIVO | C17: 34504012.07 | E17: 174423024.9 | F17: 208927037 | G17: 102476165 | I17: 311403202
B18: NO OPERATIVO
B19: COMERCIALIZACIÓN
B20: Comercial Propios | C20: 4229627.88 | E20: 100562317.9 | F20: 104791945.8 | G20: 26692238.1 | I20: 131484183.9
B21: Comercial Asignados | C21: 1129031.87 | E21: 36123918.81 | F21: 37252950.68 | G21: 13668513.65 | I21: 50921464.33
B22: TOTAL COMERCIALIZACIÓN | C22: 5358659.75 | E22: 136686236.7 | F22: 142044896.5 | G22: 40360751.75 | I22: 182405648.2
B23: ADMINISTRACIÓN
B24: Administración Propios | C24: 1445761.94 | E24: 34373987.41 | F24: 35819749.35 | G24: 9123881.28 | I24: 44943630.63
B25: Administ. Asignados | C25: 1467931.53 | E25: 46967178.83 | F25: 48435110.36 | G25: 17771369.86 | I25: 66206480.22
B26: Gastos Fiscales | C26: 551739.93 | E26: 17653183.4 | F26: 18204923.33 | G26: 6679584.8 | I26: 24884508.13
B27: TOTAL ADMINISTRACIÓN | C27: 3465433.4 | E27: 98994349.64 | F27: 102459783 | G27: 33574835.94 | I27: 136034619
B28: TOTAL NO OPERATIVO | C28: 8824093.15 | E28: 235680586.4 | F28: 244504679.5 | G28: 73935587.69 | I28: 318440267.2
B29: COSTO DE EXPLOTACION | C29: 43328105.22 | E29: 410103611.3 | F29: 453431716.5 | G29: 176411752.7 | I29: 629843469.2
B30: RESULTADO DE EXPLOTACION | C30: -30256211.56 | E30: 8137901.79 | F30: -22118309.77 | G30: -18158163.19 | I30: -40276472.96
B31: DIVERSOS Y EXTRAORDINARIOS
B32: Ingresos Div. y Extr | C32: 165163.42 | E32: 5284484.37 | F32: 5449647.79 | G32: 2885095.75 | I32: 8334743.54
B33: Gtos. Div. y Extraor | C33: 75605.05 | E33: 2419019.44 | F33: 2494624.49 | G33: 915304.93 | I33: 3409929.42
B34: RESULTADOS DIV. Y EXTRAORDINARIOS | C34: 89558.37 | E34: 2865464.93 | F34: 2955023.3 | G34: 1969790.82 | I34: 4924814.12
B35: FINANCIEROS
B36: Ingresos Financieros | C36: 1132778.48 | E36: 36243790.52 | F36: 37376569 | G36: 13713870.54 | I36: 51090439.54
B37: Gastos Financieros | C37: 571633.07 | E37: 18289673.58 | F37: 18861306.65 | G37: 6920418.99 | I37: 25781725.64
B38: RESULTADO FINANCIERO | C38: 561145.41 | E38: 17954116.94 | F38: 18515262.35 | G38: 6793451.55 | I38: 25308713.9
B39: I.R.A.E. | C39: -258991.57 | E39: -8286559.37 | F39: -8545550.94 | G39: -3135455.77 | I39: -11681006.71
B40: RESULTADO NETO | C40: -29864499.35 | E40: 20670924.29 | F40: -9193575.06 | G40: -12530376.59 | I40: -21723951.65

Sheet B-TAC-202
B4: T A C U A R E M B Ó
D6: C O S T O S T O T A L E S
C10: C O N C E P T O | D10: C O S T O S O P E R A T I V O S
D13: AGUA | E13: ALCANTARILLADO | F13: TOTAL
C15: RETRIBUCIONES AL PERSONAL | D15: 82968341.1 | E15: 37556717.36 | F15: 120525058.5
C17: MATERIALES Y SUMINISTROS | D17: 33454382.08 | E17: 6421020.279 | F17: 39875402.36
C19: ENERGIA Y FLUÍDOS | D19: 28769336.51 | E19: 9899905.399 | F19: 38669241.91
C21: SERVICIOS CONTRATADOS | D21: 25354167.02 | E21: 18218903.94 | F21: 43573070.96
C23: GASTOS VARIOS | D23: 4103362.622 | E23: 295430.159 | F23: 4398792.781
C25: AMORTIZACIÓN | D25: 34277447.64 | E25: 30084187.87 | F25: 64361635.51
C28: TOTAL | D28: 208927037 | E28: 102476165 | F28: 311403202 | H28: 0.6383423592
C33: C O N C E P T O | D33: C O S T O D E A D M I N I S T R A T I V O - C O M E R C I A L
D36: COMERCIALIZACIÓN | E36: ADMINISTRACIÓN | F36: TOTAL
C38: RETRIBUCIONES AL PERSONAL | D38: 65768184.14 | E38: 23306187.22 | F38: 89074371.36
C40: MATERIALES Y SUMINISTROS | D40: 5730048.801 | E40: 1986526.521 | F40: 7716575.322
C42: ENERGIA Y FLUÍDOS | D42: 134138.8152 | E42: 7290504.891 | F42: 7424643.706
C44: SERVICIOS CONTRATADOS | D44: 51690792.9 | E44: 10296135.23 | F44: 61986928.12
C46: GASTOS VARIOS | D46: 828421.2059 | E46: 844617.703 | F46: 1673038.909
C48: AMORTIZACIÓN | D48: 7332598.032 | E48: 1219659.073 | F48: 8552257.104
C52: TOTAL | D52: 131484183.9 | E52: 44943630.63 | F52: 176427814.5 | H52: 0.3616576408
B57: C O S T O D E E X P L O T A C I Ó N | H57: 487831016.5

Sheet C-TAC-202
D4: COBERTURAS, COSTOS E INGRESOS PROMEDIO
D6: T A C U A R E M B Ó
C10: 1. COMPOSICION DEL COSTO PROPIO POR CONEXIÓN | D10: OPERATIVOS | F10: ADMINISTRATIVO-COMERCIAL
D12: AGUA | E12: ALCANTARILLADO
D13: ($/conex.agua) | E13: ($/conex.desagüe) | F13: ($/conex.agua)
C15: RETRIBUCIONES AL PERSONAL | D15: 2098.233299 | E15: 1864.412101 | F15: 2252.652151
C17: MATERIALES Y SUMINISTROS | D17: 846.0467878 | E17: 318.7559709 | F17: 195.1488372
C19: ENERGIA Y FLUÍDOS | D19: 727.5640208 | E19: 491.4567811 | F19: 187.7660135
C21: SERVICIOS CONTRATADOS | D21: 641.1958681 | E21: 904.4332774 | F21: 1567.62248
C23: GASTOS VARIOS | D23: 103.7722579 | E23: 14.66591337 | F23: 42.31042711
C25: AMORTIZACIÓN | D25: 866.8617581 | E25: 1493.456507 | F25: 216.2828664
C29: TOTAL | D29: 5283.673991 | E29: 5087.18055 | F29: 4461.782776
C32: 2.CONEXIONES (promedio anual) | D32: 39542 | E32: 20144
C35: 3.COBERTURAS COSTO/INGRESO
C37: 3.1 COSTO DE EXPLOTACION/ INGRESO DE EXPLOT. | D37: 1.051281294 | E37: 1.114740925
C39: 3.3 TOTAL | D39: 0.9833434574 | E39: 1.035798533
C42: 4.M3 ELEVADOS | D42: 9107730
C44: 5.M3 FACTURADOS | D44: 4307230
C47: 6. COSTO PROMEDIO
C49: 6.1 COSTO VARIABLE/ M3ELEVADOS | D49: 7.509070117
C51: 6.2 COSTO VARIABLE / M3FACTURADOS | D51: 15.87808944
C53: 6.3 COSTO EXPLOTACION/M3FACT | D53: 105.2722321
C55: 6.4 TOTAL/M3FACT | D55: 108.2463896
C58: 7. INGRESOS PROMEDIO
C60: 7.1 VARIABLE/M3 FACT | D60: 52.13083558
C62: 7.2 FIJO/CONEXIONES | D62: 359.7550703
C64: 7.3 INGRESO EXPLOTACION/M3FACT | D64: 100.1370734
C66: 7.4 TOTAL/M3FACT | D66: 110.0799408

Sheet A-CL-204
B2: CERRO LARGO | C2: ESTADO DE RENDIMIENTO ECONÓMICO (a valores históricos) | I2: PERÍODO ENERO-DICIEMBRE-2025
C4: AGUA POTABLE
B5: CONCEPTOS | C5: USINA | D5: PERFORACIÓN | E5: MIXTO | F5: SUB-TOTAL | G5: ALCANTARILLADO | H5: OTROS INGRESOS | I5: TOTAL
B6: INGRESOS
B7: Ingresos Variables | C7: 144728690.2 | D7: 10606344.14 | E7: 35026185.57 | F7: 190361219.9 | I7: 190361219.9
B8: Ingresos Fijos | C8: 132379851 | D8: 8808135.01 | E8: 31514879.33 | F8: 172702865.4 | I8: 172702865.4
B9: INGRESOS DE EXPLOTACION | C9: 277108541.2 | D9: 19414479.15 | E9: 66541064.9 | F9: 363064085.3 | I9: 363064085.3
B10: Ingresos Alcantarillado | G10: 153162144 | I10: 153162144
B11: Otros Ingresos | C11: 27844946.47 | D11: 1438097.5 | E11: 5169136.1 | F11: 34452180.07 | G11: 1468845.91 | I11: 35921025.98
B12: TOTAL ING. DE EXPLOTACION | C12: 304953487.7 | D12: 20852576.65 | E12: 71710201 | F12: 397516265.4 | G12: 154630989.9 | I12: 552147255.2
B13: COSTOS DE EXPLOTACION
B14: OPERATIVO
B15: Costo Operativo Var | C15: 57238602.44 | D15: 3506993.58 | E15: 12593494.89 | F15: 73339090.91 | G15: 23468847.38 | I15: 96807938.29
B16: Costo Operativo Fijo | C16: 93450754.62 | D16: 27001178.33 | E16: 38761033.09 | F16: 159212966 | G16: 92208450.73 | I16: 251421416.8
B17: TOTAL OPERATIVO | C17: 150689357.1 | D17: 30508171.91 | E17: 51354527.98 | F17: 232552056.9 | G17: 115677298.1 | I17: 348229355.1
B18: NO OPERATIVO
B19: COMERCIALIZACIÓN
B20: Comercial Propios | C20: 112087428.3 | D20: 8290348.55 | E20: 30396715.66 | F20: 150774492.5 | G20: 39468546.51 | I20: 190243039
B21: Comercial Asignados | C21: 26339124.04 | D21: 1801056.99 | E21: 6193678.46 | F21: 34333859.49 | G21: 13355626.26 | I21: 47689485.75
B22: TOTAL COMERCIALIZACIÓN | C22: 138426552.3 | D22: 10091405.54 | E22: 36590394.12 | F22: 185108352 | G22: 52824172.77 | I22: 237932524.8
B23: ADMINISTRACIÓN
B24: Administración Propios | C24: 30005064.94 | D24: 2219271.56 | E24: 8137000.15 | F24: 40361336.65 | G24: 10565469.44 | I24: 50926806.09
B25: Administ. Asignados | C25: 34245297.59 | D25: 2341677.4 | E25: 8052825.23 | F25: 44639800.22 | G25: 17364563.7 | I25: 62004363.92
B26: Gastos Fiscales | C26: 12871510.09 | D26: 880147.82 | E26: 3026751.99 | F26: 16778409.9 | G26: 6526681.69 | I26: 23305091.59
B27: TOTAL ADMINISTRACIÓN | C27: 77121872.62 | D27: 5441096.78 | E27: 19216577.37 | F27: 101779546.8 | G27: 34456714.83 | I27: 136236261.6
B28: TOTAL NO OPERATIVO | C28: 215548424.9 | D28: 15532502.32 | E28: 55806971.49 | F28: 286887898.8 | G28: 87280887.6 | I28: 374168786.4
B29: COSTO DE EXPLOTACION | C29: 366237782 | D29: 46040674.23 | E29: 107161499.5 | F29: 519439955.7 | G29: 202958185.7 | I29: 722398141.4
B30: RESULTADO DE EXPLOTACION | C30: -61284294.3 | D30: -25188097.58 | E30: -35451298.47 | F30: -121923690.3 | G30: -48327195.81 | I30: -170250886.2
B31: DIVERSOS Y EXTRAORDINARIOS
B32: Ingresos Div. y Extr | C32: 3853089.29 | D32: 263472.2 | E32: 906058.74 | F32: 5022620.23 | G32: 2819052.64 | I32: 7841672.87
B33: Gtos. Div. y Extraor | C33: 1763785.76 | D33: 120606.85 | E33: 414756.5 | F33: 2299149.11 | G33: 894352.59 | I33: 3193501.7
B34: RESULTADOS DIV. Y EXTRAORDINARIOS | C34: 2089303.53 | D34: 142865.35 | E34: 491302.24 | F34: 2723471.12 | G34: 1924700.05 | I34: 4648171.17
B35: FINANCIEROS
B36: Ingresos Financieros | C36: 26426526.3 | D36: 1807033.53 | E36: 6214231.3 | F36: 34447791.13 | G36: 13399944.87 | I36: 47847736
B37: Gastos Financieros | C37: 13335595.78 | D37: 911881.81 | E37: 3135882.33 | F37: 17383359.92 | G37: 6762002.96 | I37: 24145362.88
B38: RESULTADO FINANCIERO | C38: 13090930.52 | D38: 895151.72 | E38: 3078348.97 | F38: 17064431.21 | G38: 6637941.91 | I38: 23702373.12
B39: I.R.A.E. | C39: -6041999.91 | D39: -413149.13 | E39: -1420783.97 | F39: -7875933.01 | G39: -3063681.72 | I39: -10939614.73
B40: RESULTADO NETO | C40: -52146060.16 | D40: -24563229.64 | E40: -33302431.23 | F40: -110011721 | G40: -42828235.57 | I40: -152839956.6

Sheet B-CL-204
B4: C E R R O L A R G O
D6: C O S T O S T O T A L E S
C10: C O N C E P T O | D10: C O S T O S O P E R A T I V O S
D13: AGUA | E13: ALCANTARILLADO | F13: TOTAL
C15: RETRIBUCIONES AL PERSONAL | D15: 105232462.4 | E15: 23777139.35 | F15: 129009601.8
C17: MATERIALES Y SUMINISTROS | D17: 31588321.48 | E17: 6109602.709 | F17: 37697924.19
C19: ENERGIA Y FLUÍDOS | D19: 32178003.1 | E19: 9936365.846 | F19: 42114368.94
C21: SERVICIOS CONTRATADOS | D21: 25787877 | E21: 48176852.31 | F21: 73964729.31
C23: GASTOS VARIOS | D23: 2614454.108 | E23: 188985.7171 | F23: 2803439.825
C25: AMORTIZACIÓN | D25: 35150938.86 | E25: 27488352.18 | F25: 62639291.04
C28: TOTAL | D28: 232552057 | E28: 115677298.1 | F28: 348229355.1 | H28: 0.5908208816
C33: C O N C E P T O | D33: C O S T O D E A D M I N I S T R A T I V O - C O M E R C I A L
D36: COMERCIALIZACIÓN | E36: ADMINISTRACIÓN | F36: TOTAL
C38: RETRIBUCIONES AL PERSONAL | D38: 82352783.92 | E38: 25104278.24 | F38: 107457062.2
C40: MATERIALES Y SUMINISTROS | D40: 4232328.152 | E40: 2162644.707 | F40: 6394972.859
C42: ENERGIA Y FLUÍDOS | D42: 209039.0646 | E42: 7046154.133 | F42: 7255193.197
C44: SERVICIOS CONTRATADOS | D44: 95570181.93 | E44: 13425316.05 | F44: 108995498
C46: GASTOS VARIOS | D46: 1005682.581 | E46: 1011305.351 | F46: 2016987.932
C48: AMORTIZACIÓN | D48: 6873023.359 | E48: 2177107.608 | F48: 9050130.967
C52: TOTAL | D52: 190243039 | E52: 50926806.09 | F52: 241169845.1 | H52: 0.4091791184
B57: C O S T O D E E X P L O T A C I Ó N | H57: 589399200.2

Sheet C-CL-204
D4: COBERTURAS,COSTOS E INGRESOS PROMEDIO
D6: C E R R O L A R G O
C10: 1. COMPOSICION DEL COSTO PROPIO POR CONEXIÓN | D10: OPERATIVOS | F10: ADMINISTRATIVO-COMERCIAL
D12: AGUA | E12: ALCANTARILLADO
D13: ($/conex.agua) | E13: ($/conex.desagüe) | F13: ($/conex.agua)
C15: RETRIBUCIONES AL PERSONAL | D15: 2572.795032 | E15: 1110.354878 | F15: 2627.183565
C17: MATERIALES Y SUMINISTROS | D17: 772.2928336 | E17: 285.3088031 | F17: 156.3486592
C19: ENERGIA Y FLUÍDOS | D19: 786.7097721 | E19: 464.0126014 | F19: 177.3799129
C21: SERVICIOS CONTRATADOS | D21: 630.4796098 | E21: 2249.78296 | F21: 2664.796293
C23: GASTOS VARIOS | D23: 63.91995766 | E23: 8.825334691 | F23: 49.31269698
C25: AMORTIZACIÓN | D25: 859.3941338 | E25: 1283.662659 | F25: 221.263776
C29: TOTAL | D29: 5685.591339 | E29: 5401.947236 | F29: 5896.284903
C32: 2.CONEXIONES (promedio anual) | D32: 40902 | E32: 21414
C35: 3.COBERTURAS COSTO/INGRESO
C37: 3.1 COSTO DE EXPLOTACION/ INGRESO DE EXPLOT. | D37: 1.306713715 | E37: 1.312532409
C39: 3.3 TOTAL | D39: 1.215704185 | E39: 1.214813432
C42: 4.M3 ELEVADOS | D42: 7565210
C44: 5.M3 FACTURADOS | D44: 4037770
C47: 6. COSTO PROMEDIO
C49: 6.1 COSTO VARIABLE/ M3ELEVADOS | D49: 9.69425712
C51: 6.2 COSTO VARIABLE / M3FACTURADOS | D51: 18.16326609
C53: 6.3 COSTO EXPLOTACION/M3FACT | D53: 128.6452561
C55: 6.4 TOTAL/M3FACT | D55: 131.5692899
C58: 7. INGRESOS PROMEDIO
C60: 7.1 VARIABLE/M3 FACT | D60: 47.14513702
C62: 7.2 FIJO/CONEXIONES | D62: 351.8631228
C64: 7.3 INGRESO EXPLOTACION/M3FACT | D64: 98.44945734
C66: 7.4 TOTAL/M3FACT | D66: 108.2247569

Sheet A-500-AG-SURESTE
B2: AMBITO GEOGRÁFICO SURESTE | C2: ESTADO DE RENDIMIENTO ECONÓMICO (a valores históricos) | H2: PERÍODO ENERO-DICIEMBRE-2025
C4: AGUA POTABLE
B5: CONCEPTOS | C5: USINA | D5: PERFORACIÓN | E5: MIXTO | F5: SUB-TOTAL | G5: ALCANTARILLADO | H5: OTROS INGRESOS | I5: TOTAL
B6: INGRESOS
B7: Ingresos Variables | C7: 337439544.4 | D7: 110114402.8 | E7: 46348242.18 | F7: 493902189.4 | I7: 493902189.4
B8: Ingresos Fijos | C8: 288633656.6 | D8: 131963493.6 | E8: 52623121.89 | F8: 473220272.1 | I8: 473220272.1
B9: INGRESOS DE EXPLOTACION | C9: 626073201 | D9: 242077896.3 | E9: 98971364.07 | F9: 967122461.4 | I9: 967122461.4
B10: Ingresos Alcantarillado | G10: 290415657.3 | I10: 290415657.3
B11: Otros Ingresos | C11: 56610496.02 | D11: 19108860.75 | E11: 7462931.39 | F11: 83182288.16 | G11: 4428165.07 | I11: 87610453.23
B12: TOTAL ING. DE EXPLOTACION | C12: 682683697 | D12: 261186757.1 | E12: 106434295.5 | F12: 1050304750 | G12: 294843822.4 | I12: 1345148572
B13: COSTOS DE EXPLOTACION
B14: OPERATIVO
B15: Costo Operativo Var | C15: 100254127.9 | D15: 31594000.8 | E15: 22030328.87 | F15: 153878457.6 | G15: 39515288 | I15: 193393745.6
B16: Costo Operativo Fijo | C16: 221621092.6 | D16: 62807441.35 | E16: 75353677.21 | F16: 359782211.2 | G16: 128409503.7 | I16: 488191714.9
B17: TOTAL OPERATIVO | C17: 321875220.5 | D17: 94401442.15 | E17: 97384006.08 | F17: 513660668.8 | G17: 167924791.7 | I17: 681585460.5
B18: NO OPERATIVO
B19: COMERCIALIZACIÓN
B20: Comercial Propios | C20: 146534459.5 | D20: 48687789.03 | E20: 32032507.06 | F20: 227254755.6 | G20: 44546563.96 | I20: 271801319.6
B21: Comercial Asignados | C21: 58964042.73 | D21: 22558949.6 | E21: 9192831.47 | F21: 90715823.8 | G21: 25465943.15 | I21: 116181767
B22: TOTAL COMERCIALIZACIÓN | C22: 205498502.2 | D22: 71246738.63 | E22: 41225338.53 | F22: 317970579.4 | G22: 70012507.11 | I22: 387983086.5
B23: ADMINISTRACIÓN
B24: Administración Propios | C24: 55236164.43 | D24: 17825844.73 | E24: 11863657.53 | F24: 84925666.69 | G24: 16804331.71 | I24: 101729998.4
B25: Administ. Asignados | C25: 76663186.92 | D25: 29330434.04 | E25: 11952229.44 | F25: 117945850.4 | G25: 33110015.6 | I25: 151055866
B26: Gastos Fiscales | C26: 28814787.97 | D26: 11024199.13 | E26: 4492390.35 | F26: 44331377.45 | G26: 12444800.22 | I26: 56776177.67
B27: TOTAL ADMINISTRACIÓN | C27: 160714139.3 | D27: 58180477.9 | E27: 28308277.32 | F27: 247202894.5 | G27: 62359147.53 | I27: 309562042.1
B28: TOTAL NO OPERATIVO | C28: 366212641.6 | D28: 129427216.5 | E28: 69533615.85 | F28: 565173473.9 | G28: 132371654.6 | I28: 697545128.6
B29: COSTO DE EXPLOTACION | C29: 688087862.1 | D29: 223828658.7 | E29: 166917621.9 | F29: 1078834143 | G29: 300296446.3 | I29: 1379130589
B30: RESULTADO DE EXPLOTACION | C30: -5404165.04 | D30: 37358098.39 | E30: -60483326.47 | F30: -28529393.12 | G30: -5452623.94 | I30: -33982017.06
B31: DIVERSOS Y EXTRAORDINARIOS
B32: Ingresos Div. y Extr | C32: 8625712.05 | D32: 3300096.39 | E32: 1344797.74 | F32: 13270606.18 | G32: 5375269.49 | I32: 18645875.67
B33: Gtos. Div. y Extraor | C33: 3948496.43 | D33: 1510648.3 | E33: 615593.21 | F33: 6074737.94 | G33: 1705313.44 | I33: 7780051.38
B34: RESULTADOS DIV. Y EXTRAORDINARIOS | C34: 4677215.62 | D34: 1789448.09 | E34: 729204.53 | F34: 7195868.24 | G34: 3669956.05 | I34: 10865824.29
B35: FINANCIEROS
B36: Ingresos Financieros | C36: 59159705.91 | D36: 22633808.02 | E36: 9223336.69 | F36: 91016850.62 | G36: 25550447.24 | I36: 116567297.9
B37: Gastos Financieros | C37: 29853712.69 | D37: 11421679.53 | E37: 4654364.64 | F37: 45929756.86 | G37: 12893500.55 | I37: 58823257.41
B38: RESULTADO FINANCIERO | C38: 29305993.22 | D38: 11212128.49 | E38: 4568972.05 | F38: 45087093.76 | G38: 12656946.69 | I38: 57744040.45
B39: I.R.A.E. | C39: -13525914.62 | D39: -5174855.92 | E39: -2108767.49 | F39: -20809538.03 | G39: -5841698.54 | I39: -26651236.57
B40: RESULTADO NETO | C40: 15053129.18 | D40: 45184819.05 | E40: -57293917.38 | F40: 2944030.85 | G40: 5032580.26 | I40: 7976611.11

Sheet B-500-AG-SURESTE
B4: AMBITO GEOGRÁFICO SURESTE
D6: C O S T O S T O T A L E S
C10: C O N C E P T O | D10: C O S T O S O P E R A T I V O S
D13: AGUA | E13: ALCANTARILLADO | F13: TOTAL
C15: RETRIBUCIONES AL PERSONAL | D15: 223467158.5 | E15: 58517355.73 | F15: 281984514.3
C17: MATERIALES Y SUMINISTROS | D17: 54439634.98 | E17: 5215819.943 | F17: 59655454.93
C19: ENERGIA Y FLUÍDOS | D19: 69341430.68 | E19: 26279272.47 | F19: 95620703.15
C21: SERVICIOS CONTRATADOS | D21: 58374110.61 | E21: 22343703.21 | F21: 80717813.82
C23: GASTOS VARIOS | D23: 17421517.61 | E23: 654668.3421 | F23: 18076185.95
C25: AMORTIZACIÓN | D25: 90616816.36 | E25: 54913971.98 | F25: 145530788.3
C28: TOTAL | D28: 513660668.8 | E28: 167924791.7 | F28: 681585460.4 | H28: 0.6459810652
C33: C O N C E P T O | D33: C O S T O D E A D M I N I S T R A T I V O - C O M E R C I A L
D36: COMERCIALIZACIÓN | E36: ADMINISTRACIÓN | F36: TOTAL
C38: RETRIBUCIONES AL PERSONAL | D38: 151767748.5 | E38: 47012556.03 | F38: 198780304.6
C40: MATERIALES Y SUMINISTROS | D40: 9352959.152 | E40: 2622700.316 | F40: 11975659.47
C42: ENERGIA Y FLUÍDOS | D42: 584622.3402 | E42: 17660827 | F42: 18245449.34
C44: SERVICIOS CONTRATADOS | D44: 85987281.81 | E44: 29705381.67 | F44: 115692663.5
C46: GASTOS VARIOS | D46: 1927311.037 | E46: 394323.4196 | F46: 2321634.457
C48: AMORTIZACIÓN | D48: 22181396.68 | E48: 4334209.973 | F48: 26515606.65
C52: TOTAL | D52: 271801319.6 | E52: 101729998.4 | F52: 373531318 | H52: 0.3540189348
B57: C O S T O D E E X P L O T A C I Ó N | H57: 1055116778

Sheet C-500-AG-SURESTE
D4: COBERTURAS, COSTOS E INGRESOS PROMEDIO
D6: AMBITO GEOGRÁFICO SURESTE
C10: 1. COMPOSICIÓN DEL COSTO PROPIO POR CONEXIÓN | D10: OPERATIVOS | F10: ADMINISTRATIVO-COMERCIAL
D12: AGUA | E12: ALCANTARILLADO
D13: ($/conex.agua) | E13: ($/conex.desagüe) | F13: ($/conex.agua)
C15: RETRIBUCIONES AL PERSONAL | D15: 2325.23967 | E15: 1529.145911 | F15: 2068.365897
C17: MATERIALES Y SUMINISTROS | D17: 566.4599655 | E17: 136.2971658 | F17: 124.6101604
C19: ENERGIA Y FLUÍDOS | D19: 721.51741 | E19: 686.7166423 | F19: 189.8491165
C21: SERVICIOS CONTRATADOS | D21: 607.3993092 | E21: 583.8743391 | F21: 1203.815238
C23: GASTOS VARIOS | D23: 181.2758713 | E23: 17.10746164 | F23: 24.15727025
C25: AMORTIZACIÓN | D25: 942.8938802 | E25: 1434.984112 | F25: 275.9024676
C29: TOTAL | D29: 5344.786107 | E29: 4388.125632 | F29: 3886.70015
C32: 2.CONEXIONES (promedio anual) | D32: 96105 | E32: 38268
C35: 3.COBERTURAS COSTO/INGRESO
C37: 3.1 COSTO DE EXPLOTACIÓN/ INGRESO DE EXPLOT. | D37: 1.027162967 | E37: 1.018493262
C39: 3.3 TOTAL | D39: 0.9614035963 | E39: 0.9486877214
C42: 4.M3 ELEVADOS | D42: 14124900
C44: 5.M3 FACTURADOS | D44: 8767700
C47: 6. COSTO PROMEDIO
C49: 6.1 COSTO VARIABLE/ M3ELEVADOS | D49: 10.89412722
C51: 6.2 COSTO VARIABLE / M3FACTURADOS | D51: 17.55060707
C53: 6.3 COSTO EXPLOTACIÓN/M3FACT | D53: 123.0464253
C55: 6.4 TOTAL/M3FACT | D55: 126.604366
C58: 7. INGRESOS PROMEDIO
C60: 7.1 VARIABLE/M3 FACT | D60: 56.33201288
C62: 7.2 FIJO/CONEXIONES | D62: 410.3326848
C64: 7.3 INGRESO EXPLOTACIÓN/M3FACT | D64: 119.7925054
C66: 7.4 TOTAL/M3FACT | D66: 131.687011

Sheet A-ROC-502
B2: ROCHA | C2: ESTADO DE RENDIMIENTO ECONÓMICO (a valores históricos) | H2: PERÍODO ENERO-DICIEMBRE-2025
C4: AGUA POTABLE
B5: CONCEPTOS | C5: USINA | D5: PERFORACIÓN | E5: MIXTO | F5: SUB-TOTAL | G5: ALCANTARILLADO | H5: OTROS INGRESOS | I5: TOTAL
B6: INGRESOS
B7: Ingresos Variables | C7: 109004344.2 | D7: 103021302.1 | E7: 24464985.82 | F7: 236490632.1 | I7: 236490632.1
B8: Ingresos Fijos | C8: 95320385.83 | D8: 125008503.3 | E8: 34053651.59 | F8: 254382540.7 | I8: 254382540.7
B9: INGRESOS DE EXPLOTACIÓN | C9: 204324730 | D9: 228029805.4 | E9: 58518637.41 | F9: 490873172.8 | I9: 490873172.8
B10: Ingresos Alcantarillado | G10: 94934405.49 | I10: 94934405.49
B11: Otros Ingresos | C11: 21161069.4 | D11: 18079909.04 | E11: 5153846.51 | F11: 44394824.95 | G11: 1706417.04 | I11: 46101241.99
B12: TOTAL ING. DE EXPLOTACIÓN | C12: 225485799.4 | D12: 246109714.4 | E12: 63672483.92 | F12: 535267997.8 | G12: 96640822.53 | I12: 631908820.3
B13: COSTOS DE EXPLOTACIÓN
B14: OPERATIVO
B15: Costo Operativo Var | C15: 33783292.95 | D15: 30543164.74 | E15: 10020839.82 | F15: 74347297.51 | G15: 5094156.56 | I15: 79441454.07
B16: Costo Operativo Fijo | C16: 74328345.59 | D16: 55743729.1 | E16: 39052830.33 | F16: 169124905 | G16: 35690667.74 | I16: 204815572.8
B17: TOTAL OPERATIVO | C17: 108111638.5 | D17: 86286893.84 | E17: 49073670.15 | F17: 243472202.5 | G17: 40784824.3 | I17: 284257026.8
B18: NO OPERATIVO
B19: COMERCIALIZACIÓN
B20: Comercial Propios | C20: 43648469.96 | D20: 44559182.86 | E20: 22297854.29 | F20: 110505507.1 | G20: 14055172.67 | I20: 124560679.8
B21: Comercial Asignados | C21: 19475423.77 | D21: 21256730.92 | E21: 5499453.26 | F21: 46231607.95 | G21: 8346960.14 | I21: 54578568.09
B22: TOTAL COMERCIALIZACIÓN | C22: 63123893.73 | D22: 65815913.78 | E22: 27797307.55 | F22: 156737115.1 | G22: 22402132.81 | I22: 179139247.9
B23: ADMINISTRACIÓN
B24: Administración Propios | C24: 15950058.63 | D24: 16282852.04 | E24: 8148099.68 | F24: 40381010.35 | G24: 5136052.42 | I24: 45517062.77
B25: Administ. Asignados | C25: 25321331.19 | D25: 27637330.63 | E25: 7150215.45 | F25: 60108877.27 | G25: 10852454.18 | I25: 70961331.45
B26: Gastos Fiscales | C26: 9517329.2 | D26: 10387825.66 | E26: 2687495.16 | F26: 22592650.02 | G26: 4079026.41 | I26: 26671676.43
B27: TOTAL ADMINISTRACIÓN | C27: 50788719.02 | D27: 54308008.33 | E27: 17985810.29 | F27: 123082537.6 | G27: 20067533.01 | I27: 143150070.7
B28: TOTAL NO OPERATIVO | C28: 113912612.8 | D28: 120123922.1 | E28: 45783117.84 | F28: 279819652.7 | G28: 42469665.82 | I28: 322289318.5
B29: COSTO DE EXPLOTACIÓN | C29: 222024251.3 | D29: 206410815.9 | E29: 94856787.99 | F29: 523291855.2 | G29: 83254490.12 | I29: 606546345.4
B30: RESULTADO DE EXPLOTACIÓN | C30: 3461548.14 | D30: 39698898.45 | E30: -31184304.07 | F30: 11976142.52 | G30: 13386332.41 | I30: 25362474.93
B31: DIVERSOS Y EXTRAORDINARIOS
B32: Ingresos Div. y Extr | C32: 2849014.23 | D32: 3109597.76 | E32: 804502.13 | F32: 6763114.12 | G32: 1761843.41 | I32: 8524957.53
B33: Gtos. Div. y Extraor | C33: 1304161.65 | D33: 1423445.93 | E33: 368268.02 | F33: 3095875.6 | G33: 558949.84 | I33: 3654825.44
B34: RESULTADOS DIV. Y EXTRAORDINARIOS | C34: 1544852.58 | D34: 1686151.83 | E34: 436234.11 | F34: 3667238.52 | G34: 1202893.57 | I34: 4870132.09
B35: FINANCIEROS
B36: Ingresos Financieros | C36: 19540049.98 | D36: 21327268.19 | E36: 5517702.35 | F36: 46385020.52 | G36: 8374658.26 | I36: 54759678.78
B37: Gastos Financieros | C37: 9860478.98 | D37: 10762361.43 | E37: 2784393.5 | F37: 23407233.91 | G37: 4226096.78 | I37: 27633330.69
B38: RESULTADO FINANCIERO | C38: 9679571 | D38: 10564906.76 | E38: 2733308.85 | F38: 22977786.61 | G38: 4148561.48 | I38: 27126348.09
B39: I.R.A.E. | C39: -4467517.94 | D39: -4876136.62 | E39: -1261533.84 | F39: -10605188.4 | G39: -1914730.82 | I39: -12519919.22
B40: RESULTADO NETO | C40: 10218453.78 | D40: 47073820.42 | E40: -29276294.95 | F40: 28015979.25 | G40: 16823056.64 | I40: 44839035.89

Sheet B-ROC-502
B4: R O C H A
D6: C O S T O S T O T A L E S
C10: C O N C E P T O | D10: C O S T O S O P E R A T I V O S
D13: AGUA | E13: ALCANTARILLADO | F13: TOTAL
C15: RETRIBUCIONES AL PERSONAL | D15: 109322822.4 | E15: 16595615.02 | F15: 125918437.5
C17: MATERIALES Y SUMINISTROS | D17: 22169297.11 | E17: 744602.8859 | F17: 22913900
C19: ENERGIA Y FLUÍDOS | D19: 37491433.21 | E19: 2937538.418 | F19: 40428971.63
C21: SERVICIOS CONTRATADOS | D21: 20566215.82 | E21: 3754886.056 | F21: 24321101.88
C23: GASTOS VARIOS | D23: 10263304.95 | E23: 218130.7537 | F23: 10481435.7
C25: AMORTIZACIÓN | D25: 43659129 | E25: 16534051.17 | F25: 60193180.17
C28: TOTAL | D28: 243472202.5 | E28: 40784824.3 | F28: 284257026.8 | H28: 0.6256554549
C33: C O N C E P T O | D33: C O S T O D E A D M I N I S T R A T I V O - C O M E R C I A L
D36: COMERCIALIZACIÓN | E36: ADMINISTRACIÓN | F36: TOTAL
C38: RETRIBUCIONES AL PERSONAL | D38: 67256052.19 | E38: 20278404.21 | F38: 87534456.4
C40: MATERIALES Y SUMINISTROS | D40: 3905037.625 | E40: 1267817.037 | F40: 5172854.662
C42: ENERGIA Y FLUÍDOS | D42: 381964.0705 | E42: 9875859.345 | F42: 10257823.42
C44: SERVICIOS CONTRATADOS | D44: 41495598.79 | E44: 12768312.29 | F44: 54263911.08
C46: GASTOS VARIOS | D46: 808044.6006 | E46: 176614.2084 | F46: 984658.809
C48: AMORTIZACIÓN | D48: 10713982.5 | E48: 1150055.682 | F48: 11864038.18
C52: TOTAL | D52: 124560679.8 | E52: 45517062.77 | F52: 170077742.6 | H52: 0.3743445451
B57: C O S T O D E E X P L O T A C I Ó N | H57: 454334769.4

Sheet C-ROC-502
D4: COBERTURAS, COSTOS E INGRESOS PROMEDIO
D6: R O C H A
C10: 1. COMPOSICIÓN DEL COSTO PROPIO POR CONEXIÓN | D10: OPERATIVOS | F10: ADMINISTRATIVO-COMERCIAL
D12: AGUA | E12: ALCANTARILLADO
D13: ($/conex.agua) | E13: ($/conex.desagüe) | F13: ($/conex.agua)
C15: RETRIBUCIONES AL PERSONAL | D15: 2408.999855 | E15: 1437.596589 | F15: 1928.878967
C17: MATERIALES Y SUMINISTROS | D17: 488.5149537 | E17: 64.50128949 | F17: 113.9872339
C19: ENERGIA Y FLUÍDOS | D19: 826.1482386 | E19: 254.4645199 | F19: 226.0378444
C21: SERVICIOS CONTRATADOS | D21: 453.1900095 | E21: 325.2673299 | F21: 1195.740752
C23: GASTOS VARIOS | D23: 226.1586335 | E23: 18.89559544 | F23: 21.69760052
C25: AMORTIZACIÓN | D25: 962.0574468 | E25: 1432.263615 | F25: 261.4318367
C29: TOTAL | D29: 5365.069137 | E29: 3532.988938 | F29: 3747.774235
C32: 2.CONEXIONES (promedio anual) | D32: 45381 | E32: 11544
C35: 3.COBERTURAS COSTO/INGRESO
C37: 3.1 COSTO DE EXPLOTACIÓN/ INGRESO DE EXPLOT. | D37: 0.9776258947 | E37: 0.8614836664
C39: 3.3 TOTAL | D39: 0.9163409136 | E39: 0.8065832944
C42: 4.M3 ELEVADOS | D42: 6769600
C44: 5.M3 FACTURADOS | D44: 3996670
C47: 6. COSTO PROMEDIO
C49: 6.1 COSTO VARIABLE/ M3ELEVADOS | D49: 10.98252445
C51: 6.2 COSTO VARIABLE / M3FACTURADOS | D51: 18.6023108
C53: 6.3 COSTO EXPLOTACIÓN/M3FACT | D53: 130.9319647
C55: 6.4 TOTAL/M3FACT | D55: 134.9097565
C58: 7. INGRESOS PROMEDIO
C60: 7.1 VARIABLE/M3 FACT | D60: 59.17191865
C62: 7.2 FIJO/CONEXIONES | D62: 467.1237976
C64: 7.3 INGRESO EXPLOTACIÓN/M3FACT | D64: 133.9284949
C66: 7.4 TOTAL/M3FACT | D66: 147.2265992

Sheet A-TT-203
B2: TREINTA Y TRES | C2: ESTADO DE RENDIMIENTO ECONÓMICO (a valores históricos) | H2: PERÍODO ENERO-DICIEMBRE-2025
C4: AGUA POTABLE
B5: CONCEPTOS | C5: USINA | D5: PERFORACIÓN | E5: MIXTO | F5: SUB-TOTAL | G5: ALCANTARILLADO | H5: OTROS INGRESOS | I5: TOTAL
B6: INGRESOS
B7: Ingresos Variables | C7: 106943373.8 | E7: 13050310.45 | F7: 119993684.3 | I7: 119993684.3
B8: Ingresos Fijos | C8: 90259301.6 | E8: 9867001.93 | F8: 100126303.5 | I8: 100126303.5
B9: INGRESOS DE EXPLOTACIÓN | C9: 197202675.4 | E9: 22917312.38 | F9: 220119987.8 | I9: 220119987.8
B10: Ingresos Alcantarillado | G10: 107835316.5 | I10: 107835316.5
B11: Otros Ingresos | C11: 19023787.61 | E11: 1130142.01 | F11: 20153929.62 | G11: 1718636.81 | I11: 21872566.43
B12: TOTAL ING. DE EXPLOTACIÓN | C12: 216226463 | E12: 24047454.39 | F12: 240273917.4 | G12: 109553953.3 | I12: 349827870.7
B13: COSTOS DE EXPLOTACIÓN
B14: OPERATIVO
B15: Costo Operativo Var | C15: 33754129.56 | E15: 3659650.48 | F15: 37413780.04 | G15: 23678488.15 | I15: 61092268.19
B16: Costo Operativo Fijo | C16: 79430373.33 | E16: 21022978.41 | F16: 100453351.7 | G16: 59528214.02 | I16: 159981565.8
B17: TOTAL OPERATIVO | C17: 113184502.9 | E17: 24682628.89 | F17: 137867131.8 | G17: 83206702.17 | I17: 221073833.9
B18: NO OPERATIVO
B19: COMERCIALIZACIÓN
B20: Comercial Propios | C20: 48712411.69 | E20: 4519442.49 | F20: 53231854.18 | G20: 15920128.18 | I20: 69151982.36
B21: Comercial Asignados | C21: 18675686.03 | E21: 2077001.47 | F21: 20752687.5 | G21: 9462279.47 | I21: 30214966.97
B22: TOTAL COMERCIALIZACIÓN | C22: 67388097.72 | E22: 6596443.96 | F22: 73984541.68 | G22: 25382407.65 | I22: 99366949.33
B23: ADMINISTRACIÓN
B24: Administración Propios | C24: 19039699.76 | E24: 1766466.21 | F24: 20806165.97 | G24: 6222530.27 | I24: 27028696.24
B25: Administ. Asignados | C25: 24281537.47 | E25: 2700451.82 | F25: 26981989.29 | G25: 12302557.21 | I25: 39284546.5
B26: Gastos Fiscales | C26: 9126510.15 | E26: 1014997.56 | F26: 10141507.71 | G26: 4624065.21 | I26: 14765572.92
B27: TOTAL ADMINISTRACIÓN | C27: 52447747.38 | E27: 5481915.59 | F27: 57929662.97 | G27: 23149152.69 | I27: 81078815.66
B28: TOTAL NO OPERATIVO | C28: 119835845.1 | E28: 12078359.55 | F28: 131914204.7 | G28: 48531560.34 | I28: 180445765
B29: COSTO DE EXPLOTACIÓN | C29: 233020348 | E29: 36760988.44 | F29: 269781336.4 | G29: 131738262.5 | I29: 401519598.9
B30: RESULTADO DE EXPLOTACIÓN | C30: -16793884.96 | E30: -12713534.05 | F30: -29507419.01 | G30: -22184309.24 | I30: -51691728.25
B31: DIVERSOS Y EXTRAORDINARIOS
B32: Ingresos Div. y Extr | C32: 2732022.62 | E32: 303839.76 | F32: 3035862.38 | G32: 1997260.53 | I32: 5033122.91
B33: Gtos. Div. y Extraor | C33: 1250607.56 | E33: 139085.31 | F33: 1389692.87 | G33: 633636.69 | I33: 2023329.56
B34: RESULTADOS DIV. Y EXTRAORDINARIOS | C34: 1481415.06 | E34: 164754.45 | F34: 1646169.51 | G34: 1363623.84 | I34: 3009793.35
B35: FINANCIEROS
B36: Ingresos Financieros | C36: 18737658.48 | E36: 2083893.77 | F36: 20821552.25 | G36: 9493678.66 | I36: 30315230.91
B37: Gastos Financieros | C37: 9455568.86 | E37: 1051593.56 | F37: 10507162.42 | G37: 4790787.11 | I37: 15297949.53
B38: RESULTADO FINANCIERO | C38: 9282089.62 | E38: 1032300.21 | F38: 10314389.83 | G38: 4702891.55 | I38: 15017281.38
B39: I.R.A.E. | C39: -4284064.04 | E39: -476448.77 | F39: -4760512.81 | G39: -2170576.82 | I39: -6931089.63
B40: RESULTADO NETO | C40: -10314444.32 | E40: -11992928.16 | F40: -22307372.48 | G40: -18288370.67 | I40: -40595743.15

Sheet B-TT-203
B4: T R E I N T A Y T R E S
E6: C O S T O S T O T A L E S
C10: C O N C E P T O | D10: C O S T O S O P E R A T I V O S
D13: AGUA | E13: ALCANTARILLADO | F13: TOTAL
C15: RETRIBUCIONES AL PERSONAL | D15: 62295982.18 | E15: 26019925.76 | F15: 88315907.94
C17: MATERIALES Y SUMINISTROS | D17: 18767605.51 | E17: 1401314.927 | F17: 20168920.44
C19: ENERGIA Y FLUÍDOS | D19: 15027810.39 | E19: 17164742.08 | F19: 32192552.47
C21: SERVICIOS CONTRATADOS | D21: 11931862.8 | E21: 9053427.816 | F21: 20985290.61
C23: GASTOS VARIOS | D23: 5493285.602 | E23: 299914.1018 | F23: 5793199.704
C25: AMORTIZACIÓN | D25: 24350585.3 | E25: 29267377.48 | F25: 53617962.78
C28: TOTAL | D28: 137867131.8 | E28: 83206702.17 | F28: 221073834 | H28: 0.6968343245
C33: C O N C E P T O | D33: C O S T O D E A D M I N I S T R A T I V O - C O M E R C I A L
D36: COMERCIALIZACIÓN | E36: ADMINISTRACIÓN | F36: TOTAL
C38: RETRIBUCIONES AL PERSONAL | D38: 42362156.49 | E38: 13166751.29 | F38: 55528907.78
C40: MATERIALES Y SUMINISTROS | D40: 2220658.926 | E40: 909412.8183 | F40: 3130071.744
C42: ENERGIA Y FLUÍDOS | D42: 109893.4019 | E42: 3285367.265 | F42: 3395260.667
C44: SERVICIOS CONTRATADOS | D44: 18917611.67 | E44: 8270388.069 | F44: 27187999.73
C46: GASTOS VARIOS | D46: 569819.8162 | E46: 106803.5173 | F46: 676623.3335
C48: AMORTIZACIÓN | D48: 4971842.061 | E48: 1289973.276 | F48: 6261815.336
C52: TOTAL | D52: 69151982.36 | E52: 27028696.24 | F52: 96180678.6 | H52: 0.3031656755
B57: C O S T O D E E X P L O T A C I Ó N | H57: 317254512.6

Sheet C-TT-203
D4: COBERTURAS, COSTOS E INGRESOS PROMEDIO
D6: T R E I N T A Y T R E S
C10: 1. COMPOSICIÓN DEL COSTO PROPIO POR CONEXIÓN | D10: OPERATIVOS | F10: ADMINISTRATIVO-COMERCIAL
D12: AGUA | E12: ALCANTARILLADO
D13: ($/conex.agua) | E13: ($/conex.desagüe) | F13: ($/conex.agua)
C15: RETRIBUCIONES AL PERSONAL | D15: 2514.977076 | E15: 1756.204492 | F15: 2241.780694
C17: MATERIALES Y SUMINISTROS | D17: 757.6748289 | E17: 94.58119111 | F17: 126.3654317
C19: ENERGIA Y FLUÍDOS | D19: 606.6940005 | E19: 1158.527408 | F19: 137.0714843
C21: SERVICIOS CONTRATADOS | D21: 481.706209 | E21: 611.057493 | F21: 1097.618076
C23: GASTOS VARIOS | D23: 221.7717239 | E23: 20.24258246 | F23: 27.31624277
C25: AMORTIZACIÓN | D25: 983.0676342 | E25: 1975.389949 | F25: 252.7983584
C29: TOTAL | D29: 5565.891473 | E29: 5616.003116 | F29: 3882.950287
C32: 2.CONEXIONES (promedio anual) | D32: 24770 | E32: 14816
C35: 3.COBERTURAS COSTO/INGRESO
C37: 3.1 COSTO DE EXPLOTACIÓN/ INGRESO DE EXPLOT. | D37: 1.122807416 | E37: 1.202496656
C39: 3.3 TOTAL | D39: 1.04840905 | E39: 1.115223507
C42: 4.M3 ELEVADOS | D42: 3875730
C44: 5.M3 FACTURADOS | D44: 2322300
C47: 6. COSTO PROMEDIO
C49: 6.1 COSTO VARIABLE/ M3ELEVADOS | D49: 9.653350476
C51: 6.2 COSTO VARIABLE / M3FACTURADOS | D51: 16.11065756
C53: 6.3 COSTO EXPLOTACIÓN/M3FACT | D53: 116.1698904
C55: 6.4 TOTAL/M3FACT | D55: 119.2428536
C58: 7. INGRESOS PROMEDIO
C60: 7.1 VARIABLE/M3 FACT | D60: 51.67019088
C62: 7.2 FIJO/CONEXIONES | D62: 336.8533963
C64: 7.3 INGRESO EXPLOTACIÓN/M3FACT | D64: 103.4637719
C66: 7.4 TOTAL/M3FACT | D66: 113.7369556

Sheet A-LAV-503
B2: LAVALLEJA | C2: ESTADO DE RENDIMIENTO ECONÓMICO (a valores históricos) | H2: PERÍODO ENERO-DICIEMBRE-2025
C4: AGUA POTABLE
B5: CONCEPTOS | C5: USINA | D5: PERFORACIÓN | E5: MIXTO | F5: SUB-TOTAL | G5: ALCANTARILLADO | H5: OTROS INGRESOS | I5: TOTAL
B6: INGRESOS
B7: Ingresos Variables | C7: 121491826.4 | D7: 7093100.68 | E7: 8832945.91 | F7: 137417873 | I7: 137417873
B8: Ingresos Fijos | C8: 103053969.2 | D8: 6954990.28 | E8: 8702468.37 | F8: 118711427.8 | I8: 118711427.8
B9: INGRESOS DE EXPLOTACIÓN | C9: 224545795.6 | D9: 14048090.96 | E9: 17535414.28 | F9: 256129300.8 | I9: 256129300.8
B10: Ingresos Alcantarillado | G10: 87645935.36 | I10: 87645935.36
B11: Otros Ingresos | C11: 16425639.01 | D11: 1028951.71 | E11: 1178942.87 | F11: 18633533.59 | G11: 1003111.22 | I11: 19636644.81
B12: TOTAL ING. DE EXPLOTACIÓN | C12: 240971434.6 | D12: 15077042.67 | E12: 18714357.15 | F12: 274762834.4 | G12: 88649046.58 | I12: 363411881
B13: COSTOS DE EXPLOTACIÓN
B14: OPERATIVO
B15: Costo Operativo Var | C15: 32716705.4 | D15: 1050836.06 | E15: 8349838.57 | F15: 42117380.03 | G15: 10742643.29 | I15: 52860023.32
B16: Costo Operativo Fijo | C16: 67862373.71 | D16: 7063712.25 | E16: 15277868.47 | F16: 90203954.43 | G16: 33190621.92 | I16: 123394576.3
B17: TOTAL OPERATIVO | C17: 100579079.1 | D17: 8114548.31 | E17: 23627707.04 | F17: 132321334.5 | G17: 43933265.21 | I17: 176254599.7
B18: NO OPERATIVO
B19: COMERCIALIZACIÓN
B20: Comercial Propios | C20: 54173577.85 | D20: 4128606.17 | E20: 5215210.28 | F20: 63517394.3 | G20: 14571263.11 | I20: 78088657.41
B21: Comercial Asignados | C21: 20812932.93 | D21: 1302218.68 | E21: 1616376.74 | F21: 23731528.35 | G21: 7656703.54 | I21: 31388231.89
B22: TOTAL COMERCIALIZACIÓN | C22: 74986510.78 | D22: 5430824.85 | E22: 6831587.02 | F22: 87248922.65 | G22: 22227966.65 | I22: 109476889.3
B23: ADMINISTRACIÓN
B24: Administración Propios | C24: 20246406.04 | D24: 1542992.69 | E24: 1949091.64 | F24: 23738490.37 | G24: 5445749.02 | I24: 29184239.39
B25: Administ. Asignados | C25: 27060318.26 | D25: 1693103.41 | E25: 2101562.17 | F25: 30854983.84 | G25: 9955004.21 | I25: 40809988.05
B26: Gastos Fiscales | C26: 10170948.62 | D26: 636373.47 | E26: 789897.63 | F26: 11597219.72 | G26: 3741708.6 | I26: 15338928.32
B27: TOTAL ADMINISTRACIÓN | C27: 57477672.92 | D27: 3872469.57 | E27: 4840551.44 | F27: 66190693.93 | G27: 19142461.83 | I27: 85333155.76
B28: TOTAL NO OPERATIVO | C28: 132464183.7 | D28: 9303294.42 | E28: 11672138.46 | F28: 153439616.6 | G28: 41370428.48 | I28: 194810045.1
B29: COSTO DE EXPLOTACIÓN | C29: 233043262.8 | D29: 17417842.73 | E29: 35299845.5 | F29: 285760951 | G29: 85303693.69 | I29: 371064644.7
B30: RESULTADO DE EXPLOTACIÓN | C30: 7928171.78 | D30: -2340800.06 | E30: -16585488.35 | F30: -10998116.63 | G30: 3345352.89 | I30: -7652763.74
B31: DIVERSOS Y EXTRAORDINARIOS
B32: Ingresos Div. y Extr | C32: 3044675.2 | D32: 190498.63 | E32: 236455.85 | F32: 3471629.68 | G32: 1616165.55 | I32: 5087795.23
B33: Gtos. Div. y Extraor | C33: 1393727.22 | D33: 87202.37 | E33: 108239.88 | F33: 1589169.47 | G33: 512726.91 | I33: 2101896.38
B34: RESULTADOS DIV. Y EXTRAORDINARIOS | C34: 1650947.98 | D34: 103296.26 | E34: 128215.97 | F34: 1882460.21 | G34: 1103438.64 | I34: 2985898.85
B35: FINANCIEROS
B36: Ingresos Financieros | C36: 20881997.45 | D36: 1306539.83 | E36: 1621740.57 | F36: 23810277.85 | G36: 7682110.32 | I36: 31492388.17
B37: Gastos Financieros | C37: 10537664.85 | D37: 659318.1 | E37: 818377.58 | F37: 12015360.53 | G37: 3876616.66 | I37: 15891977.19
B38: RESULTADO FINANCIERO | C38: 10344332.6 | D38: 647221.73 | E38: 803362.99 | F38: 11794917.32 | G38: 3805493.66 | I38: 15600410.98
B39: I.R.A.E. | C39: -4774332.64 | D39: -298719.3 | E39: -370784.88 | F39: -5443836.82 | G39: -1756390.9 | I39: -7200227.72
B40: RESULTADO NETO | C40: 15149119.72 | D40: -1889001.37 | E40: -16024694.27 | F40: -2764575.92 | G40: 6497894.29 | I40: 3733318.37

Sheet B-LAV-503
B4: L A V A L L E J A
D6: C O S T O S T O T A L E S
C10: C O N C E P T O | D10: C O S T O S O P E R A T I V O S
D13: AGUA | E13: ALCANTARILLADO | F13: TOTAL
C15: RETRIBUCIONES AL PERSONAL | D15: 51848353.9 | E15: 15901814.95 | F15: 67750168.85
C17: MATERIALES Y SUMINISTROS | D17: 13502732.36 | E17: 3069902.129 | F17: 16572634.49
C19: ENERGIA Y FLUÍDOS | D19: 16822187.08 | E19: 6176991.969 | F19: 22999179.05
C21: SERVICIOS CONTRATADOS | D21: 25876031.99 | E21: 9535389.338 | F21: 35411421.33
C23: GASTOS VARIOS | D23: 1664927.062 | E23: 136623.4866 | F23: 1801550.549
C25: AMORTIZACIÓN | D25: 22607102.07 | E25: 9112543.328 | F25: 31719645.39
C28: TOTAL | D28: 132321334.5 | E28: 43933265.21 | F28: 176254599.7 | H28: 0.621649053
C33: C O N C E P T O | D33: C O S T O D E A D M I N I S T R A T I V O - C O M E R C I A L
D36: COMERCIALIZACIÓN | E36: ADMINISTRACIÓN | F36: TOTAL
C38: RETRIBUCIONES AL PERSONAL | D38: 42149539.85 | E38: 13567400.52 | F38: 55716940.38
C40: MATERIALES Y SUMINISTROS | D40: 3227262.601 | E40: 445470.4603 | F40: 3672733.061
C42: ENERGIA Y FLUÍDOS | D42: 92764.86776 | E42: 4499600.387 | F42: 4592365.255
C44: SERVICIOS CONTRATADOS | D44: 25574071.35 | E44: 8666681.311 | F44: 34240752.66
C46: GASTOS VARIOS | D46: 549446.6205 | E46: 110905.6939 | F46: 660352.3144
C48: AMORTIZACIÓN | D48: 6495572.118 | E48: 1894181.015 | F48: 8389753.133
C52: TOTAL | D52: 78088657.41 | E52: 29184239.39 | F52: 107272896.8 | H52: 0.378350947
B57: C O S T O D E E X P L O T A C I Ó N | H57: 283527496.5

Sheet C-LAV-503
D4: COBERTURAS, COSTOS E INGRESOS PROMEDIO
D6: L A V A L L E J A
C10: 1. COMPOSICIÓN DEL COSTO PROPIO POR CONEXIÓN | D10: OPERATIVOS | F10: ADMINISTRATIVO-COMERCIAL
D12: AGUA | E12: ALCANTARILLADO
D13: ($/conex.agua) | E13: ($/conex.desagüe) | F13: ($/conex.agua)
C15: RETRIBUCIONES AL PERSONAL | D15: 1997.701853 | E15: 1335.38923 | F15: 2146.757354
C17: MATERIALES Y SUMINISTROS | D17: 520.2563135 | E17: 257.8016568 | F17: 141.5093265
C19: ENERGIA Y FLUÍDOS | D19: 648.1539292 | E19: 518.7262319 | F19: 176.942485
C21: SERVICIOS CONTRATADOS | D21: 996.9959155 | E21: 800.7548991 | F21: 1319.286147
C23: GASTOS VARIOS | D23: 64.14915088 | E23: 11.47325215 | F23: 25.4431808
C25: AMORTIZACIÓN | D25: 871.0450053 | E25: 765.2454928 | F25: 323.254725
C29: TOTAL | D29: 5098.302168 | E29: 3689.390763 | F29: 4133.193219
C32: 2.CONEXIONES (promedio anual) | D32: 25954 | E32: 11908
C35: 3.COBERTURAS COSTO/INGRESO
C37: 3.1 COSTO DE EXPLOTACIÓN/ INGRESO DE EXPLOT. | D37: 1.040027672 | E37: 0.9622629569
C39: 3.3 TOTAL | D39: 0.9731063098 | E39: 0.8977953063
C42: 4.M3 ELEVADOS | D42: 3479570
C44: 5.M3 FACTURADOS | D44: 2448730
C47: 6. COSTO PROMEDIO
C49: 6.1 COSTO VARIABLE/ M3ELEVADOS | D49: 12.10419104
C51: 6.2 COSTO VARIABLE / M3FACTURADOS | D51: 17.19968311
C53: 6.3 COSTO EXPLOTACIÓN/M3FACT | D53: 116.6976151
C55: 6.4 TOTAL/M3FACT | D55: 120.0302378
C58: 7. INGRESOS PROMEDIO
C60: 7.1 VARIABLE/M3 FACT | D60: 56.1180175
C62: 7.2 FIJO/CONEXIONES | D62: 381.1597051
C64: 7.3 INGRESO EXPLOTACIÓN/M3FACT | D64: 112.2062597
C66: 7.4 TOTAL/M3FACT | D66: 123.3475075

Sheet A-UGD-501
B2: U.G.D. | C2: ESTADO DE RENDIMIENTO ECONÓMICO (a valores históricos) | F2: PERÍODO ENERO-DICIEMBRE-2025
C4: AGUA POTABLE
B5: CONCEPTOS | C5: USINA | D5: PERFORACIÓN | E5: MIXTO | F5: SUB-TOTAL | G5: ALCANTARILLADO | H5: OTROS INGRESOS | I5: TOTAL
B6: INGRESOS
B7: Ingresos Variables | C7: 1228991241 | F7: 1228991241 | I7: 1228991241
B8: Ingresos Fijos | C8: 947314586.3 | F8: 947314586.3 | I8: 947314586.3
B9: INGRESOS DE EXPLOTACIÓN | C9: 2176305828 | F9: 2176305828 | I9: 2176305828
B10: Ingresos Alcantarillado | G10: 905480561.6 | I10: 905480561.6
B11: Otros Ingresos | C11: 179992602 | F11: 179992602 | G11: 11146908.68 | I11: 191139510.7
B12: TOTAL ING. DE EXPLOTACIÓN | C12: 2356298430 | F12: 2356298430 | G12: 916627470.3 | I12: 3272925900
B13: COSTOS DE EXPLOTACIÓN
B14: OPERATIVO
B15: Costo Operativo Var | C15: 271900828.7 | F15: 271900828.7 | G15: 163713704.2 | I15: 435614532.8
B16: Costo Operativo Fijo | C16: 349292586.2 | F16: 349292586.2 | G16: 450063296.9 | I16: 799355883
B17: TOTAL OPERATIVO | C17: 621193414.8 | F17: 621193414.8 | G17: 613777001 | I17: 1234970416
B18: NO OPERATIVO
B19: COMERCIALIZACIÓN
B20: Comercial Propios | C20: 145294332.1 | F20: 145294332.1 | G20: 39868582.87 | I20: 185162915
B21: Comercial Asignados | C21: 91402326.68 | F21: 91402326.68 | G21: 17213879.32 | I21: 108616206
B22: TOTAL COMERCIALIZACIÓN | C22: 236696658.8 | F22: 236696658.8 | G22: 57082462.19 | I22: 293779121
B23: ADMINISTRACIÓN
B24: Administración Propios | C24: 111291045.1 | F24: 111291045.1 | G24: 30538123.55 | I24: 141829168.7
B25: Administ. Asignados | C25: 175904704.6 | F25: 175904704.6 | G25: 8974825.86 | I25: 184879530.4
B26: Gastos Fiscales | C26: 144862101.7 | F26: 144862101.7 | G26: 56412099.51 | I26: 201274201.2
B27: TOTAL ADMINISTRACIÓN | C27: 432057851.4 | F27: 432057851.4 | G27: 95925048.92 | I27: 527982900.3
B28: TOTAL NO OPERATIVO | C28: 668754510.2 | F28: 668754510.2 | G28: 153007511.1 | I28: -821762021.3
B29: COSTO DE EXPLOTACIÓN | C29: 1289947925 | F29: 1289947925 | G29: 766784512.1 | I29: 2056732437
B30: RESULTADO DE EXPLOTACIÓN | C30: 1066350505 | F30: 1066350505 | G30: 149842958.1 | I30: 1216193463
B31: DIVERSOS Y EXTRAORDINARIOS
B32: Ingresos Div. y Extr | C32: 7370631.95 | F32: 7370631.95 | G32: 3449569.43 | I32: 10820201.38
B33: Gtos. Div. y Extraor | C33: 99825.63 | F33: 99825.63 | G33: 38874.04 | I33: 138699.67
B34: RESULTADOS DIV. Y EXTRAORDINARIOS | C34: 7270806.32 | F34: 7270806.32 | G34: 3410695.39 | I34: 10681501.71
B35: FINANCIEROS
B36: Ingresos Financieros | C36: 59592998.82 | F36: 59592998.82 | G36: 23206664.39 | I36: 82799663.21
B37: Gastos Financieros | C37: 1461084.59 | F37: 1461084.59 | G37: 568974.59 | I37: 2030059.18
B38: RESULTADO FINANCIERO | C38: 58131914.23 | F38: 58131914.23 | G38: 22637689.8 | I38: 80769604.03
B39: I.R.A.E. | C39: -135557081.9 | F39: -135557081.9 | G39: -52788545.14 | I39: -188345627
B40: RESULTADO NETO | C40: 996196143.3 | F40: 996196143.3 | G40: 123102798.2 | I40: 1119298941

Sheet B-UGD-501
B4: U . G . D.
D6: C O S T O S T O T A L E S
C10: C O N C E P T O | D10: C O S T O S O P E R A T I V O S
D13: AGUA | E13: ALCANTARILLADO | F13: TOTAL
C15: RETRIBUCIONES AL PERSONAL | D15: 167571350.5 | E15: 58680007.25 | F15: 226251357.7
C17: MATERIALES Y SUMINISTROS | D17: 111461507.8 | E17: 57431728.36 | F17: 168893236.1
C19: ENERGIA Y FLUÍDOS | D19: 92855972.94 | E19: 71525148.83 | F19: 164381121.8
C21: SERVICIOS CONTRATADOS | D21: 116871356.8 | E21: 252409419.3 | F21: 369280776.1
C23: GASTOS VARIOS | D23: 6140242.947 | E23: 50189.23909 | F23: 6190432.186
C25: AMORTIZACIÓN | D25: 126292983.8 | E25: 173680508.1 | F25: 299973491.9
C28: TOTAL | D28: 621193414.8 | E28: 613777001 | F28: 1234970416 | H28: 0.790653051
C33: C O N C E P T O | D33: C O S T O D E A D M I N I S T R A T I V O - C O M E R C I A L
D36: COMERCIALIZACIÓN | E36: ADMINISTRACIÓN | F36: TOTAL
C38: RETRIBUCIONES AL PERSONAL | D38: 54661551.72 | E38: 45610880.52 | F38: 100272432.2
C40: MATERIALES Y SUMINISTROS | D40: 3173693.8 | E40: 995306.51 | F40: 4169000.31
C42: ENERGIA Y FLUÍDOS | D42: 358667.82 | E42: 11563233.84 | F42: 11921901.66
C44: SERVICIOS CONTRATADOS | D44: 124492922.3 | E44: 53780782.8 | F44: 178273705.1
C46: GASTOS VARIOS | D46: 4543.31 | E46: 4811482 | F46: 4816025.31
C48: AMORTIZACIÓN | D48: 2471536.04 | E48: 25067483.01 | F48: 27539019.05
C52: TOTAL | D52: 185162915 | E52: 141829168.7 | F52: 326992083.7 | H52: 0.209346949
B57: C O S T O D E E X P L O T A C I Ó N | H57: 1561962500

Sheet C-UGD-501
D4: COBERTURAS, COSTOS E INGRESOS PROMEDIO
D6: U . G . D .
C10: 1.COMPOSICIÓN DEL COSTO PROPIO POR CONEXIÓN | D10: OPERATIVOS | F10: ADMINISTRATIVO-COMERCIAL
D12: AGUA | E12: ALCANTARILLADO
D13: ($/conex.agua) | E13: ($/conex.desagüe) | F13: ($/conex.agua)
C15: RETRIBUCIONES AL PERSONAL | D15: 1579.193216 | E15: 1007.658881 | F15: 944.9678853
C17: MATERIALES Y SUMINISTROS | D17: 1050.413787 | E17: 986.2233121 | F17: 39.28867904
C19: ENERGIA Y FLUÍDOS | D19: 875.075137 | E19: 1228.236921 | F19: 112.3520588
C21: SERVICIOS CONTRATADOS | D21: 1101.396231 | E21: 4334.399479 | F21: 1680.052257
C23: GASTOS VARIOS | D23: 57.86567916 | E23: 0.861854571 | F23: 45.38624576
C25: AMORTIZACIÓN | D25: 1190.185689 | E25: 2982.45884 | F25: 259.5278484
C29: TOTAL | D29: 5854.129739 | E29: 10539.83929 | F29: 3081.574974
C32: 2.CONEXIONES (promedio anual) | D32: 106112 | E32: 58234
C35: 3.COBERTURAS COSTO/INGRESO
C37: 3.1 COSTO DE EXPLOTACIÓN/ INGRESO DE EXPLOT. | D37: 0.5474467533 | E37: 0.8365279647
C39: 3.3 TOTAL | D39: 0.4770230064 | E39: 0.7575704028
C42: 4.M3 ELEVADOS | D42: 25010160
C44: 5.M3 FACTURADOS | D44: 15971850
C47: 6. COSTO PROMEDIO
C49: 6.1 COSTO VARIABLE/ M3ELEVADOS | D49: 10.87161492
C51: 6.2 COSTO VARIABLE / M3FACTURADOS | D51: 17.02375296
C53: 6.3 COSTO EXPLOTACIÓN/M3FACT | D53: 80.76383919
C55: 6.4 TOTAL/M3FACT | D55: 72.37431815
C58: 7. INGRESOS PROMEDIO
C60: 7.1 VARIABLE/M3 FACT | D60: 76.9473318
C62: 7.2 FIJO/CONEXIONES | D62: 743.9581027
C64: 7.3 INGRESO EXPLOTACIÓN/M3FACT | D64: 147.5282093
C66: 7.4 TOTAL/M3FACT | D66: 151.7208126
